Service Delivery Area(T),Service Delivery Team(T),ExpenditureGroup(T),Account(T),Supplier Name(T),Trans Date,Amount
Adult Social Care,ASC Prevention & Enablement,Transport-Related Expenditure,Taxi Costs,Cartello Ambulance,04/05/2023,157.50
Adult Social Care,ASC Prevention & Enablement,Transport-Related Expenditure,Taxi Costs,Cartello Ambulance,04/05/2023,182.00
Adult Social Care,ASC Prevention & Enablement,Transport-Related Expenditure,Taxi Costs,Cartello Ambulance,04/05/2023,104.00
Adult Social Care,ASC Prevention & Enablement,Transport-Related Expenditure,Taxi Costs,Cartello Ambulance,04/05/2023,210.00
Adult Social Care,ASC Prevention & Enablement,Transport-Related Expenditure,Taxi Costs,Cartello Ambulance,22/05/2023,187.25
Adult Social Care,ASC Prevention & Enablement,Transport-Related Expenditure,Taxi Costs,Cartello Ambulance,16/05/2023,160.50
Adult Social Care,ASC Prevention & Enablement,Transport-Related Expenditure,Taxi Costs,Cartello Ambulance,16/05/2023,160.50
Adult Social Care,ASC Prevention & Enablement,Transport-Related Expenditure,Taxi Costs,Telford Taxi Hire Limited,15/05/2023,120.00
Adult Social Care,ASC Prevention & Enablement,Supplies & Services,Mobile Phones,EE LTD EQUIPMENT ,18/05/2023,142.00
Adult Social Care,"Assurance, Transformation & Financial Management",Supplies & Services,Systems Procurement,Prepaid Financial Services Limited,12/05/2023,503.60
Adult Social Care,"Assurance, Transformation & Financial Management",Supplies & Services,Systems Procurement,Prepaid Financial Services Limited,12/05/2023,623.06
Adult Social Care,"Assurance, Transformation & Financial Management",Employees,Staff Training,escalla,31/05/2023,"2,560.00"
Adult Social Care,"Commissioning, Procurement & Brokerage",Third Party Payments,Interpreters Fees,EXPRESS INTERPRETING & TRANSLATION,22/05/2023,"1,993.69"
Adult Social Care,"Commissioning, Procurement & Brokerage",Supplies & Services,Other Grants (Expenses),TELFORD & WREKIN CVS,31/05/2023,"90,000.00"
Adult Social Care,"Commissioning, Procurement & Brokerage",Supplies & Services,Other Grants (Expenses),THE STROKE ASSOCIATION,30/05/2023,"11,499.44"
Adult Social Care,"Commissioning, Procurement & Brokerage",Third Party Payments,Private Contractors,POHWER,22/05/2023,"19,312.50"
Adult Social Care,Community Social Work & Adult Safeguarding,Supplies & Services,Other Grants (Expenses),POHWER,31/05/2023,"2,500.00"
Adult Social Care,Community Social Work & Adult Safeguarding,Supplies & Services,Mobile Phones,EE LTD EQUIPMENT ,18/05/2023,142.00
Adult Social Care,Community Social Work & Adult Safeguarding,Supplies & Services,Legal Expenses,WEIGHTMANS,31/05/2023,290.00
Adult Social Care,Community Social Work & Adult Safeguarding,Supplies & Services,Legal Expenses,WEIGHTMANS,05/05/2023,232.00
Adult Social Care,Community Social Work & Adult Safeguarding,Supplies & Services,Legal Expenses,WEIGHTMANS,05/05/2023,449.50
Adult Social Care,Community Social Work & Adult Safeguarding,Supplies & Services,Legal Expenses,WEIGHTMANS,05/05/2023,362.50
Adult Social Care,Community Social Work & Adult Safeguarding,Supplies & Services,Legal Expenses,WEIGHTMANS,05/05/2023,232.00
Adult Social Care,Community Social Work & Adult Safeguarding,Supplies & Services,Legal Expenses,WEIGHTMANS,05/05/2023,188.50
Adult Social Care,Community Social Work & Adult Safeguarding,Employees,Staff Training,BIRMINGHAM CITY COUNCIL,05/05/2023,"3,660.00"
Adult Social Care,Community Social Work & Adult Safeguarding,Supplies & Services,Medical Consultants Fees,Asist Advocacy Services,18/05/2023,117.09
Adult Social Care,Community Social Work & Adult Safeguarding,Supplies & Services,Medical Consultants Fees,REDACTED PERSONAL INFORMATION,04/05/2023,425.00
Adult Social Care,Community Social Work & Adult Safeguarding,Supplies & Services,Medical Consultants Fees,HEXCHA LTD,18/05/2023,550.72
Adult Social Care,Community Social Work (Principal Social Worker),Transport-Related Expenditure,Taxi Costs,Ezy Car Ltd,05/05/2023,584.35
Adult Social Care,Community Social Work (Principal Social Worker),Third Party Payments,Other Care Purchasing,Severn Trent Water Ltd,05/05/2023,145.56
Adult Social Care,Community Social Work (Principal Social Worker),Supplies & Services,Mobile Phones,EE LTD EQUIPMENT ,18/05/2023,142.00
Adult Social Care,Community Social Work (Principal Social Worker),Supplies & Services,Mobile Phones,EE LTD EQUIPMENT ,18/05/2023,142.00
Adult Social Care,My Options,Supplies & Services,Mobile Phones,EE LTD EQUIPMENT ,18/05/2023,142.00
Adult Social Care,My Options,Supplies & Services,Mobile Phones,EE LTD EQUIPMENT ,19/05/2023,"8,968.00"
Adult Social Care,My Options,Supplies & Services,Mobile Phones,EE LTD EQUIPMENT ,23/05/2023,"-1,900.00"
Adult Social Care,My Options,Premises-Related Expenditure,Clean Mats & Toilet Requisites,PHS GROUP,11/05/2023,125.22
Adult Social Care,My Options,Supplies & Services,Laundry & Towel Hire,PHS GROUP,10/05/2023,200.01
Adult Social Care,My Options,Premises-Related Expenditure,Hire Of Rooms,Dawley Baptist Church,10/05/2023,160.00
Adult Social Care,My Options,Employees,Agency Supply Costs,Nurse Plus and Carer Plus Limited,11/05/2023,"1,255.70"
Adult Social Care,My Options,Employees,Agency Supply Costs,Nurse Plus and Carer Plus Limited,10/05/2023,"1,511.84"
Adult Social Care,My Options,Employees,Agency Supply Costs,Nurse Plus and Carer Plus Limited,23/05/2023,"1,959.98"
Adult Social Care,My Options,Employees,Agency Supply Costs,Safehands Recruitment,10/05/2023,"3,599.20"
Adult Social Care,My Options,Employees,Agency Supply Costs,Safehands Recruitment,23/05/2023,"3,351.15"
Adult Social Care,My Options,Premises-Related Expenditure,Clean Mats & Toilet Requisites,BERWICK CARE EQUIPMENT LTD,12/05/2023,365.78
Adult Social Care,My Options,Premises-Related Expenditure,Clean Mats & Toilet Requisites,BERWICK CARE EQUIPMENT LTD,23/05/2023,119.60
Adult Social Care,My Options,Premises-Related Expenditure,Clean Mats & Toilet Requisites,BERWICK CARE EQUIPMENT LTD,24/05/2023,253.80
Adult Social Care,My Options,Premises-Related Expenditure,Clean Mats & Toilet Requisites,BERWICK CARE EQUIPMENT LTD,11/05/2023,253.80
Adult Social Care,My Options,Premises-Related Expenditure,Clean Mats & Toilet Requisites,BERWICK CARE EQUIPMENT LTD,11/05/2023,348.15
Adult Social Care,My Options,Premises-Related Expenditure,Clean Mats & Toilet Requisites,Safehands Recruitment,24/05/2023,-253.80
Adult Social Care,My Options,Premises-Related Expenditure,Clean Mats & Toilet Requisites,Safehands Recruitment,11/05/2023,253.80
Adult Social Care,My Options,Supplies & Services,Equipment - Purchase,MEDACO,11/05/2023,253.51
Adult Social Care,My Options,Employees,Agency Supply Costs,Acton Banks Limited,23/05/2023,311.35
Adult Social Care,My Options,Employees,Agency Supply Costs,Acton Banks Limited,23/05/2023,311.35
Adult Social Care,My Options,Employees,Agency Supply Costs,Acton Banks Limited,23/05/2023,311.35
Adult Social Care,My Options,Employees,Agency Supply Costs,Acton Banks Limited,11/05/2023,622.70
Adult Social Care,My Options,Employees,Agency Supply Costs,Acton Banks Limited,11/05/2023,311.35
Adult Social Care,My Options,Employees,Agency Supply Costs,Acton Banks Limited,11/05/2023,622.70
Adult Social Care,My Options,Employees,Agency Supply Costs,Acton Banks Limited,11/05/2023,311.35
Adult Social Care,My Options,Employees,Agency Supply Costs,Acton Banks Limited,11/05/2023,311.35
Adult Social Care,My Options,Employees,Agency Supply Costs,Acton Banks Limited,11/05/2023,311.35
Adult Social Care,My Options,Employees,Agency Supply Costs,Acton Banks Limited,11/05/2023,311.35
Adult Social Care,My Options,Employees,Agency Supply Costs,Acton Banks Limited,11/05/2023,311.35
Adult Social Care,My Options,Employees,Agency Supply Costs,Acton Banks Limited,11/05/2023,311.35
Adult Social Care,My Options,Employees,Agency Supply Costs,Acton Banks Limited,11/05/2023,415.29
Adult Social Care,My Options,Employees,Agency Supply Costs,Acton Banks Limited,11/05/2023,231.60
Adult Social Care,My Options,Employees,Agency Supply Costs,Acton Banks Limited,11/05/2023,311.35
Adult Social Care,My Options,Employees,Agency Supply Costs,Acton Banks Limited,11/05/2023,311.35
Adult Social Care,My Options,Employees,Agency Supply Costs,Acton Banks Limited,11/05/2023,279.50
Adult Social Care,My Options,Employees,Agency Supply Costs,Acton Banks Limited,11/05/2023,231.60
Adult Social Care,My Options,Employees,Agency Supply Costs,Acton Banks Limited,11/05/2023,227.53
Adult Social Care,My Options,Employees,Agency Supply Costs,Acton Banks Limited,11/05/2023,287.40
Adult Social Care,My Options,Employees,Agency Supply Costs,Acton Banks Limited,11/05/2023,311.35
Adult Social Care,My Options,Employees,Agency Supply Costs,Acton Banks Limited,11/05/2023,227.53
Adult Social Care,My Options,Employees,Agency Supply Costs,Acton Banks Limited,11/05/2023,311.35
Adult Social Care,My Options,Employees,Agency Supply Costs,Acton Banks Limited,10/05/2023,231.60
Adult Social Care,My Options,Employees,Agency Supply Costs,Acton Banks Limited,10/05/2023,311.35
Adult Social Care,My Options,Employees,Agency Supply Costs,Acton Banks Limited,10/05/2023,311.35
Adult Social Care,My Options,Employees,Agency Supply Costs,Acton Banks Limited,10/05/2023,311.35
Adult Social Care,My Options,Employees,Agency Supply Costs,Acton Banks Limited,10/05/2023,311.35
Adult Social Care,My Options,Employees,Agency Supply Costs,Acton Banks Limited,10/05/2023,311.35
Adult Social Care,My Options,Employees,Agency Supply Costs,Acton Banks Limited,10/05/2023,311.35
Adult Social Care,My Options,Employees,Agency Supply Costs,Acton Banks Limited,10/05/2023,311.35
Adult Social Care,My Options,Employees,Agency Supply Costs,Acton Banks Limited,10/05/2023,231.60
Adult Social Care,My Options,Employees,Agency Supply Costs,Acton Banks Limited,10/05/2023,311.35
Adult Social Care,My Options,Employees,Agency Supply Costs,Acton Banks Limited,10/05/2023,311.35
Adult Social Care,My Options,Employees,Agency Supply Costs,Acton Banks Limited,10/05/2023,227.53
Adult Social Care,My Options,Employees,Agency Supply Costs,Acton Banks Limited,10/05/2023,224.41
Adult Social Care,My Options,Employees,Agency Supply Costs,Acton Banks Limited,10/05/2023,227.53
Adult Social Care,My Options,Employees,Agency Supply Costs,Acton Banks Limited,10/05/2023,311.35
Adult Social Care,My Options,Employees,Agency Supply Costs,Acton Banks Limited,10/05/2023,311.35
Adult Social Care,My Options,Employees,Agency Supply Costs,Acton Banks Limited,10/05/2023,311.35
Adult Social Care,My Options,Employees,Agency Supply Costs,Acton Banks Limited,10/05/2023,215.55
Adult Social Care,My Options,Employees,Agency Supply Costs,Acton Banks Limited,10/05/2023,311.35
Adult Social Care,My Options,Employees,Agency Supply Costs,Acton Banks Limited,10/05/2023,415.29
Adult Social Care,My Options,Employees,Agency Supply Costs,Acton Banks Limited,10/05/2023,311.35
Adult Social Care,My Options,Employees,Agency Supply Costs,Acton Banks Limited,22/05/2023,243.57
Adult Social Care,My Options,Employees,Agency Supply Costs,Acton Banks Limited,22/05/2023,375.30
Adult Social Care,My Options,Employees,Agency Supply Costs,Acton Banks Limited,22/05/2023,231.60
Adult Social Care,My Options,Employees,Agency Supply Costs,Acton Banks Limited,22/05/2023,558.99
Adult Social Care,My Options,Employees,Agency Supply Costs,Acton Banks Limited,22/05/2023,311.35
Adult Social Care,My Options,Employees,Agency Supply Costs,Acton Banks Limited,22/05/2023,311.35
Adult Social Care,My Options,Employees,Agency Supply Costs,Acton Banks Limited,22/05/2023,311.35
Adult Social Care,My Options,Employees,Agency Supply Costs,Acton Banks Limited,22/05/2023,231.60
Adult Social Care,My Options,Employees,Agency Supply Costs,Acton Banks Limited,24/05/2023,311.35
Adult Social Care,My Options,Employees,Agency Supply Costs,Acton Banks Limited,24/05/2023,231.60
Adult Social Care,My Options,Employees,Agency Supply Costs,Acton Banks Limited,24/05/2023,311.35
Adult Social Care,My Options,Employees,Agency Supply Costs,Acton Banks Limited,24/05/2023,311.35
Adult Social Care,My Options,Employees,Agency Supply Costs,Acton Banks Limited,24/05/2023,311.35
Adult Social Care,My Options,Employees,Agency Supply Costs,Acton Banks Limited,24/05/2023,231.60
Adult Social Care,My Options,Employees,Agency Supply Costs,Acton Banks Limited,24/05/2023,231.60
Adult Social Care,My Options,Employees,Agency Supply Costs,Acton Banks Limited,24/05/2023,311.35
Adult Social Care,My Options,Employees,Agency Supply Costs,Acton Banks Limited,24/05/2023,311.35
Adult Social Care,My Options,Employees,Agency Supply Costs,Acton Banks Limited,24/05/2023,311.35
Adult Social Care,My Options,Employees,Agency Supply Costs,JN Recruitment,11/05/2023,797.50
Adult Social Care,My Options,Employees,Agency Supply Costs,JN Recruitment,10/05/2023,671.00
Adult Social Care,My Options,Employees,Agency Supply Costs,JN Recruitment,22/05/2023,220.00
Adult Social Care,My Options,Employees,Agency Supply Costs,Nurse Plus and Carer Plus Limited,23/05/2023,"1,969.43"
Adult Social Care,My Options,Employees,Agency Supply Costs,Nurse Plus and Carer Plus Limited,23/05/2023,"7,403.79"
Adult Social Care,My Options,Employees,Agency Supply Costs,Nurse Plus and Carer Plus Limited,11/05/2023,"1,873.54"
Adult Social Care,My Options,Employees,Agency Supply Costs,Nurse Plus and Carer Plus Limited,11/05/2023,399.03
Adult Social Care,My Options,Employees,Agency Supply Costs,Nurse Plus and Carer Plus Limited,11/05/2023,503.30
Adult Social Care,My Options,Employees,Agency Supply Costs,Nurse Plus and Carer Plus Limited,11/05/2023,"3,391.90"
Adult Social Care,My Options,Employees,Agency Supply Costs,Nurse Plus and Carer Plus Limited,10/05/2023,"4,381.29"
Adult Social Care,My Options,Employees,Agency Supply Costs,Nurse Plus and Carer Plus Limited,10/05/2023,439.95
Adult Social Care,My Options,Employees,Agency Supply Costs,Nurse Plus and Carer Plus Limited,10/05/2023,"1,377.80"
Adult Social Care,My Options,Employees,Agency Supply Costs,Nurse Plus and Carer Plus Limited,10/05/2023,460.95
Adult Social Care,My Options,Employees,Agency Supply Costs,Nurse Plus and Carer Plus Limited,10/05/2023,480.03
Adult Social Care,My Options,Employees,Agency Supply Costs,Nurse Plus and Carer Plus Limited,22/05/2023,370.15
Adult Social Care,My Options,Employees,Agency Supply Costs,Nurse Plus and Carer Plus Limited,22/05/2023,640.68
Adult Social Care,My Options,Employees,Agency Supply Costs,Safehands Recruitment,23/05/2023,277.20
Adult Social Care,My Options,Employees,Agency Supply Costs,Safehands Recruitment,23/05/2023,313.50
Adult Social Care,My Options,Employees,Agency Supply Costs,Safehands Recruitment,11/05/2023,146.30
Adult Social Care,My Options,Employees,Agency Supply Costs,Safehands Recruitment,11/05/2023,685.30
Adult Social Care,My Options,Employees,Agency Supply Costs,Safehands Recruitment,11/05/2023,429.00
Adult Social Care,My Options,Employees,Agency Supply Costs,Safehands Recruitment,11/05/2023,"1,332.90"
Adult Social Care,My Options,Employees,Agency Supply Costs,Safehands Recruitment,11/05/2023,"2,377.75"
Adult Social Care,My Options,Employees,Agency Supply Costs,Safehands Recruitment,11/05/2023,947.10
Adult Social Care,My Options,Employees,Agency Supply Costs,Safehands Recruitment,11/05/2023,"2,378.20"
Adult Social Care,My Options,Employees,Agency Supply Costs,Safehands Recruitment,10/05/2023,"9,701.88"
Adult Social Care,My Options,Employees,Agency Supply Costs,Safehands Recruitment,10/05/2023,554.05
Adult Social Care,My Options,Employees,Agency Supply Costs,Safehands Recruitment,10/05/2023,831.60
Adult Social Care,My Options,Employees,Agency Supply Costs,Safehands Recruitment,10/05/2023,"1,907.68"
Adult Social Care,My Options,Employees,Agency Supply Costs,Safehands Recruitment,10/05/2023,554.40
Adult Social Care,My Options,Employees,Agency Supply Costs,Safehands Recruitment,10/05/2023,"1,232.00"
Adult Social Care,My Options,Employees,Agency Supply Costs,Safehands Recruitment,22/05/2023,"1,939.10"
Adult Social Care,My Options,Employees,Agency Supply Costs,Safehands Recruitment,22/05/2023,"1,682.14"
Adult Social Care,My Options,Employees,Agency Supply Costs,Safehands Recruitment,22/05/2023,408.10
Adult Social Care,My Options,Employees,Agency Supply Costs,Safehands Recruitment,22/05/2023,"1,333.63"
Adult Social Care,My Options,Employees,Training Expenses,SHROPSHIRE PARTNERS IN CARE LTD,24/05/2023,231.00
Adult Social Care,My Options,Supplies & Services,Computer Software (Maint),Access UK Ltd,10/05/2023,644.40
Adult Social Care,My Options,Supplies & Services,Adult Flexi / Day Care,REDACTED PERSONAL INFORMATION,31/05/2023,"1,732.20"
Adult Social Care,My Options,Supplies & Services,Other Travel,REDACTED PERSONAL INFORMATION,31/05/2023,540.00
Adult Social Care,My Options,Supplies & Services,Respite Care,REDACTED PERSONAL INFORMATION,31/05/2023,230.96
Adult Social Care,My Options,Supplies & Services,Respite Care,REDACTED PERSONAL INFORMATION,26/05/2023,"1,030.40"
Adult Social Care,My Options,Supplies & Services,Respite Care,REDACTED PERSONAL INFORMATION,03/05/2023,"1,030.48"
Adult Social Care,My Options,Supplies & Services,Respite Care,REDACTED PERSONAL INFORMATION,26/05/2023,"1,636.60"
Adult Social Care,My Options,Supplies & Services,Respite Care,REDACTED PERSONAL INFORMATION,03/05/2023,"1,636.64"
Adult Social Care,My Options,Supplies & Services,Respite Care,REDACTED PERSONAL INFORMATION,26/05/2023,856.80
Adult Social Care,My Options,Supplies & Services,Respite Care,REDACTED PERSONAL INFORMATION,03/05/2023,856.80
Adult Social Care,My Options,Supplies & Services,Respite Care,REDACTED PERSONAL INFORMATION,25/05/2023,404.18
Adult Social Care,My Options,Employees,Agency Supply Costs,Nurse Plus and Carer Plus Limited,11/05/2023,"1,435.40"
Adult Social Care,My Options,Employees,Agency Supply Costs,Nurse Plus and Carer Plus Limited,10/05/2023,608.50
Adult Social Care,My Options,Employees,Agency Supply Costs,Nurse Plus and Carer Plus Limited,23/05/2023,"1,209.14"
Adult Social Care,My Options,Employees,Agency Supply Costs,Safehands Recruitment,11/05/2023,"10,445.07"
Adult Social Care,My Options,Employees,Agency Supply Costs,Safehands Recruitment,23/05/2023,"10,446.00"
Adult Social Care,My Options,Employees,Training Expenses,SHROPSHIRE COUNCIL ,24/05/2023,234.00
Adult Social Care,My Options,Employees,Course Fees,Dulson Training Ltd,11/05/2023,570.80
Adult Social Care,My Options,Supplies & Services,Other Expenses,IRONBRIDGE GORGE MUSEUM TRUST LTD,23/05/2023,300.00
Adult Social Care,My Options,Supplies & Services,Equipment - Purchase,TELFORD TIMBER SUPPLIES,09/05/2023,140.00
Adult Social Care,My Options,Supplies & Services,Equipment - Purchase,TELFORD TIMBER SUPPLIES,09/05/2023,110.00
Adult Social Care,My Options,Supplies & Services,Equipment - Purchase,TELFORD TIMBER SUPPLIES,24/05/2023,252.00
Adult Social Care,My Options,Supplies & Services,Items For Resale,TELFORD TIMBER SUPPLIES,15/05/2023,252.00
Adult Social Care,My Options,Capital Expenditure,Payments to Contractor,PAVE AWAYS LTD,16/05/2023,"163,428.68"
Adult Social Care,My Options,Capital Expenditure,Payments to Contractor,TAYLORS MECHANICAL H & P SERVICES LTD,12/05/2023,"4,221.88"
Adult Social Care,Prevention & Independence - Older Adults & Disability,Supplies & Services,Other Services,VISS Sign Language Interpreting Service,19/05/2023,390.00
Adult Social Care,Prevention & Independence - Older Adults & Disability,Transport-Related Expenditure,Taxi Costs,Telford and Wrekin Community Enterprise LTD,12/05/2023,172.80
Adult Social Care,Prevention & Independence - Older Adults & Disability,Transport-Related Expenditure,Taxi Costs,Telford and Wrekin Community Enterprise LTD,04/05/2023,180.00
Adult Social Care,Prevention & Independence - Older Adults & Disability,Transport-Related Expenditure,Taxi Costs,Telford and Wrekin Community Enterprise LTD,04/05/2023,559.00
Adult Social Care,Prevention & Independence - Older Adults & Disability,Transport-Related Expenditure,Taxi Costs,Telford Taxi Hire Limited,18/05/2023,800.00
Adult Social Care,Prevention & Independence - Older Adults & Disability,Transport-Related Expenditure,Taxi Costs,Telford Taxi Hire Limited,04/05/2023,"1,000.00"
Adult Social Care,Prevention & Independence - Older Adults & Disability,Transport-Related Expenditure,Taxi Costs, Go Carz,18/05/2023,120.40
Adult Social Care,Prevention & Independence - Older Adults & Disability,Transport-Related Expenditure,Taxi Costs, Go Carz,18/05/2023,102.60
Adult Social Care,Prevention & Independence - Older Adults & Disability,Transport-Related Expenditure,Taxi Costs, Go Carz,04/05/2023,139.20
Adult Social Care,Prevention & Independence - Older Adults & Disability,Supplies & Services,Aids & Appliances,Alert-it Care Alarms,03/05/2023,255.78
Adult Social Care,Prevention & Independence - Older Adults & Disability,Supplies & Services,Aids & Appliances,Easylink,23/05/2023,130.68
Adult Social Care,Prevention & Independence - Older Adults & Disability,Supplies & Services,Aids & Appliances,Easylink,11/05/2023,130.68
Adult Social Care,Prevention & Independence - Older Adults & Disability,Supplies & Services,Aids & Appliances,Oysta technology Ltd,25/05/2023,"1,101.00"
Adult Social Care,Prevention & Independence - Older Adults & Disability,Supplies & Services,Equipment - Purchase,Oysta technology Ltd,25/05/2023,470.75
Adult Social Care,Prevention & Independence - Older Adults & Disability,Supplies & Services,Aids & Appliances,Oysta technology Ltd,25/05/2023,349.70
Adult Social Care,Prevention & Independence - Older Adults & Disability,Supplies & Services,Aids & Appliances,Possum Ltd,11/05/2023,895.00
Adult Social Care,Prevention & Independence - Older Adults & Disability,Supplies & Services,Aids & Appliances,SARABEC LIMITED,25/05/2023,"-1,161.75"
Adult Social Care,Prevention & Independence - Older Adults & Disability,Supplies & Services,Aids & Appliances,SARABEC LIMITED,25/05/2023,"1,151.80"
Adult Social Care,Prevention & Independence - Older Adults & Disability,Supplies & Services,Aids & Appliances,SARABEC LIMITED,15/05/2023,654.00
Adult Social Care,Prevention & Independence - Older Adults & Disability,Supplies & Services,Sport Equip - Purchase,TEC Services Association C.I.C,25/05/2023,440.00
Adult Social Care,Prevention & Independence - Older Adults & Disability,Supplies & Services,Aids & Appliances,Accora,25/05/2023,"1,775.00"
Adult Social Care,Prevention & Independence - Older Adults & Disability,Supplies & Services,Carriage/Delivery Charge,Accora,25/05/2023,165.00
Adult Social Care,Prevention & Independence - Older Adults & Disability,Supplies & Services,Aids & Appliances,BERWICK CARE EQUIPMENT LTD,30/05/2023,"2,125.00"
Adult Social Care,Prevention & Independence - Older Adults & Disability,Supplies & Services,Aids & Appliances,Direct Healthcare Group Limited,26/05/2023,208.00
Adult Social Care,Prevention & Independence - Older Adults & Disability,Supplies & Services,Aids & Appliances,Direct Healthcare Group Limited,26/05/2023,512.30
Adult Social Care,Prevention & Independence - Older Adults & Disability,Supplies & Services,Aids & Appliances,M A Smith Associates,24/05/2023,"1,000.00"
Adult Social Care,Prevention & Independence - Older Adults & Disability,Supplies & Services,Aids & Appliances,OSPREY HEALTHCARE LTD,23/05/2023,125.00
Adult Social Care,Prevention & Independence - Older Adults & Disability,Supplies & Services,Aids & Appliances,OSPREY HEALTHCARE LTD,23/05/2023,112.00
Adult Social Care,Prevention & Independence - Older Adults & Disability,Supplies & Services,Aids & Appliances,OSPREY HEALTHCARE LTD,03/05/2023,175.00
Adult Social Care,Prevention & Independence - Older Adults & Disability,Supplies & Services,Aids & Appliances,OSPREY HEALTHCARE LTD,11/05/2023,271.00
Adult Social Care,Prevention & Independence - Older Adults & Disability,Supplies & Services,Aids & Appliances,OSPREY HEALTHCARE LTD,30/05/2023,274.22
Adult Social Care,Prevention & Independence - Older Adults & Disability,Supplies & Services,Aids & Appliances,OSPREY SLING COMPANY LTD,24/05/2023,160.00
Adult Social Care,Prevention & Independence - Older Adults & Disability,Supplies & Services,Aids & Appliances,PRISM MEDICAL WESTHOLME DIVISION,18/05/2023,134.93
Adult Social Care,Prevention & Independence - Older Adults & Disability,Supplies & Services,Aids & Appliances,PRISM MEDICAL WESTHOLME DIVISION,02/05/2023,183.66
Adult Social Care,Prevention & Independence - Older Adults & Disability,Supplies & Services,Aids & Appliances,PRISM MEDICAL WESTHOLME DIVISION,02/05/2023,117.15
Adult Social Care,Prevention & Independence - Older Adults & Disability,Supplies & Services,Aids & Appliances,PRISM MEDICAL WESTHOLME DIVISION,25/05/2023,117.15
Adult Social Care,Prevention & Independence - Older Adults & Disability,Supplies & Services,Equipment - Repair,STANNAH LIFT SERVICES LTD,10/05/2023,"1,625.25"
Adult Social Care,Prevention & Independence - Older Adults & Disability,Supplies & Services,Aids & Appliances,Connected Care Solutions ,25/05/2023,"9,972.00"
Adult Social Care,Prevention & Independence - Older Adults & Disability,Supplies & Services,Mobile Phones,EE LTD EQUIPMENT ,25/05/2023,142.00
Adult Social Care,Prevention & Independence - Older Adults & Disability,Supplies & Services,Mobile Phones,EE LTD EQUIPMENT ,25/05/2023,142.00
Children�s Safeguarding & Family Support,Child Protection & Family Support,Supplies & Services,Comp Software (Purch / Hire),PHOENIX SOFTWARE LTD,10/05/2023,275.00
Children�s Safeguarding & Family Support,Child Protection & Family Support,Supplies & Services,Comp Software (Purch / Hire),PHOENIX SOFTWARE LTD,10/05/2023,559.99
Children�s Safeguarding & Family Support,Child Protection & Family Support,Supplies & Services,Comp Software (Purch / Hire),PHOENIX SOFTWARE LTD,10/05/2023,319.22
Children�s Safeguarding & Family Support,Child Protection & Family Support,Supplies & Services,Comp Software (Purch / Hire),PHOENIX SOFTWARE LTD,18/05/2023,"1,850.00"
Children�s Safeguarding & Family Support,Child Protection & Family Support,Employees,Agency Supply Costs,Matrix SCM,30/05/2023,"41,356.04"
Children�s Safeguarding & Family Support,Child Protection & Family Support,Supplies & Services,Mobile Phones,EE LTD EQUIPMENT ,18/05/2023,142.00
Children�s Safeguarding & Family Support,Child Protection & Family Support,Employees,Agency Supply Costs,Matrix SCM,30/05/2023,"41,356.04"
Children�s Safeguarding & Family Support,Child Protection & Family Support,Supplies & Services,Mobile Phones,EE LTD EQUIPMENT ,19/05/2023,142.00
Children�s Safeguarding & Family Support,Child Protection & Family Support,Premises-Related Expenditure,Hire Of Rooms,MEETING POINT TRUST LTD,10/05/2023,230.00
Children�s Safeguarding & Family Support,Child Protection & Family Support,Premises-Related Expenditure,Hire Of Rooms,MEETING POINT TRUST LTD,11/05/2023,218.00
Children�s Safeguarding & Family Support,Child Protection & Family Support,Premises-Related Expenditure,Hire Of Rooms,MEETING POINT TRUST LTD,31/05/2023,305.00
Children�s Safeguarding & Family Support,Child Protection & Family Support,Employees,Professional Subs,PAVILION PUBLISHING LTD,10/05/2023,"8,820.00"
Children�s Safeguarding & Family Support,Child Protection & Family Support,Employees,Staff Training,COVENTRY CITY COUNCIL,18/05/2023,"7,894.00"
Children�s Safeguarding & Family Support,Child Protection & Family Support,Employees,Staff Training,Adoptionplus Ltd,10/05/2023,"2,000.00"
Children�s Safeguarding & Family Support,Child Protection & Family Support,Employees,Staff Training,Mercure Telford Centre Hotel,10/05/2023,114.56
Children�s Safeguarding & Family Support,Child Protection & Family Support,Employees,Staff Training,The Attachment Research Community,15/05/2023,249.00
Children�s Safeguarding & Family Support,Child Protection & Family Support,Employees,Staff Training,SHREWSBURY COLLEGES GROUP,30/05/2023,670.00
Children�s Safeguarding & Family Support,Child Protection & Family Support,Supplies & Services,Other Grants (Expenses),Midlands Partnership NHS Foundation Trust,30/05/2023,"10,395.67"
Children�s Safeguarding & Family Support,Child Protection & Family Support,Supplies & Services,Legal Expenses,39 Essex Chambers,30/05/2023,500.00
Children�s Safeguarding & Family Support,Child Protection & Family Support,Supplies & Services,Conference Expenses,ADCS,30/05/2023,893.00
Children�s Safeguarding & Family Support,Child Protection & Family Support,Supplies & Services,Other Services,NEC Software Solutions UK Ltd,30/05/2023,"2,000.00"
Children�s Safeguarding & Family Support,Family Connect & Childrens Centres,Premises-Related Expenditure,R&M -Building Other,E Solutions Ltd,26/05/2023,150.00
Children�s Safeguarding & Family Support,Family Connect & Childrens Centres,Premises-Related Expenditure,Hire Of Rooms,MEETING POINT TRUST LTD,26/05/2023,-115.00
Children�s Safeguarding & Family Support,Family Connect & Childrens Centres,Premises-Related Expenditure,Hire Of Rooms,MEETING POINT TRUST LTD,26/05/2023,120.00
Children�s Safeguarding & Family Support,Family Connect & Childrens Centres,Premises-Related Expenditure,R&M -Building Other,TAYLORS MECHANICAL H & P SERVICES LTD,09/05/2023,506.12
Children�s Safeguarding & Family Support,Family Connect & Childrens Centres,Supplies & Services,Other Grants (Expenses),CHILDCARE SOS,26/05/2023,108.00
Children�s Safeguarding & Family Support,Family Connect & Childrens Centres,Supplies & Services,Bulk Refuse Contracts Hire,GRANVILLE CONSTRUCTION & MAINTENANCE LTD,26/05/2023,134.00
Children�s Safeguarding & Family Support,Family Connect & Childrens Centres,Premises-Related Expenditure,Hire Of Rooms,MEETING POINT TRUST LTD,26/05/2023,-115.00
Children�s Safeguarding & Family Support,Family Connect & Childrens Centres,Premises-Related Expenditure,Hire Of Rooms,MEETING POINT TRUST LTD,26/05/2023,120.00
Children�s Safeguarding & Family Support,Family Connect & Childrens Centres,Supplies & Services,Other Grants (Expenses),CHILDCARE SOS,26/05/2023,108.00
Children�s Safeguarding & Family Support,Family Connect & Childrens Centres,Supplies & Services,Other Expenses,CRAVEN DUNHILL JACKFIELD LTD,31/05/2023,125.00
Children�s Safeguarding & Family Support,Family Connect & Childrens Centres,Premises-Related Expenditure,Hire Of Rooms,MEETING POINT TRUST LTD,26/05/2023,-115.00
Children�s Safeguarding & Family Support,Family Connect & Childrens Centres,Premises-Related Expenditure,Hire Of Rooms,MEETING POINT TRUST LTD,26/05/2023,120.00
Children�s Safeguarding & Family Support,Family Connect & Childrens Centres,Supplies & Services,Other Grants (Expenses),CHILDCARE SOS,26/05/2023,108.00
Children�s Safeguarding & Family Support,Family Connect & Childrens Centres,Supplies & Services,Mobile Phones,EE LTD EQUIPMENT ,18/05/2023,142.00
Children�s Safeguarding & Family Support,Family Connect & Childrens Centres,Supplies & Services,Administrative/Office Supplies,THE BEARS DEN PRE-SCHOOL ,25/05/2023,486.00
Children�s Safeguarding & Family Support,Family Connect & Childrens Centres,Supplies & Services,Stationery, Go Carz,12/05/2023,408.24
Children�s Safeguarding & Family Support,Family Connect & Childrens Centres,Employees,Staff Training,PMH Training Ltd,22/05/2023,330.00
Children�s Safeguarding & Family Support,Family Connect & Childrens Centres,Premises-Related Expenditure,Hire Of Rooms,Mercure Telford Centre Hotel,22/05/2023,120.83
Children�s Safeguarding & Family Support,Family Connect & Childrens Centres,Premises-Related Expenditure,Hire Of Rooms,Mercure Telford Centre Hotel,22/05/2023,120.83
Children�s Safeguarding & Family Support,Family Connect & Childrens Centres,Premises-Related Expenditure,Hire Of Rooms,Mercure Telford Centre Hotel,22/05/2023,120.83
Children�s Safeguarding & Family Support,Family Connect & Childrens Centres,Supplies & Services,Comp Hardware (Purch / Hire),CCS MEDIA LIMITED,16/05/2023,"3,600.00"
Children�s Safeguarding & Family Support,Family Connect & Childrens Centres,Supplies & Services,Conference Expenses,Mercure Telford Centre Hotel,22/05/2023,190.52
Children�s Safeguarding & Family Support,Family Connect & Childrens Centres,Supplies & Services,Conference Expenses,Mercure Telford Centre Hotel,22/05/2023,190.52
Children�s Safeguarding & Family Support,Family Connect & Childrens Centres,Supplies & Services,Conference Expenses,Mercure Telford Centre Hotel,22/05/2023,190.52
Children�s Safeguarding & Family Support,"Family Placements, Children in Care, Leaving Care & Emergency Duty Team",Supplies & Services,Form F Assessments,ES-PBS Services,24/05/2023,"1,250.00"
Children�s Safeguarding & Family Support,"Family Placements, Children in Care, Leaving Care & Emergency Duty Team",Supplies & Services,Form F Assessments,ES-PBS Services,24/05/2023,500.00
Children�s Safeguarding & Family Support,"Family Placements, Children in Care, Leaving Care & Emergency Duty Team",Supplies & Services,Furniture - Purchase,ONLINE ERGONOMICS LTD,10/05/2023,392.00
Children�s Safeguarding & Family Support,"Family Placements, Children in Care, Leaving Care & Emergency Duty Team",Supplies & Services,Furniture - Purchase,ONLINE ERGONOMICS LTD,10/05/2023,386.00
Children�s Safeguarding & Family Support,"Family Placements, Children in Care, Leaving Care & Emergency Duty Team",Supplies & Services,Furniture - Purchase,ONLINE ERGONOMICS LTD,10/05/2023,392.00
Children�s Safeguarding & Family Support,"Family Placements, Children in Care, Leaving Care & Emergency Duty Team",Supplies & Services,Furniture - Purchase,POSTURITE LTD,22/05/2023,999.70
Children�s Safeguarding & Family Support,"Family Placements, Children in Care, Leaving Care & Emergency Duty Team",Supplies & Services,Furniture - Purchase,POSTURITE LTD,22/05/2023,843.05
Children�s Safeguarding & Family Support,"Family Placements, Children in Care, Leaving Care & Emergency Duty Team",Supplies & Services,Equipment - Repair,ARJO UK LTD,24/05/2023,150.00
Children�s Safeguarding & Family Support,"Family Placements, Children in Care, Leaving Care & Emergency Duty Team",Supplies & Services,Equipment - Repair,ARJO UK LTD,24/05/2023,119.00
Children�s Safeguarding & Family Support,"Family Placements, Children in Care, Leaving Care & Emergency Duty Team",Supplies & Services,Aids & Appliances,Jiraffe,11/05/2023,"1,930.00"
Children�s Safeguarding & Family Support,"Family Placements, Children in Care, Leaving Care & Emergency Duty Team",Supplies & Services,Aids & Appliances,OSPREY HEALTHCARE LTD,10/05/2023,921.00
Children�s Safeguarding & Family Support,"Family Placements, Children in Care, Leaving Care & Emergency Duty Team",Supplies & Services,Equipment - Repair,STANNAH LIFT SERVICES LTD,10/05/2023,884.57
Children�s Safeguarding & Family Support,"Family Placements, Children in Care, Leaving Care & Emergency Duty Team",Premises-Related Expenditure,Hire Of Rooms,MEETING POINT TRUST LTD,25/05/2023,160.00
Children�s Safeguarding & Family Support,"Family Placements, Children in Care, Leaving Care & Emergency Duty Team",Supplies & Services,Subscriptions,IRONBRIDGE GORGE MUSEUM TRUST LTD,25/05/2023,300.00
Children�s Safeguarding & Family Support,"Family Placements, Children in Care, Leaving Care & Emergency Duty Team",Third Party Payments,Agency Services,Greenstaff Medical Ltd,02/05/2023,-984.00
Children�s Safeguarding & Family Support,"Family Placements, Children in Care, Leaving Care & Emergency Duty Team",Third Party Payments,Childminders,K Kids Nursery Ltd,12/05/2023,442.00
Children�s Safeguarding & Family Support,"Family Placements, Children in Care, Leaving Care & Emergency Duty Team",Third Party Payments,Childminders,K Kids Nursery Ltd,12/05/2023,-221.00
Children�s Safeguarding & Family Support,"Family Placements, Children in Care, Leaving Care & Emergency Duty Team",Third Party Payments,Childminders,K Kids Nursery Ltd,12/05/2023,221.00
Children�s Safeguarding & Family Support,"Family Placements, Children in Care, Leaving Care & Emergency Duty Team",Third Party Payments,Childminders,K Kids Nursery Ltd,12/05/2023,221.00
Children�s Safeguarding & Family Support,"Family Placements, Children in Care, Leaving Care & Emergency Duty Team",Third Party Payments,Childminders,K Kids Nursery Ltd,12/05/2023,221.00
Children�s Safeguarding & Family Support,"Family Placements, Children in Care, Leaving Care & Emergency Duty Team",Third Party Payments,Interpreters Fees,Premium Linguistic Services,12/05/2023,127.75
Children�s Safeguarding & Family Support,"Family Placements, Children in Care, Leaving Care & Emergency Duty Team",Third Party Payments,Interpreters Fees,Premium Linguistic Services,12/05/2023,"1,035.60"
Children�s Safeguarding & Family Support,"Family Placements, Children in Care, Leaving Care & Emergency Duty Team",Third Party Payments,Interpreters Fees,Premium Linguistic Services,12/05/2023,324.45
Children�s Safeguarding & Family Support,"Family Placements, Children in Care, Leaving Care & Emergency Duty Team",Third Party Payments,Interpreters Fees,Premium Linguistic Services,12/05/2023,331.05
Children�s Safeguarding & Family Support,"Family Placements, Children in Care, Leaving Care & Emergency Duty Team",Premises-Related Expenditure,Hire Of Rooms,MEETING POINT TRUST LTD,24/05/2023,"2,571.25"
Children�s Safeguarding & Family Support,"Family Placements, Children in Care, Leaving Care & Emergency Duty Team",Transport-Related Expenditure,Season Tickets,ARRIVA MIDLANDS LTD ,24/05/2023,666.00
Children�s Safeguarding & Family Support,"Family Placements, Children in Care, Leaving Care & Emergency Duty Team",Supplies & Services,Comp Hardware (Purch / Hire),CCS MEDIA LIMITED,04/05/2023,640.00
Children�s Safeguarding & Family Support,"Family Placements, Children in Care, Leaving Care & Emergency Duty Team",Employees,Staff Training,Crisis Prevention Institute Europe,03/05/2023,"4,297.50"
Children�s Safeguarding & Family Support,"Family Placements, Children in Care, Leaving Care & Emergency Duty Team",Employees,Staff Training,MEETING POINT TRUST LTD,03/05/2023,230.00
Children�s Safeguarding & Family Support,"Family Placements, Children in Care, Leaving Care & Emergency Duty Team",Premises-Related Expenditure,Hire Of Rooms,Dawley Baptist Church,10/05/2023,402.50
Children�s Safeguarding & Family Support,"Family Placements, Children in Care, Leaving Care & Emergency Duty Team",Premises-Related Expenditure,Hire Of Rooms,MEETING POINT TRUST LTD,31/05/2023,145.00
Children�s Safeguarding & Family Support,"Family Placements, Children in Care, Leaving Care & Emergency Duty Team",Supplies & Services,Registration / Licence Fees,Coram Academy Limited,03/05/2023,"3,295.91"
Children�s Safeguarding & Family Support,"Family Placements, Children in Care, Leaving Care & Emergency Duty Team",Supplies & Services,Subscriptions,FOSTERING NETWORK,03/05/2023,"7,038.00"
Children�s Safeguarding & Family Support,"Family Placements, Children in Care, Leaving Care & Emergency Duty Team",Supplies & Services,Events,Kangaroo Castles,23/05/2023,190.00
Children�s Safeguarding & Family Support,"Family Placements, Children in Care, Leaving Care & Emergency Duty Team",Supplies & Services,Advertising,Newsquest Media Group,19/05/2023,"2,800.00"
Children�s Safeguarding & Family Support,"Family Placements, Children in Care, Leaving Care & Emergency Duty Team",Supplies & Services,Registration / Licence Fees,OFSTED,23/05/2023,"3,216.00"
Children�s Safeguarding & Family Support,"Family Placements, Children in Care, Leaving Care & Emergency Duty Team",Supplies & Services,Doctors Fees,WOODSIDE MEDICAL PRACTICE,12/05/2023,125.00
Children�s Safeguarding & Family Support,"Family Placements, Children in Care, Leaving Care & Emergency Duty Team",Supplies & Services,Doctors Fees,WOODSIDE MEDICAL PRACTICE,12/05/2023,125.00
Children�s Safeguarding & Family Support,"Family Placements, Children in Care, Leaving Care & Emergency Duty Team",Third Party Payments,Childminders,REDACTED PERSONAL INFORMATION,10/05/2023,240.00
Children�s Safeguarding & Family Support,Safeguarding Advisory,Employees,Training Expenses,MEETING POINT TRUST LTD,05/05/2023,230.00
Children�s Safeguarding & Family Support,Safeguarding Advisory,Employees,Training Expenses,MEETING POINT TRUST LTD,25/05/2023,130.00
Children�s Safeguarding & Family Support,Safeguarding Advisory,Supplies & Services,Subscriptions,Black Country and West Birmingham Clinical Commissioning Group,05/05/2023,"5,255.00"
Children�s Safeguarding & Family Support,Safeguarding Advisory,Supplies & Services,Public Transport Subsidy,MEETING POINT TRUST LTD,16/05/2023,295.00
"Communities, Customer & Commercial Services",Community Services,Supplies & Services,Grants To Voluntary Organis,Donnington Sports & Social ABC,22/05/2023,500.00
"Communities, Customer & Commercial Services",Community Services,Supplies & Services,Grants To Voluntary Organis,Great Dawley Town Council,25/05/2023,500.00
"Communities, Customer & Commercial Services",Community Services,Supplies & Services,Grants To Voluntary Organis,KYNNERSLEY VILLAGE HALL,03/05/2023,300.00
"Communities, Customer & Commercial Services",Community Services,Supplies & Services,Grants To Voluntary Organis,OAKENGATES TOWN COUNCIL,22/05/2023,"2,200.00"
"Communities, Customer & Commercial Services",Community Services,Supplies & Services,Grants To Voluntary Organis,OAKENGATES TOWN COUNCIL,22/05/2023,"2,260.00"
"Communities, Customer & Commercial Services",Community Services,Supplies & Services,Grants To Voluntary Organis,Telford and Wrekin Interfaith Council,04/05/2023,200.00
"Communities, Customer & Commercial Services",Community Services,Supplies & Services,Grants To Voluntary Organis,The Telford Langley School ,16/05/2023,800.00
"Communities, Customer & Commercial Services",Community Services,Supplies & Services,Other Grants (Expenses),Anstice Community Trust,04/05/2023,357.68
"Communities, Customer & Commercial Services",Community Services,Supplies & Services,Other Grants (Expenses),Anstice Community Trust,09/05/2023,389.98
"Communities, Customer & Commercial Services",Community Services,Supplies & Services,Other Grants (Expenses),P N Treasurer Rotary Club of Ironbridge,11/05/2023,357.68
"Communities, Customer & Commercial Services",Community Services,Supplies & Services,Other Grants (Expenses),Park Wrekin Gymnastics Club Ltd,16/05/2023,357.68
"Communities, Customer & Commercial Services",Community Services,Supplies & Services,Other Grants (Expenses),TELFORD & WREKIN CVS,22/05/2023,349.80
"Communities, Customer & Commercial Services",Community Services,Supplies & Services,Other Grants (Expenses),Telford Crisis Support,04/05/2023,357.68
"Communities, Customer & Commercial Services",Community Services,Supplies & Services,Other Grants (Expenses),Wellington Orbit,11/05/2023,357.68
"Communities, Customer & Commercial Services",Community Services,Premises-Related Expenditure,Grounds Maintenance - Other,KERNOCK PARK PLANTS,25/05/2023,"7,985.00"
"Communities, Customer & Commercial Services",Community Services,Premises-Related Expenditure,Grounds Maintenance - Other,R Taylor Limited,11/05/2023,575.00
"Communities, Customer & Commercial Services",Community Services,Premises-Related Expenditure,Grounds Maintenance - Other,R Taylor Limited,05/05/2023,355.00
"Communities, Customer & Commercial Services",Community Services,Supplies & Services,Equipment - Hire,TELFORD TOILET HIRE,11/05/2023,160.00
"Communities, Customer & Commercial Services",Community Services,Supplies & Services,Grants To Voluntary Organis,R F PHOTOGRAPHY,15/05/2023,800.00
"Communities, Customer & Commercial Services",Community Services,Capital Expenditure,Payments to Contractor,R & D Peugeot Manchester,17/05/2023,"27,910.00"
"Communities, Customer & Commercial Services",Community Services,Capital Expenditure,Payments to Contractor,R & D Peugeot Manchester,17/05/2023,595.83
"Communities, Customer & Commercial Services",Community Services,Capital Expenditure,Payments to Contractor,R & D Peugeot Manchester,17/05/2023,210.00
"Communities, Customer & Commercial Services",Community Services,Capital Expenditure,Payments to Contractor,R & D Peugeot Manchester,17/05/2023,"-3,000.00"
"Communities, Customer & Commercial Services",Community Services,Capital Expenditure,Payments to Contractor,R & D Peugeot Manchester,17/05/2023,"-6,100.66"
"Communities, Customer & Commercial Services",Culture & Events,Supplies & Services,Marketing & Publicity,Secret Severn Art Trail,03/05/2023,400.00
"Communities, Customer & Commercial Services",Culture & Events,Supplies & Services,Advertising,Colston Media Ltd,03/05/2023,170.00
"Communities, Customer & Commercial Services",Culture & Events,Supplies & Services,Advertising,Colston Media Ltd,19/05/2023,170.00
"Communities, Customer & Commercial Services",Culture & Events,Supplies & Services,Promotion Expenses,crowdEngage Limited,22/05/2023,255.42
"Communities, Customer & Commercial Services",Culture & Events,Supplies & Services,Service Contracts,FREELANCE BUSINESS ASSOCIATES,16/05/2023,735.00
"Communities, Customer & Commercial Services",Culture & Events,Supplies & Services,Performing Rights Fees,PPL PRS Ltd,04/05/2023,949.98
"Communities, Customer & Commercial Services",Culture & Events,Supplies & Services,Promotion Expenses,Spektrix Limited,22/05/2023,"2,069.94"
"Communities, Customer & Commercial Services",Culture & Events,Supplies & Services,Advertising,THE MIDLAND NEWS ASSOCIATION LTD,05/05/2023,510.00
"Communities, Customer & Commercial Services",Culture & Events,Supplies & Services,Advertising,WHATS ON MAGAZINES LTD,16/05/2023,275.00
"Communities, Customer & Commercial Services",Culture & Events,Supplies & Services,Artistes Fees,Bound And Gagged Limited,18/05/2023,"8,820.00"
"Communities, Customer & Commercial Services",Culture & Events,Supplies & Services,Artistes Fees,E Live Ltd,18/05/2023,"6,866.21"
"Communities, Customer & Commercial Services",Culture & Events,Supplies & Services,Artistes Fees,Mister M Limited,05/05/2023,"1,289.36"
"Communities, Customer & Commercial Services",Culture & Events,Supplies & Services,Artistes Fees,NS Productions,18/05/2023,"1,718.11"
"Communities, Customer & Commercial Services",Culture & Events,Supplies & Services,Artistes Fees,TADLOP,18/05/2023,"10,452.00"
"Communities, Customer & Commercial Services",Culture & Events,Supplies & Services,Artistes Fees,The Arts Centre Telford,02/05/2023,"9,838.30"
"Communities, Customer & Commercial Services",Culture & Events,Supplies & Services,Artistes Fees,The Bootleg Shadows,15/05/2023,"1,108.07"
"Communities, Customer & Commercial Services",Culture & Events,Supplies & Services,Promotion Expenses,Ticketplan Limited,22/05/2023,443.20
"Communities, Customer & Commercial Services",Culture & Events,Supplies & Services,Provisions,BIKOLD,05/05/2023,184.24
"Communities, Customer & Commercial Services",Culture & Events,Supplies & Services,Wet Resale Provision,MOLSON COORS BREWING COMPANY UK LTD,24/05/2023,148.08
"Communities, Customer & Commercial Services",Culture & Events,Supplies & Services,Wet Resale Provision,MOLSON COORS BREWING COMPANY UK LTD,24/05/2023,116.37
"Communities, Customer & Commercial Services",Culture & Events,Supplies & Services,Wet Resale Provision,MOLSON COORS BREWING COMPANY UK LTD,24/05/2023,145.73
"Communities, Customer & Commercial Services",Culture & Events,Supplies & Services,Wet Resale Provision,MOLSON COORS BREWING COMPANY UK LTD,30/05/2023,145.89
"Communities, Customer & Commercial Services",Culture & Events,Supplies & Services,Wet Resale Provision,MOLSON COORS BREWING COMPANY UK LTD,30/05/2023,232.74
"Communities, Customer & Commercial Services",Culture & Events,Supplies & Services,Wet Resale Provision,MOLSON COORS BREWING COMPANY UK LTD,30/05/2023,145.73
"Communities, Customer & Commercial Services",Culture & Events,Supplies & Services,Wet Resale Provision,MOLSON COORS BREWING COMPANY UK LTD,30/05/2023,107.35
"Communities, Customer & Commercial Services",Culture & Events,Supplies & Services,Wet Resale Provision,MOLSON COORS BREWING COMPANY UK LTD,30/05/2023,148.08
"Communities, Customer & Commercial Services",Culture & Events,Supplies & Services,Wet Resale Provision,MOLSON COORS BREWING COMPANY UK LTD,30/05/2023,291.46
"Communities, Customer & Commercial Services",Culture & Events,Supplies & Services,Wet Resale Provision,MOLSON COORS BREWING COMPANY UK LTD,30/05/2023,232.74
"Communities, Customer & Commercial Services",Culture & Events,Supplies & Services,Wet Resale Provision,MOLSON COORS BREWING COMPANY UK LTD,30/05/2023,145.89
"Communities, Customer & Commercial Services",Culture & Events,Supplies & Services,Wet Resale Provision,MOLSON COORS BREWING COMPANY UK LTD,15/05/2023,116.37
"Communities, Customer & Commercial Services",Culture & Events,Supplies & Services,Wet Resale Provision,MOLSON COORS BREWING COMPANY UK LTD,30/05/2023,232.74
"Communities, Customer & Commercial Services",Culture & Events,Supplies & Services,Wet Resale Provision,MOLSON COORS BREWING COMPANY UK LTD,30/05/2023,145.89
"Communities, Customer & Commercial Services",Culture & Events,Supplies & Services,Wet Resale Provision,MOLSON COORS BREWING COMPANY UK LTD,30/05/2023,173.97
"Communities, Customer & Commercial Services",Culture & Events,Supplies & Services,Wet Resale Provision,MOLSON COORS BREWING COMPANY UK LTD,25/05/2023,"3,053.70"
"Communities, Customer & Commercial Services",Culture & Events,Employees,Staff Training,Simpleview Europe,31/05/2023,150.00
"Communities, Customer & Commercial Services",Culture & Events,Employees,Staff Training,Simpleview Europe,31/05/2023,150.00
"Communities, Customer & Commercial Services",Culture & Events,Premises-Related Expenditure,Electricity,TOTAL GAS & POWER LIMITED,31/05/2023,125.87
"Communities, Customer & Commercial Services",Culture & Events,Supplies & Services,Grants To Voluntary Organis,GREAT DAWLEY PARISH COUNCIL,04/05/2023,"4,900.00"
"Communities, Customer & Commercial Services",Culture & Events,Supplies & Services,Grants To Voluntary Organis,MADELEY TOWN COUNCIL ,04/05/2023,"5,000.00"
"Communities, Customer & Commercial Services",Culture & Events,Supplies & Services,Artistes Fees,Midland Entertainment,18/05/2023,"3,800.00"
"Communities, Customer & Commercial Services",Culture & Events,Supplies & Services,Equipment - Hire,Midlands Events Ltd,05/05/2023,900.00
"Communities, Customer & Commercial Services",Culture & Events,Supplies & Services,Grants To Voluntary Organis,NEWPORT TOWN COUNCIL,16/05/2023,"4,000.00"
"Communities, Customer & Commercial Services",Culture & Events,Supplies & Services,Grants To Voluntary Organis,OAKENGATES TOWN COUNCIL,03/05/2023,"5,000.00"
"Communities, Customer & Commercial Services",Culture & Events,Supplies & Services,Equipment - Hire,PG Skips Ltd,09/05/2023,401.64
"Communities, Customer & Commercial Services",Culture & Events,Supplies & Services,Equipment - Hire,PG Skips Ltd,05/05/2023,"1,046.00"
"Communities, Customer & Commercial Services",Culture & Events,Supplies & Services,Security Services,Prosecure 2000 Ltd,10/05/2023,"3,839.25"
"Communities, Customer & Commercial Services",Culture & Events,Supplies & Services,Equipment - Hire,TELFORD TOILET HIRE,03/05/2023,"1,620.00"
"Communities, Customer & Commercial Services",Culture & Events,Supplies & Services,Equipment - Hire,Show Systems Marquees Ltd,03/05/2023,"2,595.00"
"Communities, Customer & Commercial Services",Culture & Events,Supplies & Services,Equipment - Hire,Shropshire Festivals Limited,15/05/2023,200.00
"Communities, Customer & Commercial Services",Culture & Events,Supplies & Services,Artistes Fees,Sound Intervention Ltd,16/05/2023,"1,250.00"
"Communities, Customer & Commercial Services",Culture & Events,Supplies & Services,Artistes Fees,There and Back Light Railway Co Ltd,09/05/2023,750.00
"Communities, Customer & Commercial Services",Culture & Events,Supplies & Services,Grants To Voluntary Organis,WELLINGTON TOWN COUNCIL,24/05/2023,"3,011.00"
"Communities, Customer & Commercial Services",Culture & Events,Supplies & Services,Artistes Fees,Wrekin Forest School CIC,03/05/2023,350.00
"Communities, Customer & Commercial Services",Culture & Events,Transport-Related Expenditure,Outside Hire,ELCOCK REISEN,15/05/2023,120.00
"Communities, Customer & Commercial Services",Customer Relationships & Welfare Services,Supplies & Services,Legal Expenses,A Better Tomorrow C.I.C.,23/05/2023,"1,680.00"
"Communities, Customer & Commercial Services",Customer Relationships & Welfare Services,Supplies & Services,Legal Expenses,STAY TELFORD XC SUPPORTED HOUSE,12/05/2023,"3,624.00"
"Communities, Customer & Commercial Services",Customer Relationships & Welfare Services,Employees,Agency Supply Costs,E BROWN LTD,10/05/2023,850.50
"Communities, Customer & Commercial Services",Customer Relationships & Welfare Services,Employees,Agency Supply Costs,E BROWN LTD,10/05/2023,"1,066.50"
"Communities, Customer & Commercial Services",Customer Relationships & Welfare Services,Employees,Agency Supply Costs,E BROWN LTD,16/05/2023,864.00
"Communities, Customer & Commercial Services",Customer Relationships & Welfare Services,Supplies & Services,Other Grants (Expenses),Discretionary Household Support,12/05/2023,250.00
"Communities, Customer & Commercial Services",Customer Relationships & Welfare Services,Supplies & Services,Other Grants (Expenses),Discretionary Household Support,05/05/2023,623.31
"Communities, Customer & Commercial Services",Customer Relationships & Welfare Services,Supplies & Services,Other Grants (Expenses),Discretionary Household Support,17/05/2023,268.91
"Communities, Customer & Commercial Services",Customer Relationships & Welfare Services,Supplies & Services,Other Grants (Expenses),Discretionary Household Support,19/05/2023,480.00
"Communities, Customer & Commercial Services",Customer Relationships & Welfare Services,Supplies & Services,Other Grants (Expenses),Discretionary Household Support,15/05/2023,250.00
"Communities, Customer & Commercial Services",Customer Relationships & Welfare Services,Supplies & Services,Other Grants (Expenses),Discretionary Household Support,26/05/2023,160.00
"Communities, Customer & Commercial Services",Customer Relationships & Welfare Services,Supplies & Services,Other Grants (Expenses),Discretionary Household Support,26/05/2023,200.00
"Communities, Customer & Commercial Services",Customer Relationships & Welfare Services,Supplies & Services,Other Grants (Expenses),Hawk Incentives Ltd ,11/05/2023,"160,222.56"
"Communities, Customer & Commercial Services",Customer Relationships & Welfare Services,Supplies & Services,Other Grants (Expenses),Hawk Incentives Ltd ,02/05/2023,"39,488.00"
"Communities, Customer & Commercial Services",Customer Relationships & Welfare Services,Transfer Payments,Crisis Assistance Awards,PayPoint Network Limited,03/05/2023,319.00
"Communities, Customer & Commercial Services",Customer Relationships & Welfare Services,Transfer Payments,Crisis Assistance Awards,PayPoint Network Limited,18/05/2023,309.00
"Communities, Customer & Commercial Services",Customer Relationships & Welfare Services,Transfer Payments,Crisis Assistance Awards,PayPoint Network Limited,02/05/2023,323.00
"Communities, Customer & Commercial Services",Customer Relationships & Welfare Services,Transfer Payments,Crisis Assistance Awards,PayPoint Network Limited,25/05/2023,410.00
"Communities, Customer & Commercial Services",Customer Relationships & Welfare Services,Supplies & Services,Comp Software (Purch / Hire),NEC Software Solutions UK Ltd,04/05/2023,"4,248.00"
"Communities, Customer & Commercial Services",Customer Relationships & Welfare Services,Supplies & Services,Comp Software (Purch / Hire),NEC Software Solutions UK Ltd,30/05/2023,"3,300.00"
"Communities, Customer & Commercial Services",Customer Relationships & Welfare Services,Supplies & Services,Permit Production - Blue Badge,APS Group,17/05/2023,939.80
"Communities, Customer & Commercial Services",Customer Relationships & Welfare Services,Supplies & Services,Blue Badge Assessments,Ascenti,12/05/2023,720.00
"Communities, Customer & Commercial Services",Customer Relationships & Welfare Services,Supplies & Services,Bus Pass Production,Euclid Limited,12/05/2023,772.33
"Communities, Customer & Commercial Services",Customer Relationships & Welfare Services,Supplies & Services,Permit Production - Blue Badge,Valtech Limited,03/05/2023,469.20
"Communities, Customer & Commercial Services",Customer Relationships & Welfare Services,Transfer Payments,Crisis Assistance Awards,Kings of the Road,25/05/2023,425.00
"Communities, Customer & Commercial Services",Customer Relationships & Welfare Services,Transfer Payments,Crisis Assistance Awards,Kings of the Road,25/05/2023,525.00
"Communities, Customer & Commercial Services",Customer Relationships & Welfare Services,Transfer Payments,Crisis Assistance Awards,Kings of the Road,25/05/2023,425.00
"Communities, Customer & Commercial Services",Customer Relationships & Welfare Services,Transfer Payments,Crisis Assistance Awards,Vortex Cleaning Ltd,25/05/2023,"1,155.00"
"Communities, Customer & Commercial Services",Customer Relationships & Welfare Services,Employees,Professional Subs,ICCM,02/05/2023,455.00
"Communities, Customer & Commercial Services",Customer Relationships & Welfare Services,Supplies & Services,Conference Expenses,APSE,09/05/2023,184.00
"Communities, Customer & Commercial Services",Customer Relationships & Welfare Services,Supplies & Services,Comp Software (Purch / Hire),GOWER CONSULTANTS LIMITED,05/05/2023,"1,865.89"
"Communities, Customer & Commercial Services",ICT,Premises-Related Expenditure,Hire Of Rooms,OAKENGATES TOWN COUNCIL,26/05/2023,108.00
"Communities, Customer & Commercial Services",ICT,Supplies & Services,Furniture - Purchase,POSTURITE LTD,26/05/2023,773.14
"Communities, Customer & Commercial Services",ICT,Supplies & Services,Telecomms,CAPITA BUSINESS SERVICES LTD ,31/05/2023,"1,330.23"
"Communities, Customer & Commercial Services",ICT,Supplies & Services,Telephones,BRITISH TELECOMMUNICATIONS PLC ,18/05/2023,"5,720.69"
"Communities, Customer & Commercial Services",ICT,Supplies & Services,Telephones,BRITISH TELECOMMUNICATIONS PLC ,04/05/2023,"5,737.44"
"Communities, Customer & Commercial Services",ICT,Supplies & Services,Mobile Phones,CCS MEDIA LIMITED,30/05/2023,397.50
"Communities, Customer & Commercial Services",ICT,Supplies & Services,Mobile Phones,CCS MEDIA LIMITED,30/05/2023,640.00
"Communities, Customer & Commercial Services",ICT,Supplies & Services,Mobile Phones,EE LTD AIRTIME,09/05/2023,"12,423.67"
"Communities, Customer & Commercial Services",ICT,Supplies & Services,Text Messages,PROCESS FLOWS UK LTD,12/05/2023,243.93
"Communities, Customer & Commercial Services",ICT,Supplies & Services,Telephones,Trustmarque Solutions Limited,30/05/2023,"2,777.84"
"Communities, Customer & Commercial Services",ICT,Supplies & Services,External Computer Use,PHOENIX SOFTWARE LTD,02/05/2023,"12,920.00"
"Communities, Customer & Commercial Services",ICT,Supplies & Services,Comp Software (Purch / Hire),PHOENIX SOFTWARE LTD,10/05/2023,"4,716.92"
"Communities, Customer & Commercial Services",ICT,Supplies & Services,Comp Software (Purch / Hire),PHOENIX SOFTWARE LTD,18/05/2023,"8,004.92"
"Communities, Customer & Commercial Services",ICT,Supplies & Services,Comp Software (Purch / Hire),PHOENIX SOFTWARE LTD,18/05/2023,"3,247.72"
"Communities, Customer & Commercial Services",ICT,Supplies & Services,Comp Software (Purch / Hire),PHOENIX SOFTWARE LTD,18/05/2023,644.20
"Communities, Customer & Commercial Services",ICT,Supplies & Services,Comp Software (Purch / Hire),PHOENIX SOFTWARE LTD,18/05/2023,"7,704.84"
"Communities, Customer & Commercial Services",ICT,Supplies & Services,Comp Software (Purch / Hire),PHOENIX SOFTWARE LTD,18/05/2023,"15,511.20"
"Communities, Customer & Commercial Services",ICT,Supplies & Services,Comp Software (Purch / Hire),PHOENIX SOFTWARE LTD,18/05/2023,"136,288.88"
"Communities, Customer & Commercial Services",ICT,Supplies & Services,Comp Software (Purch / Hire),PHOENIX SOFTWARE LTD,18/05/2023,"1,097.60"
"Communities, Customer & Commercial Services",ICT,Supplies & Services,Comp Software (Purch / Hire),PHOENIX SOFTWARE LTD,18/05/2023,"1,720.80"
"Communities, Customer & Commercial Services",ICT,Supplies & Services,Comp Software (Purch / Hire),PHOENIX SOFTWARE LTD,18/05/2023,366.72
"Communities, Customer & Commercial Services",ICT,Premises-Related Expenditure,R&M -Buildings DLO Charge,GRANVILLE CONSTRUCTION & MAINTENANCE LTD,12/05/2023,262.80
"Communities, Customer & Commercial Services",ICT,Premises-Related Expenditure,R&M -Buildings DLO Charge,PP ELECTRICAL SERVICES Ltd,09/05/2023,220.00
"Communities, Customer & Commercial Services",ICT,Premises-Related Expenditure,R&M -Buildings DLO Charge,R Control Systems Ltd,12/05/2023,450.00
"Communities, Customer & Commercial Services",ICT,Supplies & Services,Comp Software (Purch / Hire),ESTEEM SYSTEMS Ltd,15/05/2023,"3,480.00"
"Communities, Customer & Commercial Services",ICT,Supplies & Services,Comp Software (Purch / Hire),Monsido Limited,02/05/2023,"10,486.70"
"Communities, Customer & Commercial Services",ICT,Supplies & Services,Comp Software (Purch / Hire),PHOENIX SOFTWARE LTD,09/05/2023,"14,905.69"
"Communities, Customer & Commercial Services",ICT,Supplies & Services,Comp Software (Purch / Hire),PHOENIX SOFTWARE LTD,18/05/2023,"75,000.00"
"Communities, Customer & Commercial Services",ICT,Supplies & Services,External Computer Use,PHOENIX SOFTWARE LTD,02/05/2023,"25,080.00"
"Communities, Customer & Commercial Services",ICT,Supplies & Services,Telephones,Ghekko LTD,24/05/2023,120.00
"Communities, Customer & Commercial Services",ICT,Supplies & Services,Comp Hardware (Purch / Hire),ICTn Limited,18/05/2023,554.04
"Communities, Customer & Commercial Services",ICT,Supplies & Services,Comp Software (Purch / Hire),PHOENIX SOFTWARE LTD,18/05/2023,629.60
"Communities, Customer & Commercial Services",ICT,Capital Expenditure,Payments to Contractor,Access UK Ltd,18/05/2023,"94,500.00"
"Communities, Customer & Commercial Services",ICT,Capital Expenditure,Computer Software,Access UK Ltd,18/05/2023,"47,370.00"
"Communities, Customer & Commercial Services",ICT,Capital Expenditure,Payments to Contractor,Bramble Hub Limited,04/05/2023,191.26
"Communities, Customer & Commercial Services",ICT,Capital Expenditure,Payments to Contractor,Bramble Hub Limited,04/05/2023,"18,458.32"
"Communities, Customer & Commercial Services",ICT,Capital Expenditure,Payments to Contractor,Bramble Hub Limited,03/05/2023,"18,479.17"
"Communities, Customer & Commercial Services",ICT,Capital Expenditure,Payments to Contractor,CCS MEDIA LIMITED,03/05/2023,625.00
"Communities, Customer & Commercial Services",ICT,Capital Expenditure,Computer Hardware,CCS MEDIA LIMITED,31/05/2023,"1,088.00"
"Communities, Customer & Commercial Services",ICT,Capital Expenditure,Computer Hardware,CCS MEDIA LIMITED,31/05/2023,"1,992.00"
"Communities, Customer & Commercial Services",ICT,Capital Expenditure,Computer Hardware,CCS MEDIA LIMITED,12/05/2023,205.00
"Communities, Customer & Commercial Services",ICT,Capital Expenditure,Computer Hardware,CCS MEDIA LIMITED,23/05/2023,"1,400.00"
"Communities, Customer & Commercial Services",ICT,Capital Expenditure,Computer Hardware,CCS MEDIA LIMITED,03/05/2023,"12,420.00"
"Communities, Customer & Commercial Services",ICT,Capital Expenditure,Computer Hardware,CCS MEDIA LIMITED,04/05/2023,"13,340.00"
"Communities, Customer & Commercial Services",ICT,Capital Expenditure,Computer Hardware,CCS MEDIA LIMITED,02/05/2023,"1,390.00"
"Communities, Customer & Commercial Services",ICT,Capital Expenditure,Computer Hardware,CCS MEDIA LIMITED,10/05/2023,320.00
"Communities, Customer & Commercial Services",ICT,Capital Expenditure,Computer Hardware,CCS MEDIA LIMITED,12/05/2023,"2,100.75"
"Communities, Customer & Commercial Services",ICT,Capital Expenditure,Computer Hardware,CCS MEDIA LIMITED,12/05/2023,180.00
"Communities, Customer & Commercial Services",ICT,Capital Expenditure,Computer Hardware,CCS MEDIA LIMITED,18/05/2023,"6,860.00"
"Communities, Customer & Commercial Services",ICT,Capital Expenditure,Computer Hardware,CCS MEDIA LIMITED,18/05/2023,"2,200.00"
"Communities, Customer & Commercial Services",ICT,Capital Expenditure,Computer Hardware,CCS MEDIA LIMITED,25/05/2023,"26,570.00"
"Communities, Customer & Commercial Services",ICT,Capital Expenditure,Computer Hardware,CCS MEDIA LIMITED,25/05/2023,"3,000.00"
"Communities, Customer & Commercial Services",ICT,Capital Expenditure,Computer Hardware,CCS MEDIA LIMITED,25/05/2023,"18,410.00"
"Communities, Customer & Commercial Services",ICT,Capital Expenditure,Computer Hardware,CCS MEDIA LIMITED,25/05/2023,"2,550.00"
"Communities, Customer & Commercial Services",ICT,Capital Expenditure,Computer Hardware,CCS MEDIA LIMITED,25/05/2023,"6,860.00"
"Communities, Customer & Commercial Services",ICT,Capital Expenditure,Computer Software,CIVICA UK LIMITED ,31/05/2023,"1,000.00"
"Communities, Customer & Commercial Services",ICT,Capital Expenditure,Computer Software,CIVICA UK LIMITED ,31/05/2023,"1,000.00"
"Communities, Customer & Commercial Services",ICT,Capital Expenditure,Computer Software,CIVICA UK LIMITED ,31/05/2023,"1,000.00"
"Communities, Customer & Commercial Services",ICT,Capital Expenditure,Computer Software,CIVICA UK LIMITED ,31/05/2023,"1,000.00"
"Communities, Customer & Commercial Services",ICT,Capital Expenditure,Computer Software,CIVICA UK LIMITED ,31/05/2023,"1,000.00"
"Communities, Customer & Commercial Services",ICT,Capital Expenditure,Computer Software,CIVICA UK LIMITED ,31/05/2023,"1,000.00"
"Communities, Customer & Commercial Services",ICT,Capital Expenditure,Computer Software,CIVICA UK LIMITED ,31/05/2023,"1,000.00"
"Communities, Customer & Commercial Services",ICT,Capital Expenditure,Computer Software,CIVICA UK LIMITED ,31/05/2023,"1,000.00"
"Communities, Customer & Commercial Services",ICT,Capital Expenditure,Computer Software,CIVICA UK LIMITED ,31/05/2023,"1,000.00"
"Communities, Customer & Commercial Services",ICT,Capital Expenditure,Computer Software,CIVICA UK LIMITED ,31/05/2023,"1,000.00"
"Communities, Customer & Commercial Services",ICT,Capital Expenditure,Computer Software,CIVICA UK LIMITED ,31/05/2023,"1,000.00"
"Communities, Customer & Commercial Services",ICT,Capital Expenditure,Computer Software,CIVICA UK LIMITED ,31/05/2023,"1,000.00"
"Communities, Customer & Commercial Services",ICT,Capital Expenditure,Computer Software,CIVICA UK LIMITED ,31/05/2023,"1,000.00"
"Communities, Customer & Commercial Services",ICT,Capital Expenditure,Computer Software,CIVICA UK LIMITED ,31/05/2023,"1,000.00"
"Communities, Customer & Commercial Services",ICT,Capital Expenditure,Computer Software,CIVICA UK LIMITED ,31/05/2023,"1,000.00"
"Communities, Customer & Commercial Services",ICT,Capital Expenditure,Computer Software,CIVICA UK LIMITED ,31/05/2023,"1,000.00"
"Communities, Customer & Commercial Services",ICT,Capital Expenditure,Computer Software,CIVICA UK LIMITED ,31/05/2023,"1,000.00"
"Communities, Customer & Commercial Services",ICT,Capital Expenditure,Computer Software,CIVICA UK LIMITED ,31/05/2023,"3,500.00"
"Communities, Customer & Commercial Services",ICT,Capital Expenditure,Computer Hardware,Daisy Corporate Services Trading Limited,03/05/2023,"23,244.72"
"Communities, Customer & Commercial Services",ICT,Capital Expenditure,Computer Hardware,Daisy Corporate Services Trading Limited,03/05/2023,505.32
"Communities, Customer & Commercial Services",ICT,Capital Expenditure,Payments to Contractor,FarrPoint Ltd,05/05/2023,981.25
"Communities, Customer & Commercial Services",ICT,Capital Expenditure,Computer Software,Trustmarque Solutions Limited,02/05/2023,"11,872.50"
"Communities, Customer & Commercial Services",ICT,Capital Expenditure,Computer Software,Trustmarque Solutions Limited,02/05/2023,"1,894.04"
"Communities, Customer & Commercial Services",ICT,Capital Expenditure,Computer Software,Trustmarque Solutions Limited,02/05/2023,"1,742.52"
"Communities, Customer & Commercial Services",ICT,Capital Expenditure,Payments to Contractor,Zellis UK Ltd,24/05/2023,"1,504.00"
"Communities, Customer & Commercial Services",ICT,Capital Expenditure,Payments to Contractor,Zellis UK Ltd,26/05/2023,"1,739.00"
"Communities, Customer & Commercial Services",ICT,Capital Expenditure,Payments to Contractor,Zellis UK Ltd,26/05/2023,"1,034.00"
"Communities, Customer & Commercial Services",Sport & Leisure,Premises-Related Expenditure,Electricity,EON next,25/05/2023,235.61
"Communities, Customer & Commercial Services",Sport & Leisure,Premises-Related Expenditure,R&M -Buildings DLO Charge,PROKILL UK LIMITED,11/05/2023,165.00
"Communities, Customer & Commercial Services",Sport & Leisure,Employees,Hospitality,DEWBERRY REDPOINT LTD,25/05/2023,495.00
"Communities, Customer & Commercial Services",Sport & Leisure,Supplies & Services,Subscriptions,APSE,03/05/2023,743.40
"Communities, Customer & Commercial Services",Sport & Leisure,Supplies & Services,Crockery/Hardware/Light Equip,CALTEL CATERING & LAUNDRY EQUIPMENT LLP,02/05/2023,800.00
"Communities, Customer & Commercial Services",Sport & Leisure,Supplies & Services,EEC Whole Milk,J DAIRIES,11/05/2023,748.41
"Communities, Customer & Commercial Services",Sport & Leisure,Supplies & Services,EEC Whole Milk,J DAIRIES,11/05/2023,"1,569.04"
"Communities, Customer & Commercial Services",Sport & Leisure,Supplies & Services,Legal Expenses,J DAIRIES,05/05/2023,"1,746.96"
"Communities, Customer & Commercial Services",Sport & Leisure,Supplies & Services,EEC Whole Milk,J DAIRIES,25/05/2023,855.53
"Communities, Customer & Commercial Services",Sport & Leisure,Supplies & Services,EEC Whole Milk,J DAIRIES,25/05/2023,"1,745.56"
"Communities, Customer & Commercial Services",Sport & Leisure,Supplies & Services,EEC Whole Milk,J DAIRIES,19/05/2023,"1,469.64"
"Communities, Customer & Commercial Services",Sport & Leisure,Supplies & Services,EEC Whole Milk,J DAIRIES,19/05/2023,709.64
"Communities, Customer & Commercial Services",Sport & Leisure,Supplies & Services,Provisions,BIKOLD,25/05/2023,106.25
"Communities, Customer & Commercial Services",Sport & Leisure,Supplies & Services,Provisions,BIKOLD,18/05/2023,165.97
"Communities, Customer & Commercial Services",Sport & Leisure,Supplies & Services,Provisions,BIKOLD,05/05/2023,171.88
"Communities, Customer & Commercial Services",Sport & Leisure,Employees,Agency Supply Costs,TOTAL CATERING SOLUTONS RECRUITMENT LTD,04/05/2023,320.00
"Communities, Customer & Commercial Services",Sport & Leisure,Employees,Agency Supply Costs,TOTAL CATERING SOLUTONS RECRUITMENT LTD,04/05/2023,256.00
"Communities, Customer & Commercial Services",Sport & Leisure,Employees,Agency Supply Costs,TOTAL CATERING SOLUTONS RECRUITMENT LTD,04/05/2023,192.00
"Communities, Customer & Commercial Services",Sport & Leisure,Employees,Agency Supply Costs,TOTAL CATERING SOLUTONS RECRUITMENT LTD,04/05/2023,320.00
"Communities, Customer & Commercial Services",Sport & Leisure,Premises-Related Expenditure,Clean Mats & Toilet Requisites,Border Janitorial Supplies Limited,22/05/2023,128.61
"Communities, Customer & Commercial Services",Sport & Leisure,Premises-Related Expenditure,Clean Mats & Toilet Requisites,Border Janitorial Supplies Limited,22/05/2023,283.58
"Communities, Customer & Commercial Services",Sport & Leisure,Premises-Related Expenditure,Clean Mats & Toilet Requisites,Border Janitorial Supplies Limited,05/05/2023,165.88
"Communities, Customer & Commercial Services",Sport & Leisure,Premises-Related Expenditure,Clean Mats & Toilet Requisites,Border Janitorial Supplies Limited,05/05/2023,265.05
"Communities, Customer & Commercial Services",Sport & Leisure,Premises-Related Expenditure,Clean Mats & Toilet Requisites,Border Janitorial Supplies Limited,22/05/2023,108.04
"Communities, Customer & Commercial Services",Sport & Leisure,Premises-Related Expenditure,Clean Mats & Toilet Requisites,Border Janitorial Supplies Limited,22/05/2023,110.93
"Communities, Customer & Commercial Services",Sport & Leisure,Premises-Related Expenditure,Clean Mats & Toilet Requisites,Border Janitorial Supplies Limited,16/05/2023,246.51
"Communities, Customer & Commercial Services",Sport & Leisure,Premises-Related Expenditure,Clean Mats & Toilet Requisites,Border Janitorial Supplies Limited,25/05/2023,340.16
"Communities, Customer & Commercial Services",Sport & Leisure,Premises-Related Expenditure,Clean Mats & Toilet Requisites,Border Janitorial Supplies Limited,25/05/2023,324.33
"Communities, Customer & Commercial Services",Sport & Leisure,Premises-Related Expenditure,Clean Mats & Toilet Requisites,Border Janitorial Supplies Limited,25/05/2023,101.45
"Communities, Customer & Commercial Services",Sport & Leisure,Supplies & Services,Crockery/Hardware/Light Equip,CALTEL CATERING & LAUNDRY EQUIPMENT LLP,02/05/2023,105.00
"Communities, Customer & Commercial Services",Sport & Leisure,Supplies & Services,Provisions,BIKOLD,05/05/2023,117.82
"Communities, Customer & Commercial Services",Sport & Leisure,Supplies & Services,Provisions,BIKOLD,05/05/2023,445.98
"Communities, Customer & Commercial Services",Sport & Leisure,Supplies & Services,Provisions,BIKOLD,18/05/2023,120.45
"Communities, Customer & Commercial Services",Sport & Leisure,Supplies & Services,Provisions,BIKOLD,18/05/2023,117.71
"Communities, Customer & Commercial Services",Sport & Leisure,Supplies & Services,Provisions,BIKOLD,18/05/2023,240.25
"Communities, Customer & Commercial Services",Sport & Leisure,Supplies & Services,Provisions,BIKOLD,18/05/2023,187.92
"Communities, Customer & Commercial Services",Sport & Leisure,Supplies & Services,Provisions,BIKOLD,18/05/2023,484.72
"Communities, Customer & Commercial Services",Sport & Leisure,Supplies & Services,Provisions,BIKOLD,18/05/2023,122.46
"Communities, Customer & Commercial Services",Sport & Leisure,Supplies & Services,Provisions,BIKOLD,12/05/2023,195.23
"Communities, Customer & Commercial Services",Sport & Leisure,Supplies & Services,Provisions,BIKOLD,12/05/2023,213.95
"Communities, Customer & Commercial Services",Sport & Leisure,Supplies & Services,Provisions,BIKOLD,12/05/2023,285.59
"Communities, Customer & Commercial Services",Sport & Leisure,Supplies & Services,Provisions,BIKOLD,12/05/2023,282.98
"Communities, Customer & Commercial Services",Sport & Leisure,Supplies & Services,Provisions,BIKOLD,12/05/2023,261.94
"Communities, Customer & Commercial Services",Sport & Leisure,Supplies & Services,Provisions,BIKOLD,12/05/2023,142.80
"Communities, Customer & Commercial Services",Sport & Leisure,Supplies & Services,Provisions,BIKOLD,12/05/2023,152.32
"Communities, Customer & Commercial Services",Sport & Leisure,Supplies & Services,Provisions,BIKOLD,12/05/2023,159.16
"Communities, Customer & Commercial Services",Sport & Leisure,Supplies & Services,Provisions,BIKOLD,12/05/2023,301.68
"Communities, Customer & Commercial Services",Sport & Leisure,Supplies & Services,Provisions,BIKOLD,12/05/2023,187.82
"Communities, Customer & Commercial Services",Sport & Leisure,Supplies & Services,Provisions,BIKOLD,12/05/2023,208.35
"Communities, Customer & Commercial Services",Sport & Leisure,Supplies & Services,Provisions,BIKOLD,12/05/2023,171.83
"Communities, Customer & Commercial Services",Sport & Leisure,Supplies & Services,Provisions,BIKOLD,12/05/2023,284.91
"Communities, Customer & Commercial Services",Sport & Leisure,Supplies & Services,Provisions,BIKOLD,12/05/2023,272.72
"Communities, Customer & Commercial Services",Sport & Leisure,Supplies & Services,Provisions,BIKOLD,12/05/2023,354.91
"Communities, Customer & Commercial Services",Sport & Leisure,Supplies & Services,Provisions,BIKOLD,12/05/2023,-184.06
"Communities, Customer & Commercial Services",Sport & Leisure,Supplies & Services,Provisions,BIKOLD,12/05/2023,150.90
"Communities, Customer & Commercial Services",Sport & Leisure,Supplies & Services,Provisions,BIKOLD,12/05/2023,-116.05
"Communities, Customer & Commercial Services",Sport & Leisure,Supplies & Services,Provisions,BIKOLD,12/05/2023,552.66
"Communities, Customer & Commercial Services",Sport & Leisure,Supplies & Services,Provisions,BIKOLD,12/05/2023,249.14
"Communities, Customer & Commercial Services",Sport & Leisure,Supplies & Services,Provisions,BIKOLD,12/05/2023,585.99
"Communities, Customer & Commercial Services",Sport & Leisure,Supplies & Services,Provisions,BIKOLD,12/05/2023,444.09
"Communities, Customer & Commercial Services",Sport & Leisure,Supplies & Services,Provisions,BIKOLD,12/05/2023,404.71
"Communities, Customer & Commercial Services",Sport & Leisure,Supplies & Services,Provisions,BIKOLD,12/05/2023,285.47
"Communities, Customer & Commercial Services",Sport & Leisure,Supplies & Services,Provisions,BIKOLD,12/05/2023,179.67
"Communities, Customer & Commercial Services",Sport & Leisure,Supplies & Services,Provisions,BIKOLD,12/05/2023,197.19
"Communities, Customer & Commercial Services",Sport & Leisure,Supplies & Services,Provisions,BIKOLD,12/05/2023,109.98
"Communities, Customer & Commercial Services",Sport & Leisure,Supplies & Services,Provisions,BIKOLD,12/05/2023,160.28
"Communities, Customer & Commercial Services",Sport & Leisure,Supplies & Services,Provisions,BIKOLD,12/05/2023,134.38
"Communities, Customer & Commercial Services",Sport & Leisure,Supplies & Services,Provisions,BIKOLD,12/05/2023,117.95
"Communities, Customer & Commercial Services",Sport & Leisure,Supplies & Services,Provisions,BIKOLD,12/05/2023,242.11
"Communities, Customer & Commercial Services",Sport & Leisure,Supplies & Services,Provisions,BIKOLD,12/05/2023,209.79
"Communities, Customer & Commercial Services",Sport & Leisure,Supplies & Services,Provisions,BIKOLD,05/05/2023,141.43
"Communities, Customer & Commercial Services",Sport & Leisure,Supplies & Services,Provisions,BIKOLD,05/05/2023,472.94
"Communities, Customer & Commercial Services",Sport & Leisure,Supplies & Services,Provisions,BIKOLD,05/05/2023,366.92
"Communities, Customer & Commercial Services",Sport & Leisure,Supplies & Services,Provisions,BIKOLD,05/05/2023,237.51
"Communities, Customer & Commercial Services",Sport & Leisure,Supplies & Services,Provisions,BIKOLD,05/05/2023,379.87
"Communities, Customer & Commercial Services",Sport & Leisure,Supplies & Services,Provisions,BIKOLD,05/05/2023,407.34
"Communities, Customer & Commercial Services",Sport & Leisure,Supplies & Services,Provisions,BIKOLD,05/05/2023,761.03
"Communities, Customer & Commercial Services",Sport & Leisure,Supplies & Services,Provisions,BIKOLD,05/05/2023,325.88
"Communities, Customer & Commercial Services",Sport & Leisure,Supplies & Services,Provisions,BIKOLD,05/05/2023,568.54
"Communities, Customer & Commercial Services",Sport & Leisure,Supplies & Services,Provisions,BIKOLD,05/05/2023,131.01
"Communities, Customer & Commercial Services",Sport & Leisure,Supplies & Services,Provisions,BIKOLD,05/05/2023,822.78
"Communities, Customer & Commercial Services",Sport & Leisure,Supplies & Services,Provisions,BIKOLD,05/05/2023,246.59
"Communities, Customer & Commercial Services",Sport & Leisure,Supplies & Services,Provisions,BIKOLD,05/05/2023,256.75
"Communities, Customer & Commercial Services",Sport & Leisure,Supplies & Services,Provisions,BIKOLD,05/05/2023,118.98
"Communities, Customer & Commercial Services",Sport & Leisure,Supplies & Services,Provisions,BIKOLD,05/05/2023,372.33
"Communities, Customer & Commercial Services",Sport & Leisure,Supplies & Services,Provisions,BIKOLD,05/05/2023,146.07
"Communities, Customer & Commercial Services",Sport & Leisure,Supplies & Services,Provisions,BIKOLD,05/05/2023,214.86
"Communities, Customer & Commercial Services",Sport & Leisure,Supplies & Services,Provisions,BIKOLD,05/05/2023,248.06
"Communities, Customer & Commercial Services",Sport & Leisure,Supplies & Services,Provisions,BIKOLD,05/05/2023,289.60
"Communities, Customer & Commercial Services",Sport & Leisure,Supplies & Services,Provisions,BIKOLD,05/05/2023,120.99
"Communities, Customer & Commercial Services",Sport & Leisure,Supplies & Services,Provisions,BIKOLD,05/05/2023,134.97
"Communities, Customer & Commercial Services",Sport & Leisure,Supplies & Services,Provisions,BIKOLD,05/05/2023,205.76
"Communities, Customer & Commercial Services",Sport & Leisure,Supplies & Services,Provisions,BIKOLD,05/05/2023,628.60
"Communities, Customer & Commercial Services",Sport & Leisure,Supplies & Services,Provisions,BIKOLD,05/05/2023,401.56
"Communities, Customer & Commercial Services",Sport & Leisure,Supplies & Services,Provisions,BIKOLD,05/05/2023,118.26
"Communities, Customer & Commercial Services",Sport & Leisure,Supplies & Services,Provisions,BIKOLD,05/05/2023,117.46
"Communities, Customer & Commercial Services",Sport & Leisure,Supplies & Services,Provisions,BIKOLD,05/05/2023,108.83
"Communities, Customer & Commercial Services",Sport & Leisure,Supplies & Services,Provisions,BIKOLD,05/05/2023,148.47
"Communities, Customer & Commercial Services",Sport & Leisure,Supplies & Services,Provisions,BIKOLD,05/05/2023,134.03
"Communities, Customer & Commercial Services",Sport & Leisure,Supplies & Services,Provisions,BIKOLD,05/05/2023,285.36
"Communities, Customer & Commercial Services",Sport & Leisure,Supplies & Services,Provisions,BIKOLD,05/05/2023,169.82
"Communities, Customer & Commercial Services",Sport & Leisure,Supplies & Services,Provisions,BIKOLD,05/05/2023,141.66
"Communities, Customer & Commercial Services",Sport & Leisure,Supplies & Services,Provisions,BIKOLD,05/05/2023,115.68
"Communities, Customer & Commercial Services",Sport & Leisure,Supplies & Services,Provisions,BIKOLD,05/05/2023,280.78
"Communities, Customer & Commercial Services",Sport & Leisure,Supplies & Services,Provisions,BIKOLD,05/05/2023,500.34
"Communities, Customer & Commercial Services",Sport & Leisure,Supplies & Services,Provisions,BIKOLD,05/05/2023,366.99
"Communities, Customer & Commercial Services",Sport & Leisure,Supplies & Services,Provisions,BIKOLD,05/05/2023,146.27
"Communities, Customer & Commercial Services",Sport & Leisure,Supplies & Services,Provisions,BIKOLD,05/05/2023,141.61
"Communities, Customer & Commercial Services",Sport & Leisure,Supplies & Services,Provisions,BIKOLD,05/05/2023,122.09
"Communities, Customer & Commercial Services",Sport & Leisure,Supplies & Services,Provisions,BIKOLD,05/05/2023,421.77
"Communities, Customer & Commercial Services",Sport & Leisure,Supplies & Services,Provisions,BIKOLD,05/05/2023,259.75
"Communities, Customer & Commercial Services",Sport & Leisure,Supplies & Services,Provisions,BIKOLD,05/05/2023,119.99
"Communities, Customer & Commercial Services",Sport & Leisure,Supplies & Services,Provisions,BIKOLD,05/05/2023,465.97
"Communities, Customer & Commercial Services",Sport & Leisure,Supplies & Services,Provisions,BIKOLD,05/05/2023,160.48
"Communities, Customer & Commercial Services",Sport & Leisure,Supplies & Services,Provisions,BIKOLD,05/05/2023,629.22
"Communities, Customer & Commercial Services",Sport & Leisure,Supplies & Services,Provisions,BIKOLD,05/05/2023,220.63
"Communities, Customer & Commercial Services",Sport & Leisure,Supplies & Services,Provisions,BIKOLD,05/05/2023,146.29
"Communities, Customer & Commercial Services",Sport & Leisure,Supplies & Services,Provisions,BIKOLD,05/05/2023,165.67
"Communities, Customer & Commercial Services",Sport & Leisure,Supplies & Services,Provisions,BIKOLD,05/05/2023,197.92
"Communities, Customer & Commercial Services",Sport & Leisure,Supplies & Services,Provisions,BIKOLD,05/05/2023,912.04
"Communities, Customer & Commercial Services",Sport & Leisure,Supplies & Services,Provisions,BIKOLD,05/05/2023,584.64
"Communities, Customer & Commercial Services",Sport & Leisure,Supplies & Services,Provisions,BIKOLD,05/05/2023,266.81
"Communities, Customer & Commercial Services",Sport & Leisure,Supplies & Services,Provisions,BIKOLD,05/05/2023,259.46
"Communities, Customer & Commercial Services",Sport & Leisure,Supplies & Services,Provisions,BIKOLD,05/05/2023,413.77
"Communities, Customer & Commercial Services",Sport & Leisure,Supplies & Services,Provisions,BIKOLD,05/05/2023,126.19
"Communities, Customer & Commercial Services",Sport & Leisure,Supplies & Services,Provisions,BIKOLD,05/05/2023,589.71
"Communities, Customer & Commercial Services",Sport & Leisure,Supplies & Services,Provisions,BIKOLD,05/05/2023,471.80
"Communities, Customer & Commercial Services",Sport & Leisure,Supplies & Services,Provisions,BIKOLD,05/05/2023,188.38
"Communities, Customer & Commercial Services",Sport & Leisure,Supplies & Services,Provisions,BIKOLD,05/05/2023,274.67
"Communities, Customer & Commercial Services",Sport & Leisure,Supplies & Services,Provisions,BIKOLD,05/05/2023,148.56
"Communities, Customer & Commercial Services",Sport & Leisure,Supplies & Services,Provisions,BIKOLD,05/05/2023,119.68
"Communities, Customer & Commercial Services",Sport & Leisure,Supplies & Services,Provisions,BIKOLD,05/05/2023,108.80
"Communities, Customer & Commercial Services",Sport & Leisure,Supplies & Services,Provisions,BIKOLD,05/05/2023,190.52
"Communities, Customer & Commercial Services",Sport & Leisure,Supplies & Services,Provisions,BIKOLD,05/05/2023,120.21
"Communities, Customer & Commercial Services",Sport & Leisure,Supplies & Services,Provisions,BIKOLD,05/05/2023,105.36
"Communities, Customer & Commercial Services",Sport & Leisure,Supplies & Services,Provisions,BIKOLD,05/05/2023,178.32
"Communities, Customer & Commercial Services",Sport & Leisure,Supplies & Services,Provisions,BIKOLD,05/05/2023,170.86
"Communities, Customer & Commercial Services",Sport & Leisure,Supplies & Services,Provisions,BIKOLD,05/05/2023,218.52
"Communities, Customer & Commercial Services",Sport & Leisure,Supplies & Services,Provisions,BIKOLD,05/05/2023,115.47
"Communities, Customer & Commercial Services",Sport & Leisure,Supplies & Services,Provisions,BIKOLD,05/05/2023,124.62
"Communities, Customer & Commercial Services",Sport & Leisure,Supplies & Services,Provisions,BIKOLD,05/05/2023,456.24
"Communities, Customer & Commercial Services",Sport & Leisure,Supplies & Services,Provisions,BIKOLD,05/05/2023,100.58
"Communities, Customer & Commercial Services",Sport & Leisure,Supplies & Services,Provisions,BIKOLD,05/05/2023,463.40
"Communities, Customer & Commercial Services",Sport & Leisure,Supplies & Services,Provisions,BIKOLD,05/05/2023,107.60
"Communities, Customer & Commercial Services",Sport & Leisure,Supplies & Services,Provisions,BIKOLD,05/05/2023,138.86
"Communities, Customer & Commercial Services",Sport & Leisure,Supplies & Services,Provisions,BIKOLD,05/05/2023,109.14
"Communities, Customer & Commercial Services",Sport & Leisure,Supplies & Services,Provisions,BIKOLD,05/05/2023,104.96
"Communities, Customer & Commercial Services",Sport & Leisure,Supplies & Services,Provisions,BIKOLD,05/05/2023,187.21
"Communities, Customer & Commercial Services",Sport & Leisure,Supplies & Services,Provisions,BIKOLD,05/05/2023,297.37
"Communities, Customer & Commercial Services",Sport & Leisure,Supplies & Services,Provisions,BIKOLD,05/05/2023,122.88
"Communities, Customer & Commercial Services",Sport & Leisure,Supplies & Services,Provisions,BIKOLD,05/05/2023,364.57
"Communities, Customer & Commercial Services",Sport & Leisure,Supplies & Services,Provisions,BIKOLD,05/05/2023,193.83
"Communities, Customer & Commercial Services",Sport & Leisure,Supplies & Services,Provisions,BIKOLD,05/05/2023,114.97
"Communities, Customer & Commercial Services",Sport & Leisure,Supplies & Services,Provisions,BIKOLD,18/05/2023,126.10
"Communities, Customer & Commercial Services",Sport & Leisure,Supplies & Services,Provisions,BIKOLD,18/05/2023,147.30
"Communities, Customer & Commercial Services",Sport & Leisure,Supplies & Services,Provisions,BIKOLD,18/05/2023,109.30
"Communities, Customer & Commercial Services",Sport & Leisure,Supplies & Services,Provisions,BIKOLD,18/05/2023,145.52
"Communities, Customer & Commercial Services",Sport & Leisure,Supplies & Services,Provisions,BIKOLD,18/05/2023,514.18
"Communities, Customer & Commercial Services",Sport & Leisure,Supplies & Services,Provisions,BIKOLD,18/05/2023,113.71
"Communities, Customer & Commercial Services",Sport & Leisure,Supplies & Services,Provisions,BIKOLD,18/05/2023,169.54
"Communities, Customer & Commercial Services",Sport & Leisure,Supplies & Services,Provisions,BIKOLD,18/05/2023,118.50
"Communities, Customer & Commercial Services",Sport & Leisure,Supplies & Services,Provisions,BIKOLD,18/05/2023,340.93
"Communities, Customer & Commercial Services",Sport & Leisure,Supplies & Services,Provisions,BIKOLD,18/05/2023,155.57
"Communities, Customer & Commercial Services",Sport & Leisure,Supplies & Services,Provisions,BIKOLD,18/05/2023,106.78
"Communities, Customer & Commercial Services",Sport & Leisure,Supplies & Services,Provisions,BIKOLD,18/05/2023,226.73
"Communities, Customer & Commercial Services",Sport & Leisure,Supplies & Services,Provisions,BIKOLD,18/05/2023,400.02
"Communities, Customer & Commercial Services",Sport & Leisure,Supplies & Services,Provisions,BIKOLD,18/05/2023,272.43
"Communities, Customer & Commercial Services",Sport & Leisure,Supplies & Services,Provisions,BIKOLD,18/05/2023,477.96
"Communities, Customer & Commercial Services",Sport & Leisure,Supplies & Services,Provisions,BIKOLD,18/05/2023,389.72
"Communities, Customer & Commercial Services",Sport & Leisure,Supplies & Services,Provisions,BIKOLD,18/05/2023,390.10
"Communities, Customer & Commercial Services",Sport & Leisure,Supplies & Services,Provisions,BIKOLD,18/05/2023,239.81
"Communities, Customer & Commercial Services",Sport & Leisure,Supplies & Services,Provisions,BIKOLD,18/05/2023,183.91
"Communities, Customer & Commercial Services",Sport & Leisure,Supplies & Services,Provisions,BIKOLD,18/05/2023,320.15
"Communities, Customer & Commercial Services",Sport & Leisure,Supplies & Services,Provisions,BIKOLD,18/05/2023,224.07
"Communities, Customer & Commercial Services",Sport & Leisure,Supplies & Services,Provisions,BIKOLD,18/05/2023,161.84
"Communities, Customer & Commercial Services",Sport & Leisure,Supplies & Services,Provisions,BIKOLD,18/05/2023,226.02
"Communities, Customer & Commercial Services",Sport & Leisure,Supplies & Services,Provisions,BIKOLD,18/05/2023,354.29
"Communities, Customer & Commercial Services",Sport & Leisure,Supplies & Services,Provisions,BIKOLD,18/05/2023,104.50
"Communities, Customer & Commercial Services",Sport & Leisure,Supplies & Services,Provisions,BIKOLD,18/05/2023,349.94
"Communities, Customer & Commercial Services",Sport & Leisure,Supplies & Services,Provisions,BIKOLD,18/05/2023,729.94
"Communities, Customer & Commercial Services",Sport & Leisure,Supplies & Services,Provisions,BIKOLD,18/05/2023,437.58
"Communities, Customer & Commercial Services",Sport & Leisure,Supplies & Services,Provisions,BIKOLD,18/05/2023,273.16
"Communities, Customer & Commercial Services",Sport & Leisure,Supplies & Services,Provisions,BIKOLD,18/05/2023,465.38
"Communities, Customer & Commercial Services",Sport & Leisure,Supplies & Services,Provisions,BIKOLD,18/05/2023,109.67
"Communities, Customer & Commercial Services",Sport & Leisure,Supplies & Services,Provisions,BIKOLD,18/05/2023,109.58
"Communities, Customer & Commercial Services",Sport & Leisure,Supplies & Services,Provisions,BIKOLD,18/05/2023,251.27
"Communities, Customer & Commercial Services",Sport & Leisure,Supplies & Services,Provisions,BIKOLD,18/05/2023,144.15
"Communities, Customer & Commercial Services",Sport & Leisure,Supplies & Services,Provisions,BIKOLD,18/05/2023,105.65
"Communities, Customer & Commercial Services",Sport & Leisure,Supplies & Services,Provisions,BIKOLD,18/05/2023,113.84
"Communities, Customer & Commercial Services",Sport & Leisure,Supplies & Services,Provisions,BIKOLD,18/05/2023,114.98
"Communities, Customer & Commercial Services",Sport & Leisure,Supplies & Services,Provisions,BIKOLD,18/05/2023,142.48
"Communities, Customer & Commercial Services",Sport & Leisure,Supplies & Services,Provisions,BIKOLD,18/05/2023,461.15
"Communities, Customer & Commercial Services",Sport & Leisure,Supplies & Services,Provisions,BIKOLD,18/05/2023,389.11
"Communities, Customer & Commercial Services",Sport & Leisure,Supplies & Services,Provisions,BIKOLD,18/05/2023,100.44
"Communities, Customer & Commercial Services",Sport & Leisure,Supplies & Services,Provisions,BIKOLD,18/05/2023,158.32
"Communities, Customer & Commercial Services",Sport & Leisure,Supplies & Services,Provisions,BIKOLD,18/05/2023,164.43
"Communities, Customer & Commercial Services",Sport & Leisure,Supplies & Services,Provisions,BIKOLD,18/05/2023,266.00
"Communities, Customer & Commercial Services",Sport & Leisure,Supplies & Services,Provisions,BIKOLD,18/05/2023,320.69
"Communities, Customer & Commercial Services",Sport & Leisure,Supplies & Services,Provisions,BIKOLD,18/05/2023,194.96
"Communities, Customer & Commercial Services",Sport & Leisure,Supplies & Services,Provisions,BIKOLD,18/05/2023,401.90
"Communities, Customer & Commercial Services",Sport & Leisure,Supplies & Services,Provisions,BIKOLD,18/05/2023,319.54
"Communities, Customer & Commercial Services",Sport & Leisure,Supplies & Services,Provisions,BIKOLD,18/05/2023,224.93
"Communities, Customer & Commercial Services",Sport & Leisure,Supplies & Services,Provisions,BIKOLD,18/05/2023,172.80
"Communities, Customer & Commercial Services",Sport & Leisure,Supplies & Services,Provisions,BIKOLD,18/05/2023,258.66
"Communities, Customer & Commercial Services",Sport & Leisure,Supplies & Services,Provisions,BIKOLD,18/05/2023,231.94
"Communities, Customer & Commercial Services",Sport & Leisure,Supplies & Services,Provisions,BIKOLD,18/05/2023,361.77
"Communities, Customer & Commercial Services",Sport & Leisure,Supplies & Services,Provisions,BIKOLD,18/05/2023,234.38
"Communities, Customer & Commercial Services",Sport & Leisure,Supplies & Services,Provisions,BIKOLD,18/05/2023,156.75
"Communities, Customer & Commercial Services",Sport & Leisure,Supplies & Services,Provisions,BIKOLD,18/05/2023,183.41
"Communities, Customer & Commercial Services",Sport & Leisure,Supplies & Services,Provisions,BIKOLD,18/05/2023,316.02
"Communities, Customer & Commercial Services",Sport & Leisure,Supplies & Services,Provisions,BIKOLD,18/05/2023,413.86
"Communities, Customer & Commercial Services",Sport & Leisure,Supplies & Services,Provisions,BIKOLD,18/05/2023,299.74
"Communities, Customer & Commercial Services",Sport & Leisure,Supplies & Services,Provisions,BIKOLD,18/05/2023,278.60
"Communities, Customer & Commercial Services",Sport & Leisure,Supplies & Services,Provisions,BIKOLD,18/05/2023,128.38
"Communities, Customer & Commercial Services",Sport & Leisure,Supplies & Services,Provisions,BIKOLD,18/05/2023,168.37
"Communities, Customer & Commercial Services",Sport & Leisure,Supplies & Services,Provisions,BIKOLD,18/05/2023,307.06
"Communities, Customer & Commercial Services",Sport & Leisure,Supplies & Services,Provisions,BIKOLD,18/05/2023,312.28
"Communities, Customer & Commercial Services",Sport & Leisure,Supplies & Services,Provisions,BIKOLD,18/05/2023,310.75
"Communities, Customer & Commercial Services",Sport & Leisure,Supplies & Services,Provisions,BIKOLD,18/05/2023,342.79
"Communities, Customer & Commercial Services",Sport & Leisure,Supplies & Services,Provisions,BIKOLD,18/05/2023,186.52
"Communities, Customer & Commercial Services",Sport & Leisure,Supplies & Services,Provisions,BIKOLD,18/05/2023,273.07
"Communities, Customer & Commercial Services",Sport & Leisure,Supplies & Services,Provisions,BIKOLD,18/05/2023,422.40
"Communities, Customer & Commercial Services",Sport & Leisure,Supplies & Services,Provisions,BIKOLD,18/05/2023,-133.60
"Communities, Customer & Commercial Services",Sport & Leisure,Supplies & Services,Provisions,BIKOLD,18/05/2023,203.62
"Communities, Customer & Commercial Services",Sport & Leisure,Supplies & Services,Provisions,BIKOLD,18/05/2023,153.03
"Communities, Customer & Commercial Services",Sport & Leisure,Supplies & Services,Provisions,BIKOLD,18/05/2023,339.09
"Communities, Customer & Commercial Services",Sport & Leisure,Supplies & Services,Provisions,BIKOLD,18/05/2023,279.28
"Communities, Customer & Commercial Services",Sport & Leisure,Supplies & Services,Provisions,BIKOLD,18/05/2023,278.43
"Communities, Customer & Commercial Services",Sport & Leisure,Supplies & Services,Provisions,BIKOLD,18/05/2023,203.62
"Communities, Customer & Commercial Services",Sport & Leisure,Supplies & Services,Provisions,BIKOLD,18/05/2023,199.12
"Communities, Customer & Commercial Services",Sport & Leisure,Supplies & Services,Provisions,BIKOLD,18/05/2023,164.88
"Communities, Customer & Commercial Services",Sport & Leisure,Supplies & Services,Provisions,BIKOLD,18/05/2023,135.54
"Communities, Customer & Commercial Services",Sport & Leisure,Supplies & Services,Provisions,BIKOLD,18/05/2023,139.96
"Communities, Customer & Commercial Services",Sport & Leisure,Supplies & Services,Provisions,BIKOLD,18/05/2023,206.12
"Communities, Customer & Commercial Services",Sport & Leisure,Supplies & Services,Provisions,BIKOLD,18/05/2023,165.37
"Communities, Customer & Commercial Services",Sport & Leisure,Supplies & Services,Provisions,BIKOLD,18/05/2023,596.59
"Communities, Customer & Commercial Services",Sport & Leisure,Supplies & Services,Provisions,BIKOLD,18/05/2023,369.91
"Communities, Customer & Commercial Services",Sport & Leisure,Supplies & Services,Provisions,BIKOLD,18/05/2023,185.89
"Communities, Customer & Commercial Services",Sport & Leisure,Supplies & Services,Provisions,BIKOLD,18/05/2023,392.36
"Communities, Customer & Commercial Services",Sport & Leisure,Supplies & Services,Provisions,BIKOLD,18/05/2023,338.97
"Communities, Customer & Commercial Services",Sport & Leisure,Supplies & Services,Provisions,BIKOLD,18/05/2023,107.30
"Communities, Customer & Commercial Services",Sport & Leisure,Supplies & Services,Provisions,BIKOLD,18/05/2023,104.36
"Communities, Customer & Commercial Services",Sport & Leisure,Supplies & Services,Provisions,BIKOLD,18/05/2023,137.34
"Communities, Customer & Commercial Services",Sport & Leisure,Supplies & Services,Provisions,BIKOLD,18/05/2023,103.22
"Communities, Customer & Commercial Services",Sport & Leisure,Supplies & Services,Provisions,BIKOLD,18/05/2023,236.16
"Communities, Customer & Commercial Services",Sport & Leisure,Supplies & Services,Provisions,BIKOLD,18/05/2023,262.48
"Communities, Customer & Commercial Services",Sport & Leisure,Supplies & Services,Provisions,BIKOLD,18/05/2023,371.96
"Communities, Customer & Commercial Services",Sport & Leisure,Supplies & Services,Provisions,BIKOLD,18/05/2023,227.44
"Communities, Customer & Commercial Services",Sport & Leisure,Supplies & Services,Provisions,BIKOLD,18/05/2023,111.65
"Communities, Customer & Commercial Services",Sport & Leisure,Supplies & Services,Provisions,BIKOLD,18/05/2023,859.36
"Communities, Customer & Commercial Services",Sport & Leisure,Supplies & Services,Provisions,BIKOLD,18/05/2023,110.79
"Communities, Customer & Commercial Services",Sport & Leisure,Supplies & Services,Provisions,BIKOLD,18/05/2023,199.36
"Communities, Customer & Commercial Services",Sport & Leisure,Supplies & Services,Provisions,BIKOLD,18/05/2023,100.84
"Communities, Customer & Commercial Services",Sport & Leisure,Supplies & Services,Provisions,BIKOLD,18/05/2023,130.14
"Communities, Customer & Commercial Services",Sport & Leisure,Supplies & Services,Provisions,BIKOLD,18/05/2023,112.41
"Communities, Customer & Commercial Services",Sport & Leisure,Supplies & Services,Provisions,BIKOLD,18/05/2023,122.79
"Communities, Customer & Commercial Services",Sport & Leisure,Supplies & Services,Provisions,BIKOLD,18/05/2023,349.71
"Communities, Customer & Commercial Services",Sport & Leisure,Supplies & Services,Provisions,BIKOLD,18/05/2023,208.66
"Communities, Customer & Commercial Services",Sport & Leisure,Supplies & Services,Provisions,BIKOLD,18/05/2023,336.70
"Communities, Customer & Commercial Services",Sport & Leisure,Supplies & Services,Provisions,BIKOLD,18/05/2023,160.11
"Communities, Customer & Commercial Services",Sport & Leisure,Supplies & Services,Provisions,BIKOLD,18/05/2023,117.51
"Communities, Customer & Commercial Services",Sport & Leisure,Supplies & Services,Provisions,BIKOLD,18/05/2023,343.23
"Communities, Customer & Commercial Services",Sport & Leisure,Supplies & Services,Provisions,BIKOLD,18/05/2023,111.12
"Communities, Customer & Commercial Services",Sport & Leisure,Supplies & Services,Provisions,BIKOLD,18/05/2023,216.05
"Communities, Customer & Commercial Services",Sport & Leisure,Supplies & Services,Provisions,BIKOLD,18/05/2023,134.67
"Communities, Customer & Commercial Services",Sport & Leisure,Supplies & Services,Provisions,BIKOLD,18/05/2023,106.06
"Communities, Customer & Commercial Services",Sport & Leisure,Supplies & Services,Provisions,BIKOLD,18/05/2023,148.13
"Communities, Customer & Commercial Services",Sport & Leisure,Supplies & Services,Provisions,BIKOLD,12/05/2023,-123.93
"Communities, Customer & Commercial Services",Sport & Leisure,Supplies & Services,Provisions,BIKOLD,12/05/2023,131.89
"Communities, Customer & Commercial Services",Sport & Leisure,Supplies & Services,Provisions,BIKOLD,12/05/2023,269.85
"Communities, Customer & Commercial Services",Sport & Leisure,Supplies & Services,Provisions,BIKOLD,12/05/2023,127.24
"Communities, Customer & Commercial Services",Sport & Leisure,Supplies & Services,Provisions,BIKOLD,12/05/2023,251.17
"Communities, Customer & Commercial Services",Sport & Leisure,Supplies & Services,Provisions,BIKOLD,12/05/2023,272.73
"Communities, Customer & Commercial Services",Sport & Leisure,Supplies & Services,Provisions,BIKOLD,12/05/2023,187.63
"Communities, Customer & Commercial Services",Sport & Leisure,Supplies & Services,Provisions,BIKOLD,12/05/2023,166.92
"Communities, Customer & Commercial Services",Sport & Leisure,Supplies & Services,Provisions,BIKOLD,12/05/2023,186.09
"Communities, Customer & Commercial Services",Sport & Leisure,Supplies & Services,Provisions,BIKOLD,12/05/2023,154.73
"Communities, Customer & Commercial Services",Sport & Leisure,Supplies & Services,Provisions,BIKOLD,12/05/2023,112.78
"Communities, Customer & Commercial Services",Sport & Leisure,Supplies & Services,Provisions,BIKOLD,12/05/2023,201.32
"Communities, Customer & Commercial Services",Sport & Leisure,Supplies & Services,Provisions,BIKOLD,12/05/2023,226.61
"Communities, Customer & Commercial Services",Sport & Leisure,Supplies & Services,Provisions,BIKOLD,12/05/2023,334.06
"Communities, Customer & Commercial Services",Sport & Leisure,Supplies & Services,Provisions,BIKOLD,12/05/2023,150.48
"Communities, Customer & Commercial Services",Sport & Leisure,Supplies & Services,Provisions,BIKOLD,12/05/2023,140.94
"Communities, Customer & Commercial Services",Sport & Leisure,Supplies & Services,Provisions,BIKOLD,12/05/2023,259.63
"Communities, Customer & Commercial Services",Sport & Leisure,Supplies & Services,Provisions,BIKOLD,12/05/2023,325.75
"Communities, Customer & Commercial Services",Sport & Leisure,Supplies & Services,Provisions,BIKOLD,12/05/2023,253.86
"Communities, Customer & Commercial Services",Sport & Leisure,Supplies & Services,Provisions,BIKOLD,12/05/2023,588.25
"Communities, Customer & Commercial Services",Sport & Leisure,Supplies & Services,Provisions,BIKOLD,12/05/2023,435.16
"Communities, Customer & Commercial Services",Sport & Leisure,Supplies & Services,Provisions,BIKOLD,12/05/2023,378.04
"Communities, Customer & Commercial Services",Sport & Leisure,Supplies & Services,Provisions,BIKOLD,12/05/2023,632.89
"Communities, Customer & Commercial Services",Sport & Leisure,Supplies & Services,Provisions,BIKOLD,12/05/2023,122.08
"Communities, Customer & Commercial Services",Sport & Leisure,Supplies & Services,Provisions,BIKOLD,12/05/2023,346.02
"Communities, Customer & Commercial Services",Sport & Leisure,Supplies & Services,Provisions,BIKOLD,12/05/2023,652.36
"Communities, Customer & Commercial Services",Sport & Leisure,Supplies & Services,Provisions,BIKOLD,12/05/2023,551.56
"Communities, Customer & Commercial Services",Sport & Leisure,Supplies & Services,Provisions,BIKOLD,12/05/2023,393.43
"Communities, Customer & Commercial Services",Sport & Leisure,Supplies & Services,Provisions,BIKOLD,12/05/2023,249.87
"Communities, Customer & Commercial Services",Sport & Leisure,Supplies & Services,Provisions,BIKOLD,12/05/2023,173.27
"Communities, Customer & Commercial Services",Sport & Leisure,Supplies & Services,Provisions,BIKOLD,12/05/2023,407.74
"Communities, Customer & Commercial Services",Sport & Leisure,Supplies & Services,Provisions,BIKOLD,12/05/2023,142.78
"Communities, Customer & Commercial Services",Sport & Leisure,Supplies & Services,Provisions,BIKOLD,12/05/2023,223.70
"Communities, Customer & Commercial Services",Sport & Leisure,Supplies & Services,Provisions,BIKOLD,12/05/2023,492.36
"Communities, Customer & Commercial Services",Sport & Leisure,Supplies & Services,Provisions,BIKOLD,12/05/2023,247.78
"Communities, Customer & Commercial Services",Sport & Leisure,Supplies & Services,Provisions,BIKOLD,12/05/2023,282.98
"Communities, Customer & Commercial Services",Sport & Leisure,Supplies & Services,Provisions,BIKOLD,25/05/2023,730.19
"Communities, Customer & Commercial Services",Sport & Leisure,Supplies & Services,Provisions,BIKOLD,25/05/2023,122.12
"Communities, Customer & Commercial Services",Sport & Leisure,Supplies & Services,Provisions,BIKOLD,25/05/2023,121.14
"Communities, Customer & Commercial Services",Sport & Leisure,Supplies & Services,Provisions,BIKOLD,25/05/2023,102.41
"Communities, Customer & Commercial Services",Sport & Leisure,Supplies & Services,Provisions,BIKOLD,25/05/2023,126.78
"Communities, Customer & Commercial Services",Sport & Leisure,Supplies & Services,Provisions,BIKOLD,25/05/2023,672.10
"Communities, Customer & Commercial Services",Sport & Leisure,Supplies & Services,Provisions,BIKOLD,25/05/2023,139.39
"Communities, Customer & Commercial Services",Sport & Leisure,Supplies & Services,Provisions,BIKOLD,25/05/2023,236.33
"Communities, Customer & Commercial Services",Sport & Leisure,Supplies & Services,Provisions,BIKOLD,25/05/2023,258.85
"Communities, Customer & Commercial Services",Sport & Leisure,Supplies & Services,Provisions,BIKOLD,25/05/2023,236.68
"Communities, Customer & Commercial Services",Sport & Leisure,Supplies & Services,Provisions,BIKOLD,25/05/2023,126.05
"Communities, Customer & Commercial Services",Sport & Leisure,Supplies & Services,Provisions,BIKOLD,25/05/2023,298.03
"Communities, Customer & Commercial Services",Sport & Leisure,Supplies & Services,Provisions,BIKOLD,25/05/2023,217.23
"Communities, Customer & Commercial Services",Sport & Leisure,Supplies & Services,Provisions,BIKOLD,25/05/2023,225.29
"Communities, Customer & Commercial Services",Sport & Leisure,Supplies & Services,Provisions,BIKOLD,25/05/2023,471.87
"Communities, Customer & Commercial Services",Sport & Leisure,Supplies & Services,Provisions,BIKOLD,25/05/2023,169.24
"Communities, Customer & Commercial Services",Sport & Leisure,Supplies & Services,Provisions,BIKOLD,25/05/2023,176.79
"Communities, Customer & Commercial Services",Sport & Leisure,Supplies & Services,Provisions,BIKOLD,25/05/2023,110.45
"Communities, Customer & Commercial Services",Sport & Leisure,Supplies & Services,Provisions,BIKOLD,25/05/2023,131.19
"Communities, Customer & Commercial Services",Sport & Leisure,Supplies & Services,Provisions,BIKOLD,25/05/2023,220.45
"Communities, Customer & Commercial Services",Sport & Leisure,Supplies & Services,Provisions,BIKOLD,25/05/2023,148.56
"Communities, Customer & Commercial Services",Sport & Leisure,Supplies & Services,Provisions,BIKOLD,25/05/2023,299.07
"Communities, Customer & Commercial Services",Sport & Leisure,Supplies & Services,Provisions,BIKOLD,25/05/2023,158.04
"Communities, Customer & Commercial Services",Sport & Leisure,Supplies & Services,Provisions,BIKOLD,25/05/2023,376.91
"Communities, Customer & Commercial Services",Sport & Leisure,Supplies & Services,Provisions,BIKOLD,25/05/2023,385.84
"Communities, Customer & Commercial Services",Sport & Leisure,Supplies & Services,Provisions,BIKOLD,25/05/2023,234.69
"Communities, Customer & Commercial Services",Sport & Leisure,Supplies & Services,Provisions,BIKOLD,25/05/2023,282.43
"Communities, Customer & Commercial Services",Sport & Leisure,Supplies & Services,Provisions,BIKOLD,25/05/2023,170.07
"Communities, Customer & Commercial Services",Sport & Leisure,Supplies & Services,Provisions,BIKOLD,25/05/2023,181.18
"Communities, Customer & Commercial Services",Sport & Leisure,Supplies & Services,Provisions,BIKOLD,25/05/2023,185.64
"Communities, Customer & Commercial Services",Sport & Leisure,Supplies & Services,Provisions,BIKOLD,25/05/2023,195.59
"Communities, Customer & Commercial Services",Sport & Leisure,Supplies & Services,Provisions,BIKOLD,25/05/2023,150.37
"Communities, Customer & Commercial Services",Sport & Leisure,Supplies & Services,Provisions,BIKOLD,25/05/2023,320.60
"Communities, Customer & Commercial Services",Sport & Leisure,Supplies & Services,Provisions,BIKOLD,25/05/2023,516.58
"Communities, Customer & Commercial Services",Sport & Leisure,Supplies & Services,Provisions,BIKOLD,25/05/2023,279.64
"Communities, Customer & Commercial Services",Sport & Leisure,Supplies & Services,Provisions,BIKOLD,25/05/2023,186.98
"Communities, Customer & Commercial Services",Sport & Leisure,Supplies & Services,Provisions,BIKOLD,25/05/2023,242.41
"Communities, Customer & Commercial Services",Sport & Leisure,Supplies & Services,Provisions,BIKOLD,25/05/2023,219.29
"Communities, Customer & Commercial Services",Sport & Leisure,Supplies & Services,Provisions,BIKOLD,25/05/2023,-121.61
"Communities, Customer & Commercial Services",Sport & Leisure,Supplies & Services,Provisions,BIKOLD,25/05/2023,207.13
"Communities, Customer & Commercial Services",Sport & Leisure,Supplies & Services,Provisions,BIKOLD,25/05/2023,184.26
"Communities, Customer & Commercial Services",Sport & Leisure,Supplies & Services,Provisions,BIKOLD,25/05/2023,330.15
"Communities, Customer & Commercial Services",Sport & Leisure,Supplies & Services,Provisions,BIKOLD,25/05/2023,118.38
"Communities, Customer & Commercial Services",Sport & Leisure,Supplies & Services,Provisions,BIKOLD,25/05/2023,131.51
"Communities, Customer & Commercial Services",Sport & Leisure,Supplies & Services,Provisions,BIKOLD,25/05/2023,121.61
"Communities, Customer & Commercial Services",Sport & Leisure,Supplies & Services,Provisions,BIKOLD,25/05/2023,114.86
"Communities, Customer & Commercial Services",Sport & Leisure,Supplies & Services,Provisions,BIKOLD,25/05/2023,115.69
"Communities, Customer & Commercial Services",Sport & Leisure,Supplies & Services,Provisions,BIKOLD,25/05/2023,245.48
"Communities, Customer & Commercial Services",Sport & Leisure,Supplies & Services,Provisions,BIKOLD,25/05/2023,115.95
"Communities, Customer & Commercial Services",Sport & Leisure,Supplies & Services,Provisions,BIKOLD,25/05/2023,144.00
"Communities, Customer & Commercial Services",Sport & Leisure,Supplies & Services,Provisions,BIKOLD,25/05/2023,310.74
"Communities, Customer & Commercial Services",Sport & Leisure,Supplies & Services,Provisions,BIKOLD,25/05/2023,120.08
"Communities, Customer & Commercial Services",Sport & Leisure,Supplies & Services,Provisions,BIKOLD,25/05/2023,188.96
"Communities, Customer & Commercial Services",Sport & Leisure,Supplies & Services,Provisions,BIKOLD,25/05/2023,287.55
"Communities, Customer & Commercial Services",Sport & Leisure,Supplies & Services,Provisions,BIKOLD,25/05/2023,269.93
"Communities, Customer & Commercial Services",Sport & Leisure,Supplies & Services,Provisions,BIKOLD,25/05/2023,155.62
"Communities, Customer & Commercial Services",Sport & Leisure,Supplies & Services,Provisions,BIKOLD,25/05/2023,544.83
"Communities, Customer & Commercial Services",Sport & Leisure,Supplies & Services,Provisions,BIKOLD,25/05/2023,212.24
"Communities, Customer & Commercial Services",Sport & Leisure,Supplies & Services,Provisions,BIKOLD,25/05/2023,128.45
"Communities, Customer & Commercial Services",Sport & Leisure,Supplies & Services,Provisions,BIKOLD,25/05/2023,349.27
"Communities, Customer & Commercial Services",Sport & Leisure,Supplies & Services,Provisions,BIKOLD,25/05/2023,158.72
"Communities, Customer & Commercial Services",Sport & Leisure,Supplies & Services,Provisions,BIKOLD,25/05/2023,233.33
"Communities, Customer & Commercial Services",Sport & Leisure,Supplies & Services,Provisions,BIKOLD,25/05/2023,166.75
"Communities, Customer & Commercial Services",Sport & Leisure,Supplies & Services,Provisions,BIKOLD,25/05/2023,113.17
"Communities, Customer & Commercial Services",Sport & Leisure,Supplies & Services,Provisions,BIKOLD,25/05/2023,217.58
"Communities, Customer & Commercial Services",Sport & Leisure,Supplies & Services,Provisions,BIKOLD,25/05/2023,102.65
"Communities, Customer & Commercial Services",Sport & Leisure,Supplies & Services,Provisions,BIKOLD,25/05/2023,189.30
"Communities, Customer & Commercial Services",Sport & Leisure,Supplies & Services,Provisions,BIKOLD,25/05/2023,302.61
"Communities, Customer & Commercial Services",Sport & Leisure,Supplies & Services,Provisions,BIKOLD,25/05/2023,686.29
"Communities, Customer & Commercial Services",Sport & Leisure,Supplies & Services,Provisions,BIKOLD,25/05/2023,153.71
"Communities, Customer & Commercial Services",Sport & Leisure,Supplies & Services,Provisions,BIKOLD,25/05/2023,173.22
"Communities, Customer & Commercial Services",Sport & Leisure,Supplies & Services,Provisions,BIKOLD,25/05/2023,275.20
"Communities, Customer & Commercial Services",Sport & Leisure,Supplies & Services,Provisions,BIKOLD,25/05/2023,107.91
"Communities, Customer & Commercial Services",Sport & Leisure,Supplies & Services,Provisions,BIKOLD,25/05/2023,108.16
"Communities, Customer & Commercial Services",Sport & Leisure,Supplies & Services,Provisions,BIKOLD,25/05/2023,318.55
"Communities, Customer & Commercial Services",Sport & Leisure,Supplies & Services,Provisions,BIKOLD,25/05/2023,100.51
"Communities, Customer & Commercial Services",Sport & Leisure,Supplies & Services,Provisions,BIKOLD,25/05/2023,273.93
"Communities, Customer & Commercial Services",Sport & Leisure,Supplies & Services,Provisions,BIKOLD,25/05/2023,443.81
"Communities, Customer & Commercial Services",Sport & Leisure,Supplies & Services,Provisions,BIKOLD,25/05/2023,624.30
"Communities, Customer & Commercial Services",Sport & Leisure,Supplies & Services,Provisions,BIKOLD,25/05/2023,106.27
"Communities, Customer & Commercial Services",Sport & Leisure,Supplies & Services,Provisions,BIKOLD,25/05/2023,104.64
"Communities, Customer & Commercial Services",Sport & Leisure,Supplies & Services,Provisions,BIKOLD,25/05/2023,185.92
"Communities, Customer & Commercial Services",Sport & Leisure,Supplies & Services,Provisions,BIKOLD,25/05/2023,467.63
"Communities, Customer & Commercial Services",Sport & Leisure,Supplies & Services,Provisions,BIKOLD,25/05/2023,222.24
"Communities, Customer & Commercial Services",Sport & Leisure,Supplies & Services,Provisions,BIKOLD,25/05/2023,133.13
"Communities, Customer & Commercial Services",Sport & Leisure,Supplies & Services,Provisions,BIKOLD,25/05/2023,192.38
"Communities, Customer & Commercial Services",Sport & Leisure,Supplies & Services,Provisions,BIKOLD,25/05/2023,209.90
"Communities, Customer & Commercial Services",Sport & Leisure,Supplies & Services,Provisions,BIKOLD,25/05/2023,196.59
"Communities, Customer & Commercial Services",Sport & Leisure,Supplies & Services,Provisions,BIKOLD,25/05/2023,325.88
"Communities, Customer & Commercial Services",Sport & Leisure,Supplies & Services,Provisions,BIKOLD,25/05/2023,-117.90
"Communities, Customer & Commercial Services",Sport & Leisure,Supplies & Services,Provisions,BIKOLD,25/05/2023,152.23
"Communities, Customer & Commercial Services",Sport & Leisure,Supplies & Services,Provisions,BIKOLD,25/05/2023,328.91
"Communities, Customer & Commercial Services",Sport & Leisure,Supplies & Services,Provisions,BIKOLD,25/05/2023,516.71
"Communities, Customer & Commercial Services",Sport & Leisure,Supplies & Services,Provisions,BIKOLD,25/05/2023,424.21
"Communities, Customer & Commercial Services",Sport & Leisure,Supplies & Services,Provisions,BIKOLD,25/05/2023,222.36
"Communities, Customer & Commercial Services",Sport & Leisure,Supplies & Services,Provisions,BIKOLD,25/05/2023,208.17
"Communities, Customer & Commercial Services",Sport & Leisure,Supplies & Services,Provisions,BIKOLD,25/05/2023,522.50
"Communities, Customer & Commercial Services",Sport & Leisure,Supplies & Services,Provisions,BIKOLD,25/05/2023,101.27
"Communities, Customer & Commercial Services",Sport & Leisure,Supplies & Services,Provisions,BIKOLD,25/05/2023,116.83
"Communities, Customer & Commercial Services",Sport & Leisure,Supplies & Services,Provisions,BIKOLD,25/05/2023,167.10
"Communities, Customer & Commercial Services",Sport & Leisure,Supplies & Services,Provisions,BIKOLD,25/05/2023,143.42
"Communities, Customer & Commercial Services",Sport & Leisure,Supplies & Services,Provisions,BIKOLD,25/05/2023,352.97
"Communities, Customer & Commercial Services",Sport & Leisure,Supplies & Services,Provisions,BIKOLD,25/05/2023,102.50
"Communities, Customer & Commercial Services",Sport & Leisure,Supplies & Services,Provisions,BIKOLD,25/05/2023,114.16
"Communities, Customer & Commercial Services",Sport & Leisure,Supplies & Services,Provisions,BIKOLD,25/05/2023,428.65
"Communities, Customer & Commercial Services",Sport & Leisure,Supplies & Services,Provisions,BIKOLD,25/05/2023,193.27
"Communities, Customer & Commercial Services",Sport & Leisure,Supplies & Services,Provisions,BIKOLD,25/05/2023,146.93
"Communities, Customer & Commercial Services",Sport & Leisure,Supplies & Services,Provisions,BIKOLD,25/05/2023,135.18
"Communities, Customer & Commercial Services",Sport & Leisure,Supplies & Services,Provisions,BIKOLD,25/05/2023,130.28
"Communities, Customer & Commercial Services",Sport & Leisure,Supplies & Services,Provisions,BIKOLD,25/05/2023,238.32
"Communities, Customer & Commercial Services",Sport & Leisure,Supplies & Services,Crockery/Hardware/Light Equip,E N CATERING EQUIPMENT AND SERVICES  LTD,31/05/2023,191.90
"Communities, Customer & Commercial Services",Sport & Leisure,Supplies & Services,Provisions,J S Catering Butchers,17/05/2023,112.48
"Communities, Customer & Commercial Services",Sport & Leisure,Supplies & Services,Provisions,J S Catering Butchers,17/05/2023,101.83
"Communities, Customer & Commercial Services",Sport & Leisure,Supplies & Services,Provisions,J S Catering Butchers,17/05/2023,187.00
"Communities, Customer & Commercial Services",Sport & Leisure,Supplies & Services,Provisions,J S Catering Butchers,17/05/2023,158.75
"Communities, Customer & Commercial Services",Sport & Leisure,Supplies & Services,Provisions,J S Catering Butchers,17/05/2023,173.71
"Communities, Customer & Commercial Services",Sport & Leisure,Supplies & Services,Provisions,J S Catering Butchers,17/05/2023,153.90
"Communities, Customer & Commercial Services",Sport & Leisure,Supplies & Services,Provisions,J S Catering Butchers,17/05/2023,172.80
"Communities, Customer & Commercial Services",Sport & Leisure,Supplies & Services,Provisions,J S Catering Butchers,17/05/2023,109.45
"Communities, Customer & Commercial Services",Sport & Leisure,Supplies & Services,Provisions,J S Catering Butchers,17/05/2023,113.00
"Communities, Customer & Commercial Services",Sport & Leisure,Supplies & Services,Provisions,J S Catering Butchers,17/05/2023,114.65
"Communities, Customer & Commercial Services",Sport & Leisure,Supplies & Services,Provisions,J S Catering Butchers,17/05/2023,167.30
"Communities, Customer & Commercial Services",Sport & Leisure,Supplies & Services,Provisions,J S Catering Butchers,17/05/2023,182.32
"Communities, Customer & Commercial Services",Sport & Leisure,Supplies & Services,Provisions,J S Catering Butchers,17/05/2023,182.32
"Communities, Customer & Commercial Services",Sport & Leisure,Supplies & Services,Provisions,J S Catering Butchers,17/05/2023,215.73
"Communities, Customer & Commercial Services",Sport & Leisure,Supplies & Services,Provisions,J S Catering Butchers,16/05/2023,101.18
"Communities, Customer & Commercial Services",Sport & Leisure,Supplies & Services,Provisions,J S Catering Butchers,16/05/2023,191.00
"Communities, Customer & Commercial Services",Sport & Leisure,Supplies & Services,Provisions,J S Catering Butchers,16/05/2023,110.40
"Communities, Customer & Commercial Services",Sport & Leisure,Supplies & Services,Provisions,J S Catering Butchers,16/05/2023,106.80
"Communities, Customer & Commercial Services",Sport & Leisure,Supplies & Services,Provisions,J S Catering Butchers,16/05/2023,300.70
"Communities, Customer & Commercial Services",Sport & Leisure,Supplies & Services,Provisions,J S Catering Butchers,16/05/2023,147.20
"Communities, Customer & Commercial Services",Sport & Leisure,Supplies & Services,Provisions,J S Catering Butchers,16/05/2023,107.95
"Communities, Customer & Commercial Services",Sport & Leisure,Supplies & Services,Provisions,J S Catering Butchers,30/05/2023,254.85
"Communities, Customer & Commercial Services",Sport & Leisure,Supplies & Services,Provisions,J S Catering Butchers,30/05/2023,260.68
"Communities, Customer & Commercial Services",Sport & Leisure,Supplies & Services,Provisions,J S Catering Butchers,30/05/2023,192.00
"Communities, Customer & Commercial Services",Sport & Leisure,Supplies & Services,Provisions,J S Catering Butchers,25/05/2023,125.13
"Communities, Customer & Commercial Services",Sport & Leisure,Supplies & Services,Provisions,J S Catering Butchers,25/05/2023,190.02
"Communities, Customer & Commercial Services",Sport & Leisure,Supplies & Services,Provisions,J S Catering Butchers,25/05/2023,141.25
"Communities, Customer & Commercial Services",Sport & Leisure,Supplies & Services,Provisions,On A Roll,12/05/2023,284.45
"Communities, Customer & Commercial Services",Sport & Leisure,Supplies & Services,Provisions,On A Roll,02/05/2023,267.30
"Communities, Customer & Commercial Services",Sport & Leisure,Supplies & Services,Provisions,On A Roll,22/05/2023,268.30
"Communities, Customer & Commercial Services",Sport & Leisure,Supplies & Services,Provisions,On A Roll,22/05/2023,233.00
"Communities, Customer & Commercial Services",Sport & Leisure,Supplies & Services,Provisions,PASTA KING LIMITED,02/05/2023,300.48
"Communities, Customer & Commercial Services",Sport & Leisure,Supplies & Services,Provisions,ROWLANDS & COMPANY,25/05/2023,131.25
"Communities, Customer & Commercial Services",Sport & Leisure,Supplies & Services,Provisions,ROWLANDS & COMPANY,25/05/2023,112.96
"Communities, Customer & Commercial Services",Sport & Leisure,Supplies & Services,Provisions,ROWLANDS & COMPANY,25/05/2023,309.17
"Communities, Customer & Commercial Services",Sport & Leisure,Supplies & Services,Provisions,ROWLANDS & COMPANY,17/05/2023,151.67
"Communities, Customer & Commercial Services",Sport & Leisure,Supplies & Services,Provisions,ROWLANDS & COMPANY,17/05/2023,113.95
"Communities, Customer & Commercial Services",Sport & Leisure,Supplies & Services,Provisions,ROWLANDS & COMPANY,17/05/2023,118.34
"Communities, Customer & Commercial Services",Sport & Leisure,Supplies & Services,Provisions,ROWLANDS & COMPANY,17/05/2023,127.01
"Communities, Customer & Commercial Services",Sport & Leisure,Supplies & Services,Provisions,ROWLANDS & COMPANY,17/05/2023,186.15
"Communities, Customer & Commercial Services",Sport & Leisure,Supplies & Services,Provisions,ROWLANDS & COMPANY,17/05/2023,159.99
"Communities, Customer & Commercial Services",Sport & Leisure,Supplies & Services,Provisions,ROWLANDS & COMPANY,17/05/2023,152.48
"Communities, Customer & Commercial Services",Sport & Leisure,Supplies & Services,Provisions,ROWLANDS & COMPANY,17/05/2023,186.14
"Communities, Customer & Commercial Services",Sport & Leisure,Supplies & Services,Provisions,ROWLANDS & COMPANY,17/05/2023,100.02
"Communities, Customer & Commercial Services",Sport & Leisure,Supplies & Services,Provisions,ROWLANDS & COMPANY,17/05/2023,126.07
"Communities, Customer & Commercial Services",Sport & Leisure,Supplies & Services,Provisions,ROWLANDS & COMPANY,17/05/2023,177.67
"Communities, Customer & Commercial Services",Sport & Leisure,Supplies & Services,Provisions,ROWLANDS & COMPANY,17/05/2023,181.47
"Communities, Customer & Commercial Services",Sport & Leisure,Supplies & Services,Provisions,ROWLANDS & COMPANY,17/05/2023,114.40
"Communities, Customer & Commercial Services",Sport & Leisure,Supplies & Services,Provisions,ROWLANDS & COMPANY,17/05/2023,137.37
"Communities, Customer & Commercial Services",Sport & Leisure,Supplies & Services,Provisions,ROWLANDS & COMPANY,17/05/2023,323.66
"Communities, Customer & Commercial Services",Sport & Leisure,Supplies & Services,Provisions,ROWLANDS & COMPANY,17/05/2023,125.64
"Communities, Customer & Commercial Services",Sport & Leisure,Supplies & Services,Provisions,ROWLANDS & COMPANY,17/05/2023,111.84
"Communities, Customer & Commercial Services",Sport & Leisure,Supplies & Services,Provisions,ROWLANDS & COMPANY,17/05/2023,102.22
"Communities, Customer & Commercial Services",Sport & Leisure,Supplies & Services,Provisions,ROWLANDS & COMPANY,17/05/2023,273.21
"Communities, Customer & Commercial Services",Sport & Leisure,Supplies & Services,Provisions,ROWLANDS & COMPANY,17/05/2023,131.10
"Communities, Customer & Commercial Services",Sport & Leisure,Supplies & Services,Provisions,ROWLANDS & COMPANY,17/05/2023,142.14
"Communities, Customer & Commercial Services",Sport & Leisure,Supplies & Services,Provisions,ROWLANDS & COMPANY,17/05/2023,106.37
"Communities, Customer & Commercial Services",Sport & Leisure,Supplies & Services,Provisions,ROWLANDS & COMPANY,17/05/2023,116.47
"Communities, Customer & Commercial Services",Sport & Leisure,Supplies & Services,Provisions,ROWLANDS & COMPANY,17/05/2023,167.72
"Communities, Customer & Commercial Services",Sport & Leisure,Supplies & Services,Provisions,ROWLANDS & COMPANY,17/05/2023,186.38
"Communities, Customer & Commercial Services",Sport & Leisure,Supplies & Services,Provisions,ROWLANDS & COMPANY,17/05/2023,155.83
"Communities, Customer & Commercial Services",Sport & Leisure,Supplies & Services,Provisions,ROWLANDS & COMPANY,17/05/2023,143.67
"Communities, Customer & Commercial Services",Sport & Leisure,Supplies & Services,Provisions,ROWLANDS & COMPANY,17/05/2023,127.29
"Communities, Customer & Commercial Services",Sport & Leisure,Supplies & Services,Provisions,ROWLANDS & COMPANY,16/05/2023,144.97
"Communities, Customer & Commercial Services",Sport & Leisure,Supplies & Services,Provisions,ROWLANDS & COMPANY,16/05/2023,102.35
"Communities, Customer & Commercial Services",Sport & Leisure,Supplies & Services,Provisions,ROWLANDS & COMPANY,16/05/2023,116.77
"Communities, Customer & Commercial Services",Sport & Leisure,Supplies & Services,Provisions,ROWLANDS & COMPANY,16/05/2023,128.95
"Communities, Customer & Commercial Services",Sport & Leisure,Supplies & Services,Provisions,ROWLANDS & COMPANY,16/05/2023,105.88
"Communities, Customer & Commercial Services",Sport & Leisure,Supplies & Services,Provisions,ROWLANDS & COMPANY,16/05/2023,168.06
"Communities, Customer & Commercial Services",Sport & Leisure,Supplies & Services,Provisions,ROWLANDS & COMPANY,16/05/2023,178.58
"Communities, Customer & Commercial Services",Sport & Leisure,Supplies & Services,Provisions,ROWLANDS & COMPANY,16/05/2023,134.97
"Communities, Customer & Commercial Services",Sport & Leisure,Supplies & Services,Provisions,ROWLANDS & COMPANY,16/05/2023,235.26
"Communities, Customer & Commercial Services",Sport & Leisure,Supplies & Services,Provisions,ROWLANDS & COMPANY,16/05/2023,157.09
"Communities, Customer & Commercial Services",Sport & Leisure,Supplies & Services,Provisions,ROWLANDS & COMPANY,16/05/2023,102.35
"Communities, Customer & Commercial Services",Sport & Leisure,Supplies & Services,Provisions,ROWLANDS & COMPANY,16/05/2023,125.80
"Communities, Customer & Commercial Services",Sport & Leisure,Supplies & Services,Provisions,ROWLANDS & COMPANY,16/05/2023,207.09
"Communities, Customer & Commercial Services",Sport & Leisure,Supplies & Services,Provisions,ROWLANDS & COMPANY,16/05/2023,107.34
"Communities, Customer & Commercial Services",Sport & Leisure,Supplies & Services,Provisions,ROWLANDS & COMPANY,16/05/2023,132.47
"Communities, Customer & Commercial Services",Sport & Leisure,Supplies & Services,Provisions,ROWLANDS & COMPANY,16/05/2023,347.13
"Communities, Customer & Commercial Services",Sport & Leisure,Supplies & Services,Provisions,ROWLANDS & COMPANY,16/05/2023,142.17
"Communities, Customer & Commercial Services",Sport & Leisure,Supplies & Services,Provisions,ROWLANDS & COMPANY,16/05/2023,231.00
"Communities, Customer & Commercial Services",Sport & Leisure,Supplies & Services,Provisions,ROWLANDS & COMPANY,16/05/2023,133.66
"Communities, Customer & Commercial Services",Sport & Leisure,Supplies & Services,Provisions,ROWLANDS & COMPANY,16/05/2023,117.16
"Communities, Customer & Commercial Services",Sport & Leisure,Supplies & Services,Provisions,ROWLANDS & COMPANY,16/05/2023,110.73
"Communities, Customer & Commercial Services",Sport & Leisure,Supplies & Services,Provisions,ROWLANDS & COMPANY,16/05/2023,142.16
"Communities, Customer & Commercial Services",Sport & Leisure,Supplies & Services,Provisions,ROWLANDS & COMPANY,16/05/2023,135.76
"Communities, Customer & Commercial Services",Sport & Leisure,Supplies & Services,Provisions,ROWLANDS & COMPANY,16/05/2023,151.18
"Communities, Customer & Commercial Services",Sport & Leisure,Supplies & Services,Provisions,ROWLANDS & COMPANY,16/05/2023,109.65
"Communities, Customer & Commercial Services",Sport & Leisure,Supplies & Services,Provisions,ROWLANDS & COMPANY,16/05/2023,150.42
"Communities, Customer & Commercial Services",Sport & Leisure,Supplies & Services,Provisions,ROWLANDS & COMPANY,16/05/2023,149.87
"Communities, Customer & Commercial Services",Sport & Leisure,Supplies & Services,Provisions,ROWLANDS & COMPANY,22/05/2023,112.18
"Communities, Customer & Commercial Services",Sport & Leisure,Supplies & Services,Provisions,ROWLANDS & COMPANY,30/05/2023,137.19
"Communities, Customer & Commercial Services",Sport & Leisure,Supplies & Services,Provisions,ROWLANDS & COMPANY,30/05/2023,106.57
"Communities, Customer & Commercial Services",Sport & Leisure,Supplies & Services,Provisions,ROWLANDS & COMPANY,30/05/2023,100.53
"Communities, Customer & Commercial Services",Sport & Leisure,Supplies & Services,Provisions,ROWLANDS & COMPANY,30/05/2023,147.09
"Communities, Customer & Commercial Services",Sport & Leisure,Supplies & Services,Provisions,ROWLANDS & COMPANY,30/05/2023,171.12
"Communities, Customer & Commercial Services",Sport & Leisure,Supplies & Services,Provisions,ROWLANDS & COMPANY,30/05/2023,134.30
"Communities, Customer & Commercial Services",Sport & Leisure,Supplies & Services,Provisions,ROWLANDS & COMPANY,30/05/2023,100.60
"Communities, Customer & Commercial Services",Sport & Leisure,Supplies & Services,Provisions,ROWLANDS & COMPANY,30/05/2023,243.42
"Communities, Customer & Commercial Services",Sport & Leisure,Supplies & Services,Provisions,ROWLANDS & COMPANY,30/05/2023,100.02
"Communities, Customer & Commercial Services",Sport & Leisure,Supplies & Services,Provisions,ROWLANDS & COMPANY,30/05/2023,181.59
"Communities, Customer & Commercial Services",Sport & Leisure,Supplies & Services,Provisions,ROWLANDS & COMPANY,30/05/2023,136.74
"Communities, Customer & Commercial Services",Sport & Leisure,Supplies & Services,Provisions,ROWLANDS & COMPANY,30/05/2023,102.15
"Communities, Customer & Commercial Services",Sport & Leisure,Supplies & Services,Provisions,ROWLANDS & COMPANY,30/05/2023,120.64
"Communities, Customer & Commercial Services",Sport & Leisure,Supplies & Services,Provisions,ROWLANDS & COMPANY,30/05/2023,110.49
"Communities, Customer & Commercial Services",Sport & Leisure,Supplies & Services,Provisions,ROWLANDS & COMPANY,30/05/2023,132.97
"Communities, Customer & Commercial Services",Sport & Leisure,Supplies & Services,Provisions,ROWLANDS & COMPANY,30/05/2023,282.57
"Communities, Customer & Commercial Services",Sport & Leisure,Supplies & Services,Provisions,ROWLANDS & COMPANY,30/05/2023,180.83
"Communities, Customer & Commercial Services",Sport & Leisure,Supplies & Services,Provisions,ROWLANDS & COMPANY,30/05/2023,103.94
"Communities, Customer & Commercial Services",Sport & Leisure,Supplies & Services,Provisions,ROWLANDS & COMPANY,30/05/2023,115.37
"Communities, Customer & Commercial Services",Sport & Leisure,Supplies & Services,Provisions,ROWLANDS & COMPANY,30/05/2023,178.77
"Communities, Customer & Commercial Services",Sport & Leisure,Supplies & Services,Provisions,ROWLANDS & COMPANY,30/05/2023,107.87
"Communities, Customer & Commercial Services",Sport & Leisure,Supplies & Services,Provisions,ROWLANDS & COMPANY,30/05/2023,153.27
"Communities, Customer & Commercial Services",Sport & Leisure,Supplies & Services,Provisions,ROWLANDS & COMPANY,30/05/2023,107.84
"Communities, Customer & Commercial Services",Sport & Leisure,Supplies & Services,Provisions,ROWLANDS & COMPANY,30/05/2023,166.58
"Communities, Customer & Commercial Services",Sport & Leisure,Supplies & Services,Provisions,ROWLANDS & COMPANY,30/05/2023,144.66
"Communities, Customer & Commercial Services",Sport & Leisure,Supplies & Services,Provisions,ROWLANDS & COMPANY,18/05/2023,127.75
"Communities, Customer & Commercial Services",Sport & Leisure,Supplies & Services,Provisions,ROWLANDS & COMPANY,18/05/2023,108.23
"Communities, Customer & Commercial Services",Sport & Leisure,Supplies & Services,Provisions,ROWLANDS & COMPANY,18/05/2023,111.85
"Communities, Customer & Commercial Services",Sport & Leisure,Supplies & Services,Provisions,ROWLANDS & COMPANY,18/05/2023,181.43
"Communities, Customer & Commercial Services",Sport & Leisure,Supplies & Services,Provisions,ROWLANDS & COMPANY,18/05/2023,159.34
"Communities, Customer & Commercial Services",Sport & Leisure,Supplies & Services,Provisions,ROWLANDS & COMPANY,18/05/2023,129.62
"Communities, Customer & Commercial Services",Sport & Leisure,Supplies & Services,Provisions,ROWLANDS & COMPANY,18/05/2023,233.11
"Communities, Customer & Commercial Services",Sport & Leisure,Supplies & Services,Provisions,ROWLANDS & COMPANY,18/05/2023,127.35
"Communities, Customer & Commercial Services",Sport & Leisure,Supplies & Services,Provisions,ROWLANDS & COMPANY,18/05/2023,112.51
"Communities, Customer & Commercial Services",Sport & Leisure,Supplies & Services,Provisions,ROWLANDS & COMPANY,18/05/2023,144.99
"Communities, Customer & Commercial Services",Sport & Leisure,Supplies & Services,Provisions,ROWLANDS & COMPANY,18/05/2023,122.79
"Communities, Customer & Commercial Services",Sport & Leisure,Supplies & Services,Provisions,ROWLANDS & COMPANY,18/05/2023,164.23
"Communities, Customer & Commercial Services",Sport & Leisure,Supplies & Services,Provisions,ROWLANDS & COMPANY,18/05/2023,152.00
"Communities, Customer & Commercial Services",Sport & Leisure,Supplies & Services,Provisions,ROWLANDS & COMPANY,18/05/2023,132.38
"Communities, Customer & Commercial Services",Sport & Leisure,Supplies & Services,Provisions,ROWLANDS & COMPANY,18/05/2023,151.75
"Communities, Customer & Commercial Services",Sport & Leisure,Supplies & Services,Provisions,ROWLANDS & COMPANY,18/05/2023,332.06
"Communities, Customer & Commercial Services",Sport & Leisure,Supplies & Services,Provisions,ROWLANDS & COMPANY,18/05/2023,181.15
"Communities, Customer & Commercial Services",Sport & Leisure,Supplies & Services,Provisions,ROWLANDS & COMPANY,18/05/2023,237.47
"Communities, Customer & Commercial Services",Sport & Leisure,Supplies & Services,Provisions,ROWLANDS & COMPANY,18/05/2023,109.94
"Communities, Customer & Commercial Services",Sport & Leisure,Supplies & Services,Provisions,ROWLANDS & COMPANY,18/05/2023,111.87
"Communities, Customer & Commercial Services",Sport & Leisure,Supplies & Services,Provisions,ROWLANDS & COMPANY,18/05/2023,111.96
"Communities, Customer & Commercial Services",Sport & Leisure,Supplies & Services,Provisions,ROWLANDS & COMPANY,18/05/2023,153.50
"Communities, Customer & Commercial Services",Sport & Leisure,Supplies & Services,Provisions,ROWLANDS & COMPANY,18/05/2023,105.81
"Communities, Customer & Commercial Services",Sport & Leisure,Supplies & Services,Provisions,ROWLANDS & COMPANY,18/05/2023,109.95
"Communities, Customer & Commercial Services",Sport & Leisure,Supplies & Services,Provisions,ROWLANDS & COMPANY,18/05/2023,166.21
"Communities, Customer & Commercial Services",Sport & Leisure,Supplies & Services,Provisions,ROWLANDS & COMPANY,18/05/2023,126.32
"Communities, Customer & Commercial Services",Sport & Leisure,Supplies & Services,Provisions,ROWLANDS & COMPANY,25/05/2023,124.68
"Communities, Customer & Commercial Services",Sport & Leisure,Supplies & Services,Provisions,ROWLANDS & COMPANY,25/05/2023,311.38
"Communities, Customer & Commercial Services",Sport & Leisure,Supplies & Services,Provisions,ROWLANDS & COMPANY,25/05/2023,158.92
"Communities, Customer & Commercial Services",Sport & Leisure,Supplies & Services,Provisions,ROWLANDS & COMPANY,25/05/2023,103.45
"Communities, Customer & Commercial Services",Sport & Leisure,Supplies & Services,Provisions,ROWLANDS & COMPANY,25/05/2023,109.00
"Communities, Customer & Commercial Services",Sport & Leisure,Supplies & Services,Provisions,ROWLANDS & COMPANY,25/05/2023,166.10
"Communities, Customer & Commercial Services",Sport & Leisure,Supplies & Services,Provisions,ROWLANDS & COMPANY,25/05/2023,129.21
"Communities, Customer & Commercial Services",Sport & Leisure,Supplies & Services,Provisions,ROWLANDS & COMPANY,25/05/2023,105.42
"Communities, Customer & Commercial Services",Sport & Leisure,Supplies & Services,Provisions,ROWLANDS & COMPANY,25/05/2023,116.61
"Communities, Customer & Commercial Services",Sport & Leisure,Supplies & Services,Provisions,ROWLANDS & COMPANY,25/05/2023,117.59
"Communities, Customer & Commercial Services",Sport & Leisure,Supplies & Services,Provisions,ROWLANDS & COMPANY,25/05/2023,147.13
"Communities, Customer & Commercial Services",Sport & Leisure,Supplies & Services,Provisions,ROWLANDS & COMPANY,25/05/2023,160.14
"Communities, Customer & Commercial Services",Sport & Leisure,Supplies & Services,Provisions,ROWLANDS & COMPANY,25/05/2023,110.52
"Communities, Customer & Commercial Services",Sport & Leisure,Supplies & Services,Provisions,ROWLANDS & COMPANY,25/05/2023,171.13
"Communities, Customer & Commercial Services",Sport & Leisure,Supplies & Services,Provisions,ROWLANDS & COMPANY,25/05/2023,155.25
"Communities, Customer & Commercial Services",Sport & Leisure,Supplies & Services,Provisions,ROWLANDS & COMPANY,25/05/2023,120.64
"Communities, Customer & Commercial Services",Sport & Leisure,Supplies & Services,Provisions,ROWLANDS & COMPANY,25/05/2023,121.43
"Communities, Customer & Commercial Services",Sport & Leisure,Supplies & Services,Provisions,ROWLANDS & COMPANY,25/05/2023,148.61
"Communities, Customer & Commercial Services",Sport & Leisure,Supplies & Services,Provisions,ROWLANDS & COMPANY,25/05/2023,118.36
"Communities, Customer & Commercial Services",Sport & Leisure,Supplies & Services,Provisions,ROWLANDS & COMPANY,25/05/2023,229.52
"Communities, Customer & Commercial Services",Sport & Leisure,Supplies & Services,Provisions,ROWLANDS & COMPANY,25/05/2023,135.97
"Communities, Customer & Commercial Services",Sport & Leisure,Supplies & Services,Provisions,ROWLANDS & COMPANY,25/05/2023,161.28
"Communities, Customer & Commercial Services",Sport & Leisure,Supplies & Services,Provisions,ROWLANDS & COMPANY,25/05/2023,143.26
"Communities, Customer & Commercial Services",Sport & Leisure,Supplies & Services,Provisions,ROWLANDS & COMPANY,25/05/2023,100.10
"Communities, Customer & Commercial Services",Sport & Leisure,Supplies & Services,Provisions,ROWLANDS & COMPANY,25/05/2023,109.91
"Communities, Customer & Commercial Services",Sport & Leisure,Supplies & Services,Provisions,ROWLANDS & COMPANY,25/05/2023,110.30
"Communities, Customer & Commercial Services",Sport & Leisure,Supplies & Services,Provisions,ROWLANDS & COMPANY,25/05/2023,128.95
"Communities, Customer & Commercial Services",Sport & Leisure,Supplies & Services,Provisions,ROWLANDS & COMPANY,25/05/2023,155.14
"Communities, Customer & Commercial Services",Sport & Leisure,Supplies & Services,Provisions,ROWLANDS & COMPANY,25/05/2023,116.56
"Communities, Customer & Commercial Services",Sport & Leisure,Supplies & Services,Provisions,ROWLANDS & COMPANY,25/05/2023,125.37
"Communities, Customer & Commercial Services",Sport & Leisure,Premises-Related Expenditure,Clean Mats & Toilet Requisites,PLANGLOW LTD,02/05/2023,506.22
"Communities, Customer & Commercial Services",Sport & Leisure,Supplies & Services,Provisions,BIKOLD,12/05/2023,744.10
"Communities, Customer & Commercial Services",Sport & Leisure,Supplies & Services,Provisions,BIKOLD,12/05/2023,234.18
"Communities, Customer & Commercial Services",Sport & Leisure,Supplies & Services,Provisions,BIKOLD,12/05/2023,194.66
"Communities, Customer & Commercial Services",Sport & Leisure,Supplies & Services,Provisions,BIKOLD,12/05/2023,177.58
"Communities, Customer & Commercial Services",Sport & Leisure,Supplies & Services,Provisions,BIKOLD,05/05/2023,420.55
"Communities, Customer & Commercial Services",Sport & Leisure,Supplies & Services,Provisions,BIKOLD,05/05/2023,818.48
"Communities, Customer & Commercial Services",Sport & Leisure,Supplies & Services,Provisions,BIKOLD,05/05/2023,547.04
"Communities, Customer & Commercial Services",Sport & Leisure,Supplies & Services,Provisions,BIKOLD,05/05/2023,149.50
"Communities, Customer & Commercial Services",Sport & Leisure,Supplies & Services,Provisions,BIKOLD,05/05/2023,"1,114.77"
"Communities, Customer & Commercial Services",Sport & Leisure,Supplies & Services,Provisions,BIKOLD,05/05/2023,296.24
"Communities, Customer & Commercial Services",Sport & Leisure,Supplies & Services,Provisions,BIKOLD,05/05/2023,106.02
"Communities, Customer & Commercial Services",Sport & Leisure,Supplies & Services,Provisions,BIKOLD,05/05/2023,123.01
"Communities, Customer & Commercial Services",Sport & Leisure,Supplies & Services,Provisions,BIKOLD,05/05/2023,116.20
"Communities, Customer & Commercial Services",Sport & Leisure,Supplies & Services,Provisions,BIKOLD,05/05/2023,265.53
"Communities, Customer & Commercial Services",Sport & Leisure,Supplies & Services,Provisions,BIKOLD,05/05/2023,259.09
"Communities, Customer & Commercial Services",Sport & Leisure,Supplies & Services,Provisions,BIKOLD,18/05/2023,493.79
"Communities, Customer & Commercial Services",Sport & Leisure,Supplies & Services,Provisions,BIKOLD,18/05/2023,453.58
"Communities, Customer & Commercial Services",Sport & Leisure,Supplies & Services,Provisions,BIKOLD,18/05/2023,285.58
"Communities, Customer & Commercial Services",Sport & Leisure,Supplies & Services,Provisions,BIKOLD,18/05/2023,100.66
"Communities, Customer & Commercial Services",Sport & Leisure,Supplies & Services,Provisions,BIKOLD,18/05/2023,540.11
"Communities, Customer & Commercial Services",Sport & Leisure,Supplies & Services,Provisions,BIKOLD,18/05/2023,298.02
"Communities, Customer & Commercial Services",Sport & Leisure,Supplies & Services,Provisions,BIKOLD,18/05/2023,355.72
"Communities, Customer & Commercial Services",Sport & Leisure,Supplies & Services,Provisions,BIKOLD,18/05/2023,545.32
"Communities, Customer & Commercial Services",Sport & Leisure,Supplies & Services,Provisions,BIKOLD,18/05/2023,"1,210.35"
"Communities, Customer & Commercial Services",Sport & Leisure,Supplies & Services,Provisions,BIKOLD,18/05/2023,244.36
"Communities, Customer & Commercial Services",Sport & Leisure,Supplies & Services,Provisions,BIKOLD,18/05/2023,235.95
"Communities, Customer & Commercial Services",Sport & Leisure,Supplies & Services,Provisions,BIKOLD,18/05/2023,202.60
"Communities, Customer & Commercial Services",Sport & Leisure,Supplies & Services,Provisions,BIKOLD,18/05/2023,612.49
"Communities, Customer & Commercial Services",Sport & Leisure,Supplies & Services,Provisions,BIKOLD,18/05/2023,"1,028.12"
"Communities, Customer & Commercial Services",Sport & Leisure,Supplies & Services,Provisions,BIKOLD,18/05/2023,167.87
"Communities, Customer & Commercial Services",Sport & Leisure,Supplies & Services,Provisions,BIKOLD,18/05/2023,558.22
"Communities, Customer & Commercial Services",Sport & Leisure,Supplies & Services,Provisions,BIKOLD,18/05/2023,268.51
"Communities, Customer & Commercial Services",Sport & Leisure,Supplies & Services,Provisions,BIKOLD,18/05/2023,146.96
"Communities, Customer & Commercial Services",Sport & Leisure,Supplies & Services,Provisions,BIKOLD,18/05/2023,112.59
"Communities, Customer & Commercial Services",Sport & Leisure,Supplies & Services,Provisions,BIKOLD,18/05/2023,170.16
"Communities, Customer & Commercial Services",Sport & Leisure,Supplies & Services,Provisions,BIKOLD,18/05/2023,282.96
"Communities, Customer & Commercial Services",Sport & Leisure,Supplies & Services,Provisions,BIKOLD,18/05/2023,"1,223.77"
"Communities, Customer & Commercial Services",Sport & Leisure,Supplies & Services,Provisions,BIKOLD,12/05/2023,180.47
"Communities, Customer & Commercial Services",Sport & Leisure,Supplies & Services,Provisions,BIKOLD,12/05/2023,175.00
"Communities, Customer & Commercial Services",Sport & Leisure,Supplies & Services,Provisions,BIKOLD,12/05/2023,268.73
"Communities, Customer & Commercial Services",Sport & Leisure,Supplies & Services,Provisions,BIKOLD,12/05/2023,228.71
"Communities, Customer & Commercial Services",Sport & Leisure,Supplies & Services,Provisions,BIKOLD,12/05/2023,113.25
"Communities, Customer & Commercial Services",Sport & Leisure,Supplies & Services,Provisions,BIKOLD,12/05/2023,318.32
"Communities, Customer & Commercial Services",Sport & Leisure,Supplies & Services,Provisions,BIKOLD,12/05/2023,409.38
"Communities, Customer & Commercial Services",Sport & Leisure,Supplies & Services,Provisions,BIKOLD,12/05/2023,175.53
"Communities, Customer & Commercial Services",Sport & Leisure,Supplies & Services,Provisions,BIKOLD,12/05/2023,172.86
"Communities, Customer & Commercial Services",Sport & Leisure,Supplies & Services,Provisions,BIKOLD,12/05/2023,"1,044.63"
"Communities, Customer & Commercial Services",Sport & Leisure,Supplies & Services,Provisions,BIKOLD,25/05/2023,188.91
"Communities, Customer & Commercial Services",Sport & Leisure,Supplies & Services,Provisions,BIKOLD,25/05/2023,289.54
"Communities, Customer & Commercial Services",Sport & Leisure,Supplies & Services,Provisions,BIKOLD,25/05/2023,626.95
"Communities, Customer & Commercial Services",Sport & Leisure,Supplies & Services,Provisions,BIKOLD,25/05/2023,592.23
"Communities, Customer & Commercial Services",Sport & Leisure,Supplies & Services,Provisions,BIKOLD,25/05/2023,234.29
"Communities, Customer & Commercial Services",Sport & Leisure,Supplies & Services,Provisions,BIKOLD,25/05/2023,359.81
"Communities, Customer & Commercial Services",Sport & Leisure,Supplies & Services,Provisions,BIKOLD,25/05/2023,215.76
"Communities, Customer & Commercial Services",Sport & Leisure,Supplies & Services,Provisions,BIKOLD,25/05/2023,347.12
"Communities, Customer & Commercial Services",Sport & Leisure,Supplies & Services,Provisions,BIKOLD,25/05/2023,145.82
"Communities, Customer & Commercial Services",Sport & Leisure,Supplies & Services,Provisions,BIKOLD,25/05/2023,305.78
"Communities, Customer & Commercial Services",Sport & Leisure,Supplies & Services,Provisions,BIKOLD,25/05/2023,181.34
"Communities, Customer & Commercial Services",Sport & Leisure,Supplies & Services,Provisions,BIKOLD,25/05/2023,266.22
"Communities, Customer & Commercial Services",Sport & Leisure,Supplies & Services,Provisions,BIKOLD,25/05/2023,127.13
"Communities, Customer & Commercial Services",Sport & Leisure,Supplies & Services,Provisions,BIKOLD,25/05/2023,513.70
"Communities, Customer & Commercial Services",Sport & Leisure,Supplies & Services,Provisions,BIKOLD,25/05/2023,307.83
"Communities, Customer & Commercial Services",Sport & Leisure,Supplies & Services,Provisions,BIKOLD,25/05/2023,295.52
"Communities, Customer & Commercial Services",Sport & Leisure,Supplies & Services,Provisions,BIKOLD,25/05/2023,135.90
"Communities, Customer & Commercial Services",Sport & Leisure,Supplies & Services,Provisions,BIKOLD,25/05/2023,190.09
"Communities, Customer & Commercial Services",Sport & Leisure,Supplies & Services,Provisions,BIKOLD,25/05/2023,176.70
"Communities, Customer & Commercial Services",Sport & Leisure,Supplies & Services,Provisions,BIKOLD,25/05/2023,"1,065.33"
"Communities, Customer & Commercial Services",Sport & Leisure,Supplies & Services,Provisions,BIKOLD,25/05/2023,560.83
"Communities, Customer & Commercial Services",Sport & Leisure,Supplies & Services,Provisions,BIKOLD,25/05/2023,419.78
"Communities, Customer & Commercial Services",Sport & Leisure,Supplies & Services,Provisions,BIKOLD,25/05/2023,273.34
"Communities, Customer & Commercial Services",Sport & Leisure,Supplies & Services,Provisions,BIKOLD,25/05/2023,370.27
"Communities, Customer & Commercial Services",Sport & Leisure,Supplies & Services,Provisions,J S Catering Butchers,17/05/2023,143.10
"Communities, Customer & Commercial Services",Sport & Leisure,Supplies & Services,Provisions,J S Catering Butchers,17/05/2023,127.76
"Communities, Customer & Commercial Services",Sport & Leisure,Supplies & Services,Provisions,On A Roll,12/05/2023,386.60
"Communities, Customer & Commercial Services",Sport & Leisure,Supplies & Services,Provisions,On A Roll,12/05/2023,133.54
"Communities, Customer & Commercial Services",Sport & Leisure,Supplies & Services,Provisions,On A Roll,02/05/2023,230.79
"Communities, Customer & Commercial Services",Sport & Leisure,Supplies & Services,Provisions,On A Roll,02/05/2023,267.00
"Communities, Customer & Commercial Services",Sport & Leisure,Supplies & Services,Provisions,On A Roll,02/05/2023,133.54
"Communities, Customer & Commercial Services",Sport & Leisure,Supplies & Services,Provisions,On A Roll,22/05/2023,339.76
"Communities, Customer & Commercial Services",Sport & Leisure,Supplies & Services,Provisions,On A Roll,22/05/2023,593.47
"Communities, Customer & Commercial Services",Sport & Leisure,Supplies & Services,Provisions,On A Roll,22/05/2023,133.54
"Communities, Customer & Commercial Services",Sport & Leisure,Supplies & Services,Provisions,On A Roll,22/05/2023,386.60
"Communities, Customer & Commercial Services",Sport & Leisure,Supplies & Services,Provisions,On A Roll,22/05/2023,369.70
"Communities, Customer & Commercial Services",Sport & Leisure,Supplies & Services,Provisions,On A Roll,22/05/2023,902.83
"Communities, Customer & Commercial Services",Sport & Leisure,Supplies & Services,Provisions,On A Roll,22/05/2023,459.54
"Communities, Customer & Commercial Services",Sport & Leisure,Supplies & Services,Provisions,On A Roll,22/05/2023,296.00
"Communities, Customer & Commercial Services",Sport & Leisure,Supplies & Services,Provisions,On A Roll,22/05/2023,162.13
"Communities, Customer & Commercial Services",Sport & Leisure,Supplies & Services,Provisions,On A Roll,22/05/2023,109.37
"Communities, Customer & Commercial Services",Sport & Leisure,Supplies & Services,Provisions,PASTA KING LIMITED,02/05/2023,300.48
"Communities, Customer & Commercial Services",Sport & Leisure,Supplies & Services,Provisions,PASTA KING LIMITED,05/05/2023,225.36
"Communities, Customer & Commercial Services",Sport & Leisure,Supplies & Services,Provisions,PASTA KING LIMITED,05/05/2023,450.72
"Communities, Customer & Commercial Services",Sport & Leisure,Supplies & Services,Provisions,PASTA KING LIMITED,22/05/2023,525.84
"Communities, Customer & Commercial Services",Sport & Leisure,Supplies & Services,Provisions,PASTA KING LIMITED,22/05/2023,375.60
"Communities, Customer & Commercial Services",Sport & Leisure,Supplies & Services,Provisions,PASTA KING LIMITED,25/05/2023,131.22
"Communities, Customer & Commercial Services",Sport & Leisure,Supplies & Services,Provisions,PASTA KING LIMITED,25/05/2023,525.84
"Communities, Customer & Commercial Services",Sport & Leisure,Supplies & Services,Crockery/Hardware/Light Equip,PLANGLOW LTD,31/05/2023,506.22
"Communities, Customer & Commercial Services",Sport & Leisure,Supplies & Services,Crockery/Hardware/Light Equip,PLANGLOW LTD,05/05/2023,437.76
"Communities, Customer & Commercial Services",Sport & Leisure,Supplies & Services,Crockery/Hardware/Light Equip,PLANGLOW LTD,22/05/2023,316.39
"Communities, Customer & Commercial Services",Sport & Leisure,Supplies & Services,Provisions,ROWLANDS & COMPANY,16/05/2023,115.21
"Communities, Customer & Commercial Services",Sport & Leisure,Supplies & Services,Provisions,ROWLANDS & COMPANY,16/05/2023,197.32
"Communities, Customer & Commercial Services",Sport & Leisure,Supplies & Services,Provisions,ROWLANDS & COMPANY,30/05/2023,101.10
"Communities, Customer & Commercial Services",Sport & Leisure,Supplies & Services,Provisions,ROWLANDS & COMPANY,18/05/2023,147.03
"Communities, Customer & Commercial Services",Sport & Leisure,Supplies & Services,Provisions,ROWLANDS & COMPANY,25/05/2023,232.03
"Communities, Customer & Commercial Services",Sport & Leisure,Supplies & Services,Provisions,T FOOD SERVICE LTD,31/05/2023,931.66
"Communities, Customer & Commercial Services",Sport & Leisure,Supplies & Services,Provisions,T FOOD SERVICE LTD,02/05/2023,432.30
"Communities, Customer & Commercial Services",Sport & Leisure,Supplies & Services,Provisions,T FOOD SERVICE LTD,05/05/2023,511.60
"Communities, Customer & Commercial Services",Sport & Leisure,Supplies & Services,Provisions,T FOOD SERVICE LTD,22/05/2023,247.24
"Communities, Customer & Commercial Services",Sport & Leisure,Supplies & Services,Provisions,T FOOD SERVICE LTD,22/05/2023,"1,103.60"
"Communities, Customer & Commercial Services",Sport & Leisure,Supplies & Services,Provisions,T FOOD SERVICE LTD,25/05/2023,247.13
"Communities, Customer & Commercial Services",Sport & Leisure,Supplies & Services,Provisions,TROPICAL ICE,25/05/2023,"1,209.50"
"Communities, Customer & Commercial Services",Sport & Leisure,Premises-Related Expenditure,Clean Mats & Toilet Requisites,Border Janitorial Supplies Limited,02/05/2023,242.87
"Communities, Customer & Commercial Services",Sport & Leisure,Premises-Related Expenditure,Clean Mats & Toilet Requisites,Border Janitorial Supplies Limited,02/05/2023,257.79
"Communities, Customer & Commercial Services",Sport & Leisure,Premises-Related Expenditure,Clean Mats & Toilet Requisites,Border Janitorial Supplies Limited,02/05/2023,387.73
"Communities, Customer & Commercial Services",Sport & Leisure,Premises-Related Expenditure,Clean Mats & Toilet Requisites,Border Janitorial Supplies Limited,02/05/2023,153.40
"Communities, Customer & Commercial Services",Sport & Leisure,Premises-Related Expenditure,Clean Mats & Toilet Requisites,Border Janitorial Supplies Limited,15/05/2023,168.43
"Communities, Customer & Commercial Services",Sport & Leisure,Premises-Related Expenditure,Clean Mats & Toilet Requisites,Border Janitorial Supplies Limited,15/05/2023,352.21
"Communities, Customer & Commercial Services",Sport & Leisure,Premises-Related Expenditure,Clean Mats & Toilet Requisites,Border Janitorial Supplies Limited,26/05/2023,137.36
"Communities, Customer & Commercial Services",Sport & Leisure,Premises-Related Expenditure,Clean Mats & Toilet Requisites,Border Janitorial Supplies Limited,26/05/2023,151.22
"Communities, Customer & Commercial Services",Sport & Leisure,Premises-Related Expenditure,Clean Mats & Toilet Requisites,Border Janitorial Supplies Limited,26/05/2023,277.34
"Communities, Customer & Commercial Services",Sport & Leisure,Premises-Related Expenditure,Clean Mats & Toilet Requisites,Border Janitorial Supplies Limited,26/05/2023,146.29
"Communities, Customer & Commercial Services",Sport & Leisure,Premises-Related Expenditure,Clean Mats & Toilet Requisites,Border Janitorial Supplies Limited,26/05/2023,108.52
"Communities, Customer & Commercial Services",Sport & Leisure,Premises-Related Expenditure,Clean Mats & Toilet Requisites,Border Janitorial Supplies Limited,26/05/2023,257.79
"Communities, Customer & Commercial Services",Sport & Leisure,Premises-Related Expenditure,Clean Mats & Toilet Requisites,Border Janitorial Supplies Limited,26/05/2023,456.52
"Communities, Customer & Commercial Services",Sport & Leisure,Premises-Related Expenditure,Clean Mats & Toilet Requisites,Border Janitorial Supplies Limited,26/05/2023,103.46
"Communities, Customer & Commercial Services",Sport & Leisure,Premises-Related Expenditure,Clean Mats & Toilet Requisites,Border Janitorial Supplies Limited,26/05/2023,324.12
"Communities, Customer & Commercial Services",Sport & Leisure,Premises-Related Expenditure,Clean Mats & Toilet Requisites,Border Janitorial Supplies Limited,02/05/2023,182.26
"Communities, Customer & Commercial Services",Sport & Leisure,Premises-Related Expenditure,Clean Mats & Toilet Requisites,Border Janitorial Supplies Limited,04/05/2023,209.00
"Communities, Customer & Commercial Services",Sport & Leisure,Premises-Related Expenditure,Clean Mats & Toilet Requisites,Border Janitorial Supplies Limited,02/05/2023,-113.13
"Communities, Customer & Commercial Services",Sport & Leisure,Premises-Related Expenditure,Clean Mats & Toilet Requisites,Border Janitorial Supplies Limited,15/05/2023,253.00
"Communities, Customer & Commercial Services",Sport & Leisure,Premises-Related Expenditure,Clean Mats & Toilet Requisites,Border Janitorial Supplies Limited,26/05/2023,101.32
"Communities, Customer & Commercial Services",Sport & Leisure,Premises-Related Expenditure,Clean Mats & Toilet Requisites,Border Janitorial Supplies Limited,26/05/2023,182.80
"Communities, Customer & Commercial Services",Sport & Leisure,Premises-Related Expenditure,Clean Mats & Toilet Requisites,Border Janitorial Supplies Limited,26/05/2023,410.00
"Communities, Customer & Commercial Services",Sport & Leisure,Premises-Related Expenditure,Clean Mats & Toilet Requisites,Border Janitorial Supplies Limited,26/05/2023,131.59
"Communities, Customer & Commercial Services",Sport & Leisure,Premises-Related Expenditure,Clean Mats & Toilet Requisites,Border Janitorial Supplies Limited,26/05/2023,162.54
"Communities, Customer & Commercial Services",Sport & Leisure,Premises-Related Expenditure,Clean Mats & Toilet Requisites,Border Janitorial Supplies Limited,26/05/2023,293.15
"Communities, Customer & Commercial Services",Sport & Leisure,Premises-Related Expenditure,Clean Mats & Toilet Requisites,Border Janitorial Supplies Limited,26/05/2023,183.55
"Communities, Customer & Commercial Services",Sport & Leisure,Premises-Related Expenditure,Clean Mats & Toilet Requisites,Border Janitorial Supplies Limited,26/05/2023,128.90
"Communities, Customer & Commercial Services",Sport & Leisure,Premises-Related Expenditure,Clean Mats & Toilet Requisites,Border Janitorial Supplies Limited,26/05/2023,322.15
"Communities, Customer & Commercial Services",Sport & Leisure,Premises-Related Expenditure,Clean Mats & Toilet Requisites,Border Janitorial Supplies Limited,26/05/2023,122.14
"Communities, Customer & Commercial Services",Sport & Leisure,Premises-Related Expenditure,Clean Mats & Toilet Requisites,Border Janitorial Supplies Limited,10/05/2023,102.86
"Communities, Customer & Commercial Services",Sport & Leisure,Premises-Related Expenditure,Clean Mats & Toilet Requisites,Border Janitorial Supplies Limited,02/05/2023,327.33
"Communities, Customer & Commercial Services",Sport & Leisure,Premises-Related Expenditure,Clean Mats & Toilet Requisites,Border Janitorial Supplies Limited,26/05/2023,181.97
"Communities, Customer & Commercial Services",Sport & Leisure,Premises-Related Expenditure,Clean Mats & Toilet Requisites,Border Janitorial Supplies Limited,26/05/2023,200.46
"Communities, Customer & Commercial Services",Sport & Leisure,Premises-Related Expenditure,Clean Mats & Toilet Requisites,Border Janitorial Supplies Limited,26/05/2023,114.48
"Communities, Customer & Commercial Services",Sport & Leisure,Supplies & Services,Subscriptions,APSE,03/05/2023,743.40
"Communities, Customer & Commercial Services",Sport & Leisure,Premises-Related Expenditure,Clean Mats & Toilet Requisites,Border Janitorial Supplies Limited,02/05/2023,103.06
"Communities, Customer & Commercial Services",Sport & Leisure,Premises-Related Expenditure,Clean Mats & Toilet Requisites,Border Janitorial Supplies Limited,02/05/2023,220.96
"Communities, Customer & Commercial Services",Sport & Leisure,Premises-Related Expenditure,Clean Mats & Toilet Requisites,Border Janitorial Supplies Limited,15/05/2023,332.35
"Communities, Customer & Commercial Services",Sport & Leisure,Premises-Related Expenditure,Clean Mats & Toilet Requisites,Border Janitorial Supplies Limited,15/05/2023,218.75
"Communities, Customer & Commercial Services",Sport & Leisure,Premises-Related Expenditure,Clean Mats & Toilet Requisites,Border Janitorial Supplies Limited,15/05/2023,167.77
"Communities, Customer & Commercial Services",Sport & Leisure,Premises-Related Expenditure,Clean Mats & Toilet Requisites,Border Janitorial Supplies Limited,15/05/2023,291.54
"Communities, Customer & Commercial Services",Sport & Leisure,Premises-Related Expenditure,Clean Mats & Toilet Requisites,Border Janitorial Supplies Limited,15/05/2023,149.59
"Communities, Customer & Commercial Services",Sport & Leisure,Premises-Related Expenditure,Clean Mats & Toilet Requisites,Border Janitorial Supplies Limited,26/05/2023,153.66
"Communities, Customer & Commercial Services",Sport & Leisure,Premises-Related Expenditure,Clean Mats & Toilet Requisites,Border Janitorial Supplies Limited,26/05/2023,156.04
"Communities, Customer & Commercial Services",Sport & Leisure,Premises-Related Expenditure,Clean Mats & Toilet Requisites,Border Janitorial Supplies Limited,26/05/2023,258.58
"Communities, Customer & Commercial Services",Sport & Leisure,Premises-Related Expenditure,Clean Mats & Toilet Requisites,Border Janitorial Supplies Limited,26/05/2023,172.08
"Communities, Customer & Commercial Services",Sport & Leisure,Premises-Related Expenditure,Clean Mats & Toilet Requisites,Border Janitorial Supplies Limited,26/05/2023,188.52
"Communities, Customer & Commercial Services",Sport & Leisure,Premises-Related Expenditure,Clean Mats & Toilet Requisites,Border Janitorial Supplies Limited,26/05/2023,210.29
"Communities, Customer & Commercial Services",Sport & Leisure,Premises-Related Expenditure,Clean Mats & Toilet Requisites,Border Janitorial Supplies Limited,26/05/2023,132.10
"Communities, Customer & Commercial Services",Sport & Leisure,Premises-Related Expenditure,Clean Mats & Toilet Requisites,Border Janitorial Supplies Limited,26/05/2023,162.35
"Communities, Customer & Commercial Services",Sport & Leisure,Premises-Related Expenditure,Clean Mats & Toilet Requisites,Border Janitorial Supplies Limited,26/05/2023,231.19
"Communities, Customer & Commercial Services",Sport & Leisure,Supplies & Services,Provisions,BIKOLD,12/05/2023,138.68
"Communities, Customer & Commercial Services",Sport & Leisure,Supplies & Services,Provisions,BIKOLD,05/05/2023,439.08
"Communities, Customer & Commercial Services",Sport & Leisure,Supplies & Services,Provisions,BIKOLD,05/05/2023,149.78
"Communities, Customer & Commercial Services",Sport & Leisure,Supplies & Services,Provisions,BIKOLD,18/05/2023,465.80
"Communities, Customer & Commercial Services",Sport & Leisure,Supplies & Services,Provisions,BIKOLD,18/05/2023,129.89
"Communities, Customer & Commercial Services",Sport & Leisure,Supplies & Services,Provisions,BIKOLD,25/05/2023,489.10
"Communities, Customer & Commercial Services",Sport & Leisure,Supplies & Services,Provisions,BIKOLD,25/05/2023,118.49
"Communities, Customer & Commercial Services",Sport & Leisure,Supplies & Services,Provisions,G Puddings Ltd,31/05/2023,309.00
"Communities, Customer & Commercial Services",Sport & Leisure,Supplies & Services,Provisions,On A Roll,02/05/2023,248.83
"Communities, Customer & Commercial Services",Sport & Leisure,Supplies & Services,Provisions,On A Roll,02/05/2023,117.16
"Communities, Customer & Commercial Services",Sport & Leisure,Supplies & Services,Crockery/Hardware/Light Equip,PLANGLOW LTD,12/05/2023,204.41
"Communities, Customer & Commercial Services",Sport & Leisure,Supplies & Services,Provisions,ROWLANDS & COMPANY,31/05/2023,135.09
"Communities, Customer & Commercial Services",Sport & Leisure,Employees,Staff Training,APSE,15/05/2023,182.00
"Communities, Customer & Commercial Services",Sport & Leisure,Supplies & Services,Subscriptions,APSE,03/05/2023,743.40
"Communities, Customer & Commercial Services",Sport & Leisure,Supplies & Services,Other Materials,BRENNTAG UK LIMITED,15/05/2023,305.31
"Communities, Customer & Commercial Services",Sport & Leisure,Supplies & Services,Sub Contractors,BUSINESS WATCH GUARDING LIMITED,11/05/2023,574.06
"Communities, Customer & Commercial Services",Sport & Leisure,Supplies & Services,Other Materials,Ecoprod Technique Ltd,11/05/2023,264.50
"Communities, Customer & Commercial Services",Sport & Leisure,Supplies & Services,Carriage/Delivery Charge,Ecoprod Technique Ltd,11/05/2023,-274.50
"Communities, Customer & Commercial Services",Sport & Leisure,Supplies & Services,Sub Contractors,MSM Hire Ltd,17/05/2023,"1,173.00"
"Communities, Customer & Commercial Services",Sport & Leisure,Supplies & Services,Sub Contractors,MSM Hire Ltd,17/05/2023,342.00
"Communities, Customer & Commercial Services",Sport & Leisure,Supplies & Services,Sub Contractors,MSM Hire Ltd,31/05/2023,"3,510.62"
"Communities, Customer & Commercial Services",Sport & Leisure,Supplies & Services,Sub Contractors,Prosep filter systems ltd,15/05/2023,727.66
"Communities, Customer & Commercial Services",Sport & Leisure,Supplies & Services,Other Materials,PROVAC CLEANING SUPPLIES LTD,05/05/2023,165.00
"Communities, Customer & Commercial Services",Sport & Leisure,Supplies & Services,Other Materials,PROVAC CLEANING SUPPLIES LTD,05/05/2023,101.10
"Communities, Customer & Commercial Services",Sport & Leisure,Supplies & Services,Sub Contractors,Waterplay Solutions Limited,25/05/2023,750.00
"Communities, Customer & Commercial Services",Sport & Leisure,Transport-Related Expenditure,District Council Vehicles,C STORES LTD,15/05/2023,161.14
"Communities, Customer & Commercial Services",Sport & Leisure,Transport-Related Expenditure,District Council Vehicles,THE LODGE TYRE CO LTD,16/05/2023,333.80
"Communities, Customer & Commercial Services",Sport & Leisure,Supplies & Services,Equipment - Purchase,RLSS UK Enterprises Ltd,04/05/2023,130.00
"Communities, Customer & Commercial Services",Sport & Leisure,Supplies & Services,Sport Equip - Purchase,RLSS UK Enterprises Ltd,04/05/2023,126.00
"Communities, Customer & Commercial Services",Sport & Leisure,Supplies & Services,Com focused ext sch activities,Gymfinity Gymnastics Ltd,12/05/2023,140.00
"Communities, Customer & Commercial Services",Sport & Leisure,Supplies & Services,Com focused ext sch activities,Gymfinity Gymnastics Ltd,12/05/2023,140.00
"Communities, Customer & Commercial Services",Sport & Leisure,Supplies & Services,Financial Services,DEBIT FINANCE COLLECTIONS ,16/05/2023,167.64
"Communities, Customer & Commercial Services",Sport & Leisure,Supplies & Services,Financial Services,DEBIT FINANCE COLLECTIONS ,16/05/2023,309.14
"Communities, Customer & Commercial Services",Sport & Leisure,Supplies & Services,Sport Equip - Purchase,AMER SPORTS UK LTD,19/05/2023,382.20
"Communities, Customer & Commercial Services",Sport & Leisure,Premises-Related Expenditure,Grounds Maint - Sports Pitches,Technical Surfaces Ltd,02/05/2023,475.00
"Communities, Customer & Commercial Services",Sport & Leisure,Supplies & Services,Chemicals/Cleaning Products,Border Janitorial Supplies Limited,16/05/2023,416.13
"Communities, Customer & Commercial Services",Sport & Leisure,Supplies & Services,Chemicals/Cleaning Products,BRENNTAG UK LIMITED,04/05/2023,125.00
"Communities, Customer & Commercial Services",Sport & Leisure,Supplies & Services,Items For Resale,J P L LTD,12/05/2023,178.53
"Communities, Customer & Commercial Services",Sport & Leisure,Supplies & Services,Equipment - Purchase,RLSS UK Enterprises Ltd,04/05/2023,271.80
"Communities, Customer & Commercial Services",Sport & Leisure,Supplies & Services,First Aid,SP SERVICES LTD,18/05/2023,138.43
"Communities, Customer & Commercial Services",Sport & Leisure,Supplies & Services,Items For Resale,Splash About International Limited,12/05/2023,751.49
"Communities, Customer & Commercial Services",Sport & Leisure,Supplies & Services,Equipment - Purchase,GRANVILLE CONSTRUCTION & MAINTENANCE LTD,19/05/2023,324.78
"Communities, Customer & Commercial Services",Sport & Leisure,Supplies & Services,Financial Services,DEBIT FINANCE COLLECTIONS ,16/05/2023,342.82
"Communities, Customer & Commercial Services",Sport & Leisure,Supplies & Services,Libraries Book Fund,L M Fitness UK Ltd,11/05/2023,650.00
"Communities, Customer & Commercial Services",Sport & Leisure,Supplies & Services,Licences,L M Fitness UK Ltd,04/05/2023,650.00
"Communities, Customer & Commercial Services",Sport & Leisure,Supplies & Services,Financial Services,DEBIT FINANCE COLLECTIONS ,16/05/2023,164.98
"Communities, Customer & Commercial Services",Sport & Leisure,Supplies & Services,Equipment - Purchase,A.R.H Sports Equipment Ltd,16/05/2023,735.88
"Communities, Customer & Commercial Services",Sport & Leisure,Supplies & Services,Equipment - Purchase,We Do Tennis CIC,04/05/2023,"3,000.00"
"Communities, Customer & Commercial Services",Sport & Leisure,Employees,Staff Training,Gladstone MRM Ltd,11/05/2023,892.50
"Communities, Customer & Commercial Services",Sport & Leisure,Supplies & Services,Subscriptions,APSE,03/05/2023,743.40
"Communities, Customer & Commercial Services",Sport & Leisure,Supplies & Services,Equipment - Purchase,CCS MEDIA LIMITED,02/05/2023,"1,614.00"
"Communities, Customer & Commercial Services",Sport & Leisure,Supplies & Services,Equipment - Purchase,NOBRIDGE LTD,11/05/2023,600.00
"Communities, Customer & Commercial Services",Sport & Leisure,Supplies & Services,Equipment - Purchase,Surface Performance Ltd,22/05/2023,"1,295.00"
"Communities, Customer & Commercial Services",Sport & Leisure,Supplies & Services,Financial Services,DEBIT FINANCE COLLECTIONS ,16/05/2023,249.54
"Communities, Customer & Commercial Services",Sport & Leisure,Supplies & Services,Equipment - Purchase,Churches Fire Security Ltd,26/05/2023,147.70
"Communities, Customer & Commercial Services",Sport & Leisure,Supplies & Services,Equipment - Hire,OAKLEYS LTD,25/05/2023,639.98
"Communities, Customer & Commercial Services",Sport & Leisure,Premises-Related Expenditure,R&M WC Planned,Agrovista UK LTD,05/05/2023,832.00
"Communities, Customer & Commercial Services",Sport & Leisure,Premises-Related Expenditure,R&M WC Planned,Agrovista UK LTD,16/05/2023,"1,064.80"
"Communities, Customer & Commercial Services",Sport & Leisure,Premises-Related Expenditure,R&M WC Planned,NOBRIDGE LTD,16/05/2023,"3,800.00"
"Communities, Customer & Commercial Services",Sport & Leisure,Transport-Related Expenditure,Servicing & Repairs V&P,Agrovista UK LTD,25/05/2023,280.00
"Communities, Customer & Commercial Services",Sport & Leisure,Transport-Related Expenditure,Servicing & Repairs V&P,C STORES LTD,16/05/2023,941.39
"Communities, Customer & Commercial Services",Sport & Leisure,Transport-Related Expenditure,Servicing & Repairs V&P,C STORES LTD,25/05/2023,453.48
"Communities, Customer & Commercial Services",Sport & Leisure,Transport-Related Expenditure,Servicing & Repairs V&P,C STORES LTD,25/05/2023,"1,001.12"
"Communities, Customer & Commercial Services",Sport & Leisure,Transport-Related Expenditure,Servicing & Repairs V&P,Pirtek Telford,09/05/2023,315.77
"Communities, Customer & Commercial Services",Sport & Leisure,Transport-Related Expenditure,Servicing & Repairs V&P,Pirtek Telford,09/05/2023,450.79
"Communities, Customer & Commercial Services",Sport & Leisure,Transport-Related Expenditure,Servicing & Repairs V&P,Pirtek Telford,25/05/2023,248.38
"Communities, Customer & Commercial Services",Sport & Leisure,Supplies & Services,Provisions,BIKOLD,12/05/2023,552.53
"Communities, Customer & Commercial Services",Sport & Leisure,Supplies & Services,Provisions,BIKOLD,12/05/2023,321.44
"Communities, Customer & Commercial Services",Sport & Leisure,Supplies & Services,Provisions,BIKOLD,05/05/2023,274.88
"Communities, Customer & Commercial Services",Sport & Leisure,Supplies & Services,Provisions,BIKOLD,18/05/2023,196.60
"Communities, Customer & Commercial Services",Sport & Leisure,Supplies & Services,Provisions,BIKOLD,12/05/2023,273.02
"Communities, Customer & Commercial Services",Sport & Leisure,Supplies & Services,Provisions,BIKOLD,12/05/2023,348.27
"Communities, Customer & Commercial Services",Sport & Leisure,Supplies & Services,Provisions,BIKOLD,25/05/2023,207.45
"Communities, Customer & Commercial Services",Sport & Leisure,Supplies & Services,Provisions,BIKOLD,25/05/2023,302.61
"Communities, Customer & Commercial Services",Sport & Leisure,Supplies & Services,Provisions,BIKOLD,25/05/2023,400.95
"Communities, Customer & Commercial Services",Sport & Leisure,Supplies & Services,Provisions,BIKOLD,25/05/2023,225.56
"Communities, Customer & Commercial Services",Sport & Leisure,Supplies & Services,Provisions,Handmade Speciality Products Ltd,22/05/2023,360.14
"Communities, Customer & Commercial Services",Sport & Leisure,Supplies & Services,Crockery/Hardware/Light Equip,TROPICAL ICE,25/05/2023,307.50
"Communities, Customer & Commercial Services",Sport & Leisure,Supplies & Services,Provisions,TROPICAL ICE,25/05/2023,468.75
"Communities, Customer & Commercial Services",Sport & Leisure,Supplies & Services,Provisions,TROPICAL ICE,25/05/2023,712.75
"Communities, Customer & Commercial Services",Sport & Leisure,Supplies & Services,Provisions,TROPICAL ICE,25/05/2023,"1,523.00"
"Communities, Customer & Commercial Services",Sport & Leisure,Supplies & Services,Equipment - Hire,SLIDERS SKATE SHOP,05/05/2023,300.00
"Communities, Customer & Commercial Services",Sport & Leisure,Supplies & Services,Financial Services,DEBIT FINANCE COLLECTIONS ,16/05/2023,319.86
"Communities, Customer & Commercial Services",Sport & Leisure,Supplies & Services,Financial Services,DEBIT FINANCE COLLECTIONS ,16/05/2023,145.44
"Communities, Customer & Commercial Services",Sport & Leisure,Supplies & Services,Equipment - Purchase,RLSS UK Enterprises Ltd,15/05/2023,255.00
"Communities, Customer & Commercial Services",Sport & Leisure,Supplies & Services,Equipment - Purchase,RLSS UK Enterprises Ltd,12/05/2023,250.00
"Communities, Customer & Commercial Services",Sport & Leisure,Supplies & Services,Equipment - Purchase,RLSS UK Enterprises Ltd,15/05/2023,250.00
"Communities, Customer & Commercial Services",Sport & Leisure,Premises-Related Expenditure,R&M - Mechanical,Culligan LTD,24/05/2023,117.72
"Communities, Customer & Commercial Services",Sport & Leisure,Supplies & Services,Financial Services,DEBIT FINANCE COLLECTIONS ,16/05/2023,618.58
"Communities, Customer & Commercial Services",Sport & Leisure,Supplies & Services,Licences,L M Fitness UK Ltd,12/05/2023,"1,045.00"
"Communities, Customer & Commercial Services",Sport & Leisure,Supplies & Services,Financial Services,DEBIT FINANCE COLLECTIONS ,16/05/2023,199.88
"Communities, Customer & Commercial Services",Sport & Leisure,Premises-Related Expenditure,R&M -Building Other,SKIPS TELFORD LTD,16/05/2023,220.00
"Communities, Customer & Commercial Services",Sport & Leisure,Supplies & Services,Chemicals/Cleaning Products,JAK WATER SYSTEMS LTD,15/05/2023,219.60
"Communities, Customer & Commercial Services",Sport & Leisure,Capital Expenditure,Payments to Contractor,Landscape Plants Limited,05/05/2023,745.00
"Communities, Customer & Commercial Services",Sport & Leisure,Capital Expenditure,Payments to Contractor,Austin Mix Ltd,05/05/2023,"1,655.00"
"Communities, Customer & Commercial Services",Sport & Leisure,Capital Expenditure,Payments to Contractor,Austin Mix Ltd,25/05/2023,300.00
Corporate Communications,Communications & Marketing,Supplies & Services,Advertising,NEWSCO INSIDER LIMITED,26/05/2023,"1,940.00"
Corporate Communications,Communications & Marketing,Supplies & Services,Other Expenses,The Curiuous Way,26/05/2023,250.00
Corporate Communications,Communications & Marketing,Supplies & Services,Other Expenses,The Curiuous Way,26/05/2023,160.00
Corporate Communications,Communications & Marketing,Capital Expenditure,Other Capital Expenditure,SIGNS EXPRESS,26/05/2023,855.81
Corporate Communications,Communications & Marketing,Capital Expenditure,Other Capital Expenditure,SIGNS EXPRESS,26/05/2023,"1,300.80"
Corporate Items,Corporate Codes,Capital Financing Costs,Unitary Charge,PYRAMID SCHOOLS LTD,17/05/2023,"1,005,653.64"
Corporate Items,Corporate Codes,Employees,Agency Supply Costs,Matrix SCM,12/05/2023,"37,593.77"
Corporate Items,Corporate Codes,Employees,Agency Supply Costs,Matrix SCM,22/05/2023,"36,280.46"
Corporate Items,Corporate Codes,Employees,Agency Supply Costs,Matrix SCM,09/05/2023,"39,947.86"
Corporate Items,Corporate Codes,Employees,Agency Supply Costs,Matrix SCM,26/05/2023,"34,550.90"
Education & Skills,Consultancy & Advisory Services,Premises-Related Expenditure,Hire Of Rooms,Mercure Telford Centre Hotel,04/05/2023,113.34
Education & Skills,Consultancy & Advisory Services,Premises-Related Expenditure,Hire Of Rooms,Mercure Telford Centre Hotel,18/05/2023,120.83
Education & Skills,Consultancy & Advisory Services,Supplies & Services,Mobile Phones,EE LTD EQUIPMENT ,18/05/2023,142.00
Education & Skills,Consultancy & Advisory Services,Supplies & Services,Training Costs - Participants Recharged,Mercure Telford Centre Hotel,18/05/2023,142.65
Education & Skills,Consultancy & Advisory Services,Premises-Related Expenditure,Hire Of Rooms,MEETING POINT TRUST LTD,18/05/2023,240.00
Education & Skills,Consultancy & Advisory Services,Supplies & Services,Comp Hardware (Purch / Hire),CCS MEDIA LIMITED,25/05/2023,109.00
Education & Skills,Consultancy & Advisory Services,Supplies & Services,Other Services,HONEYBUNS NURSERIES,10/05/2023,360.03
Education & Skills,Consultancy & Advisory Services,Supplies & Services,Other Services,TIGGY�S MONTESSORI NURSERY,10/05/2023,233.35
Education & Skills,Consultancy & Advisory Services,Supplies & Services,Other Services,OAKENGATES UNITED PRE-SCHOOL,10/05/2023,446.70
Education & Skills,Consultancy & Advisory Services,Supplies & Services,Other Services,Wrekin View Primary School,10/05/2023,466.70
Education & Skills,Consultancy & Advisory Services,Supplies & Services,Subscriptions,Learning Labs Ltd,10/05/2023,"3,751.20"
Education & Skills,Education & Skills,Capital Expenditure,Legal Fees,FREETHS LLP,05/05/2023,800.80
Education & Skills,Education & Skills,Capital Expenditure,Legal Fees,FREETHS LLP,05/05/2023,"1,055.60"
Education & Skills,Education & Skills,Capital Expenditure,Legal Fees,FREETHS LLP,16/05/2023,127.40
Education & Skills,Education & Skills,Capital Expenditure,Legal Fees,FREETHS LLP,16/05/2023,301.70
Education & Skills,Education & Skills,Capital Expenditure,Legal Fees,W H SOLICITORS,25/05/2023,568.00
Education & Skills,Education & Skills,Capital Expenditure,Payments to Contractor,SGS United Kingdom Limited,16/05/2023,445.00
Education & Skills,Education & Skills,Capital Expenditure,Payments to Contractor,SGS United Kingdom Limited,16/05/2023,150.00
Education & Skills,Education & Skills,Capital Expenditure,Payments to Contractor,SGS United Kingdom Limited,16/05/2023,150.00
Education & Skills,Education & Skills,Capital Expenditure,Payments to Contractor,SGS United Kingdom Limited,16/05/2023,150.00
Education & Skills,Education & Skills,Capital Expenditure,Payments to Contractor,SGS United Kingdom Limited,16/05/2023,300.00
Education & Skills,Education & Skills,Capital Expenditure,Payments to Contractor,SGS United Kingdom Limited,16/05/2023,150.00
Education & Skills,Education & Skills,Capital Expenditure,Payments to Contractor,SGS United Kingdom Limited,16/05/2023,150.00
Education & Skills,Education & Skills,Capital Expenditure,Payments to Contractor,SGS United Kingdom Limited,16/05/2023,225.00
Education & Skills,Education & Skills,Capital Expenditure,Payments to Contractor,SGS United Kingdom Limited,16/05/2023,325.00
Education & Skills,Education & Skills,Capital Expenditure,Payments to Contractor,SGS United Kingdom Limited,16/05/2023,150.00
Education & Skills,Education & Skills,Capital Expenditure,Payments to Contractor,SGS United Kingdom Limited,16/05/2023,125.00
Education & Skills,Education & Skills,Capital Expenditure,Payments to Contractor,SGS United Kingdom Limited,16/05/2023,150.00
Education & Skills,Education & Skills,Capital Expenditure,Payments to Contractor,SGS United Kingdom Limited,16/05/2023,150.00
Education & Skills,Education & Skills,Capital Expenditure,Payments to Contractor,SGS United Kingdom Limited,16/05/2023,325.00
Education & Skills,Education & Skills,Capital Expenditure,Payments to Contractor,SGS United Kingdom Limited,16/05/2023,225.00
Education & Skills,Education & Skills,Capital Expenditure,Payments to Contractor,SGS United Kingdom Limited,16/05/2023,225.00
Education & Skills,Education & Skills,Capital Expenditure,Payments to Contractor,SGS United Kingdom Limited,16/05/2023,150.00
Education & Skills,Education & Skills,Capital Expenditure,Payments to Contractor,WENLOCK HEALTH & SAFETY LTD,16/05/2023,332.50
Education & Skills,Education & Skills,Capital Expenditure,Payments to Contractor,P LTD,12/05/2023,"24,577.00"
Education & Skills,Education & Skills,Capital Expenditure,Payments to Contractor,Security Wise Ltd,16/05/2023,"2,953.00"
Education & Skills,Education & Skills,Capital Expenditure,Payments to Contractor,P LTD,24/05/2023,"4,308.00"
Education & Skills,Education & Skills,Capital Expenditure,Payments to Contractor,GRANVILLE CONSTRUCTION & MAINTENANCE LTD,16/05/2023,"2,700.00"
Education & Skills,Education & Skills,Capital Expenditure,Payments to Contractor,GRANVILLE CONSTRUCTION & MAINTENANCE LTD,16/05/2023,856.39
Education & Skills,Education & Skills,Capital Expenditure,Payments to Contractor,A LTD,16/05/2023,"4,505.00"
Education & Skills,Education & Skills,Capital Expenditure,Payments to Contractor,Ener-g Combined Power Ltd,03/05/2023,"3,676.56"
Education & Skills,Education & Skills,Capital Expenditure,Payments to Contractor,Services in Design Ltd,19/05/2023,"5,662.50"
Education & Skills,Education & Skills,Capital Expenditure,Payments to Contractor,TAYLORS MECHANICAL H & P SERVICES LTD,16/05/2023,"1,283.00"
Education & Skills,Education & Skills,Capital Expenditure,Payments to Contractor,TAYLORS MECHANICAL H & P SERVICES LTD,16/05/2023,"1,711.50"
Education & Skills,Education & Skills,Capital Expenditure,Payments to Contractor,TAYLORS MECHANICAL H & P SERVICES LTD,16/05/2023,"4,930.88"
Education & Skills,Education & Skills,Capital Expenditure,Payments to Contractor,GRANVILLE CONSTRUCTION & MAINTENANCE LTD,25/05/2023,"6,200.00"
Education & Skills,Education & Skills,Capital Expenditure,Payments to Contractor,GRANVILLE CONSTRUCTION & MAINTENANCE LTD,25/05/2023,"16,157.44"
Education & Skills,Education & Skills,Capital Expenditure,Payments to Contractor,GRANVILLE CONSTRUCTION & MAINTENANCE LTD,31/05/2023,"12,300.00"
Education & Skills,Education & Skills,Capital Expenditure,Payments to Contractor,GRANVILLE CONSTRUCTION & MAINTENANCE LTD,31/05/2023,"56,001.05"
Education & Skills,Pupil Support Services,Supplies & Services,Other Grants (Expenses),Casey�s Cordingley Hall,25/05/2023,"1,000.00"
Education & Skills,Pupil Support Services,Supplies & Services,Other Grants (Expenses),CAT - Telford Priory School,25/05/2023,"1,836.21"
Education & Skills,Pupil Support Services,Supplies & Services,Town Scheme Grant,CEIA,25/05/2023,752.15
Education & Skills,Pupil Support Services,Supplies & Services,Other Grants (Expenses),Family Nurseries Ltd,25/05/2023,800.00
Education & Skills,Pupil Support Services,Supplies & Services,Other Grants (Expenses),Great Dawley Town Council,25/05/2023,"1,166.14"
Education & Skills,Pupil Support Services,Supplies & Services,Other Grants (Expenses),HALESFIELD DAY NURSERY CENTRE ,25/05/2023,895.00
Education & Skills,Pupil Support Services,Supplies & Services,Other Grants (Expenses),HOLLINSWOOD & RANDLAY PARISH COUNCIL,25/05/2023,412.00
Education & Skills,Pupil Support Services,Supplies & Services,Other Grants (Expenses),Lawley Primary School Fund,25/05/2023,467.12
Education & Skills,Pupil Support Services,Supplies & Services,Other Grants (Expenses),OAKENGATES TOWN COUNCIL,25/05/2023,437.27
Education & Skills,Pupil Support Services,Supplies & Services,Other Grants (Expenses),Old Park Primary SCHOOL FUND,18/05/2023,540.58
Education & Skills,Pupil Support Services,Supplies & Services,Other Grants (Expenses),Old Park Primary SCHOOL FUND,31/05/2023,"1,621.74"
Education & Skills,Pupil Support Services,Supplies & Services,Other Grants (Expenses),PODS,25/05/2023,"1,411.25"
Education & Skills,Pupil Support Services,Supplies & Services,Other Grants (Expenses),Shropshire Youth Association,10/05/2023,"2,779.37"
Education & Skills,Pupil Support Services,Supplies & Services,Other Grants (Expenses),Shropshire Youth Association,10/05/2023,928.30
Education & Skills,Pupil Support Services,Supplies & Services,Other Grants (Expenses),Shropshire Youth Association,10/05/2023,"2,389.10"
Education & Skills,Pupil Support Services,Supplies & Services,Other Grants (Expenses),STIRCHLEY & BROOKSIDE PARISH COUNCIL ,25/05/2023,600.18
Education & Skills,Pupil Support Services,Supplies & Services,Other Grants (Expenses),Twiggys Day Nursery Ltd ,25/05/2023,200.21
Education & Skills,Pupil Support Services,Supplies & Services,Other Grants (Expenses),TWIGGYS DAY NURSERY MADELEY,25/05/2023,116.92
Education & Skills,Pupil Support Services,Supplies & Services,Other Grants (Expenses),Windmill Primary School Academy,25/05/2023,"1,352.98"
Education & Skills,Pupil Support Services,Supplies & Services,Other Grants (Expenses),Wrekin Forest School CIC,25/05/2023,437.50
Education & Skills,Pupil Support Services,Supplies & Services,Other Expenses,CITY OF STOKE ON TRENT,03/05/2023,"1,920.00"
Education & Skills,Pupil Support Services,Supplies & Services,Equipment - Purchase,N MUSICAL INSTRUMENTS,19/05/2023,678.90
Education & Skills,Pupil Support Services,Supplies & Services,Artistes Fees,CITY OF STOKE ON TRENT,04/05/2023,"3,539.75"
Education & Skills,Pupil Support Services,Supplies & Services,Instructors Fees,Entrust Support Services Ltd,05/05/2023,"5,000.00"
Education & Skills,SEND (0-25),Third Party Payments,DSG - High Needs Block,STAFFORDSHIRE COUNTY COUNCIL,18/05/2023,"11,924.00"
Education & Skills,SEND (0-25),Transport-Related Expenditure,Taxi Costs,24X7 Ltd,18/05/2023,442.84
Education & Skills,SEND (0-25),Transport-Related Expenditure,Taxi Costs,24X7 Ltd,18/05/2023,"1,801.52"
Education & Skills,SEND (0-25),Transport-Related Expenditure,Taxi Costs,24X7 Ltd,18/05/2023,"3,496.08"
Education & Skills,SEND (0-25),Transport-Related Expenditure,Taxi Costs,24X7 Ltd,09/05/2023,442.84
Education & Skills,SEND (0-25),Transport-Related Expenditure,Taxi Costs,365 Transports Ltd,18/05/2023,660.00
Education & Skills,SEND (0-25),Transport-Related Expenditure,Taxi Costs,Prestige Cars Telford,18/05/2023,"1,630.40"
Education & Skills,SEND (0-25),Transport-Related Expenditure,Transport Contractors,A-STAR TRANSPORT MIDLANDS LTD,18/05/2023,"3,250.00"
Education & Skills,SEND (0-25),Transport-Related Expenditure,Taxi Costs,Elite Telford Limited,18/05/2023,"1,080.00"
Education & Skills,SEND (0-25),Transport-Related Expenditure,Taxi Costs,Telford and Wrekin Community Enterprise LTD,12/05/2023,576.00
Education & Skills,SEND (0-25),Transport-Related Expenditure,Taxi Costs,Telford and Wrekin Community Enterprise LTD,12/05/2023,"1,176.00"
Education & Skills,SEND (0-25),Transport-Related Expenditure,Taxi Costs,Telford and Wrekin Community Enterprise LTD,12/05/2023,600.00
Education & Skills,SEND (0-25),Transport-Related Expenditure,Transport Contractors,Telford Taxi Hire Limited,12/05/2023,"2,400.00"
Education & Skills,SEND (0-25),Transport-Related Expenditure,Taxi Costs,Telford Taxi Hire Limited,12/05/2023,"2,100.00"
Education & Skills,SEND (0-25),Transport-Related Expenditure,Taxi Costs,Telford Taxi Hire Limited,12/05/2023,"1,900.00"
Education & Skills,SEND (0-25),Transport-Related Expenditure,Taxi Costs,Telford Taxi Hire Limited,12/05/2023,"2,200.00"
Education & Skills,SEND (0-25),Transport-Related Expenditure,Taxi Costs,Telford Taxi Hire Limited,12/05/2023,780.00
Education & Skills,SEND (0-25),Transport-Related Expenditure,Taxi Costs,Telford Taxi Hire Limited,12/05/2023,"2,700.00"
Education & Skills,SEND (0-25),Transport-Related Expenditure,Taxi Costs,Telford Taxi Hire Limited,12/05/2023,660.00
Education & Skills,SEND (0-25),Transport-Related Expenditure,Taxi Costs, Go Carz,18/05/2023,309.00
Education & Skills,SEND (0-25),Transport-Related Expenditure,Taxi Costs, Go Carz,18/05/2023,208.00
Education & Skills,SEND (0-25),Third Party Payments,DSG - High Needs Block,Bridge Therapy,18/05/2023,186.00
Education & Skills,SEND (0-25),Third Party Payments,DSG - High Needs Block,Crudgington Primary School,22/05/2023,607.83
Education & Skills,SEND (0-25),Third Party Payments,DSG - High Needs Block,Crudgington Primary School,22/05/2023,607.83
Education & Skills,SEND (0-25),Third Party Payments,DSG - High Needs Block,Dawley C of E Primary Academy,22/05/2023,868.33
Education & Skills,SEND (0-25),Third Party Payments,DSG - High Needs Block,Dawley C of E Primary Academy,22/05/2023,868.33
Education & Skills,SEND (0-25),Third Party Payments,DSG - High Needs Block,Grange Park Primary School - Community Academies Trust,22/05/2023,"5,123.14"
Education & Skills,SEND (0-25),Third Party Payments,DSG - High Needs Block,Grange Park Primary School - Community Academies Trust,22/05/2023,"5,123.14"
Education & Skills,SEND (0-25),Third Party Payments,DSG - High Needs Block,Lawley Village Academy,22/05/2023,607.83
Education & Skills,SEND (0-25),Third Party Payments,DSG - High Needs Block,Lawley Village Academy,22/05/2023,607.83
Education & Skills,SEND (0-25),Third Party Payments,DSG - High Needs Block,PRIORSLEE ACADEMY,22/05/2023,"2,952.32"
Education & Skills,SEND (0-25),Third Party Payments,DSG - High Needs Block,PRIORSLEE ACADEMY,22/05/2023,"2,952.32"
Education & Skills,SEND (0-25),Third Party Payments,DSG - High Needs Block,Redhill Primary Academy,22/05/2023,"3,820.65"
Education & Skills,SEND (0-25),Third Party Payments,DSG - High Needs Block,Redhill Primary Academy,22/05/2023,"3,820.65"
Education & Skills,SEND (0-25),Third Party Payments,DSG - High Needs Block,St Peter�s Bratton C of E Academy,22/05/2023,"1,128.83"
Education & Skills,SEND (0-25),Third Party Payments,DSG - High Needs Block,St Peter�s Bratton C of E Academy,22/05/2023,"1,128.83"
Education & Skills,SEND (0-25),Third Party Payments,DSG - High Needs Block,Windmill Primary School Academy,22/05/2023,"3,473.32"
Education & Skills,SEND (0-25),Third Party Payments,DSG - High Needs Block,Windmill Primary School Academy,22/05/2023,"3,473.32"
Education & Skills,SEND (0-25),Third Party Payments,DSG - High Needs Block,Wrekin View Primary School,22/05/2023,"4,428.48"
Education & Skills,SEND (0-25),Third Party Payments,DSG - High Needs Block,Wrekin View Primary School,22/05/2023,"4,428.48"
Education & Skills,SEND (0-25),Third Party Payments,DSG - High Needs Block,ABRAHAM DARBY ACADEMY ,22/05/2023,"7,641.29"
Education & Skills,SEND (0-25),Third Party Payments,DSG - High Needs Block,ABRAHAM DARBY ACADEMY ,22/05/2023,"7,641.29"
Education & Skills,SEND (0-25),Third Party Payments,DSG - High Needs Block,CAT - Telford Priory School,22/05/2023,"7,901.80"
Education & Skills,SEND (0-25),Third Party Payments,DSG - High Needs Block,CAT - Telford Priory School,22/05/2023,"7,901.80"
Education & Skills,SEND (0-25),Third Party Payments,DSG - High Needs Block,Charlton Academy,22/05/2023,"4,515.31"
Education & Skills,SEND (0-25),Third Party Payments,DSG - High Needs Block,Charlton Academy,22/05/2023,"4,515.31"
Education & Skills,SEND (0-25),Third Party Payments,DSG - High Needs Block,Ercall Wood Academy,22/05/2023,"11,461.95"
Education & Skills,SEND (0-25),Third Party Payments,DSG - High Needs Block,Ercall Wood Academy,22/05/2023,"11,461.95"
Education & Skills,SEND (0-25),Third Party Payments,DSG - High Needs Block,Hadley Learning Community Academy,22/05/2023,"2,431.32"
Education & Skills,SEND (0-25),Third Party Payments,DSG - High Needs Block,Hadley Learning Community Academy,22/05/2023,"15,890.43"
Education & Skills,SEND (0-25),Third Party Payments,DSG - High Needs Block,Hadley Learning Community Academy,22/05/2023,"15,890.43"
Education & Skills,SEND (0-25),Third Party Payments,DSG - High Needs Block,Hadley Learning Community Academy,22/05/2023,"2,431.32"
Education & Skills,SEND (0-25),Third Party Payments,DSG - High Needs Block,MADELEY ACADEMY TRUST LTD,22/05/2023,"5,036.31"
Education & Skills,SEND (0-25),Third Party Payments,DSG - High Needs Block,MADELEY ACADEMY TRUST LTD,22/05/2023,"5,036.31"
Education & Skills,SEND (0-25),Third Party Payments,DSG - High Needs Block,NEWPORT GIRLS HIGH SCHOOL ACADEMY TRUST,22/05/2023,607.83
Education & Skills,SEND (0-25),Third Party Payments,DSG - High Needs Block,NEWPORT GIRLS HIGH SCHOOL ACADEMY TRUST,22/05/2023,607.83
Education & Skills,SEND (0-25),Third Party Payments,DSG - High Needs Block,Telford Park School,22/05/2023,"6,772.97"
Education & Skills,SEND (0-25),Third Party Payments,DSG - High Needs Block,Telford Park School,22/05/2023,"6,772.97"
Education & Skills,SEND (0-25),Third Party Payments,DSG - High Needs Block,The Telford Langley School ,22/05/2023,"5,817.81"
Education & Skills,SEND (0-25),Third Party Payments,DSG - High Needs Block,The Telford Langley School ,22/05/2023,"5,817.81"
Education & Skills,SEND (0-25),Third Party Payments,DSG - High Needs Block,THOMAS TELFORD SCHOOL ,22/05/2023,955.16
Education & Skills,SEND (0-25),Third Party Payments,DSG - High Needs Block,THOMAS TELFORD SCHOOL ,22/05/2023,955.16
Education & Skills,SEND (0-25),Third Party Payments,DSG - High Needs Block,Queensway HLC,09/05/2023,"36,408.00"
Education & Skills,SEND (0-25),Third Party Payments,DSG - High Needs Block,Queensway HLC,09/05/2023,"42,980.33"
Education & Skills,SEND (0-25),Third Party Payments,DSG - High Needs Block,Queensway HLC,09/05/2023,"42,980.33"
Education & Skills,SEND (0-25),Third Party Payments,DSG - High Needs Block,Queensway HLC,09/05/2023,"36,408.00"
Education & Skills,SEND (0-25),Third Party Payments,DSG - High Needs Block,Queensway HLC,09/05/2023,"23,724.50"
Education & Skills,SEND (0-25),Third Party Payments,DSG - High Needs Block,Queensway HLC,09/05/2023,"23,724.50"
Education & Skills,SEND (0-25),Third Party Payments,DSG - High Needs Block,Queensway HLC,09/05/2023,"52,665.72"
Education & Skills,SEND (0-25),Third Party Payments,DSG - High Needs Block,Queensway HLC,09/05/2023,"52,665.72"
Education & Skills,SEND (0-25),Third Party Payments,DSG - High Needs Block,Kickstart Academy,31/05/2023,"86,546.00"
Education & Skills,SEND (0-25),Third Party Payments,DSG - High Needs Block,Acorn Education & Care Ltd,18/05/2023,"24,913.33"
Education & Skills,SEND (0-25),Third Party Payments,DSG - High Needs Block,Aspris Telford School,18/05/2023,"-12,019.43"
Education & Skills,SEND (0-25),Third Party Payments,DSG - High Needs Block,B M Care Ltd,18/05/2023,"27,653.33"
Education & Skills,SEND (0-25),Third Party Payments,DSG - High Needs Block,Chalkline Education & Support Ltd,18/05/2023,500.00
Education & Skills,SEND (0-25),Third Party Payments,DSG - High Needs Block,Keys PCE Limited,18/05/2023,"19,470.00"
Education & Skills,SEND (0-25),Third Party Payments,DSG - High Needs Block,Keys PCE Limited,18/05/2023,"19,470.00"
Education & Skills,SEND (0-25),Third Party Payments,DSG - High Needs Block,St David�s College,18/05/2023,"13,396.00"
Education & Skills,SEND (0-25),Third Party Payments,DSG - High Needs Block,Westbury School,18/05/2023,"16,650.00"
Education & Skills,SEND (0-25),Third Party Payments,DSG - High Needs Block,Westbury School,18/05/2023,"7,272.00"
Education & Skills,SEND (0-25),Third Party Payments,DSG - High Needs Block,Westbury School,18/05/2023,"24,362.00"
Education & Skills,SEND (0-25),Third Party Payments,DSG - High Needs Block,The Girls� Day School Trust,09/05/2023,"4,680.00"
Education & Skills,SEND (0-25),Third Party Payments,DSG - High Needs Block,Young Foundations Ltd,18/05/2023,"3,175.13"
Education & Skills,SEND (0-25),Third Party Payments,DSG - High Needs Block,Loxley Hall School,18/05/2023,"4,117.21"
Education & Skills,SEND (0-25),Third Party Payments,DSG - High Needs Block,Kickstart Academy,18/05/2023,"2,702.99"
Education & Skills,SEND (0-25),Employees,Staff Training,The University of Manchester,09/05/2023,"3,800.00"
Education & Skills,SEND (0-25),Supplies & Services,Equipment - Purchase,CONNEVANS LIMITED,24/05/2023,136.08
Education & Skills,SEND (0-25),Supplies & Services,Equipment - Purchase,OTICON LIMITED,17/05/2023,112.00
Education & Skills,SEND (0-25),Supplies & Services,Equipment - Purchase,OTICON LIMITED,18/05/2023,249.00
Education & Skills,SEND (0-25),Supplies & Services,Translation Services,Premium Linguistic Services,18/05/2023,247.80
Education & Skills,SEND (0-25),Third Party Payments,DSG - High Needs Block,Chalkline Education & Support Ltd,18/05/2023,500.00
Education & Skills,SEND (0-25),Third Party Payments,DSG - High Needs Block,Chalkline Education & Support Ltd,18/05/2023,500.00
Education & Skills,SEND (0-25),Third Party Payments,DSG - High Needs Block,Chalkline Education & Support Ltd,18/05/2023,400.00
Education & Skills,SEND (0-25),Third Party Payments,DSG - High Needs Block,Chalkline Education & Support Ltd,18/05/2023,500.00
Education & Skills,SEND (0-25),Third Party Payments,DSG - High Needs Block,Chalkline Education & Support Ltd,18/05/2023,500.00
Education & Skills,SEND (0-25),Third Party Payments,DSG - High Needs Block,Chalkline Education & Support Ltd,18/05/2023,400.00
Education & Skills,SEND (0-25),Third Party Payments,DSG - High Needs Block,Chalkline Education & Support Ltd,18/05/2023,200.00
Education & Skills,SEND (0-25),Third Party Payments,DSG - High Needs Block,Chalkline Education & Support Ltd,09/05/2023,500.00
Education & Skills,SEND (0-25),Third Party Payments,DSG - High Needs Block,Chalkline Education & Support Ltd,09/05/2023,500.00
